Body Name,Body,Expense Area,Expense Type,Expense Code,Date Paid,Transaction Number,Amount,Category,Supplier Name,Registration Number,Supplier ID
North Lincolnshire Council,http://data.ordnancesurvey.co.uk/id/7000000000025623,Culture & Related Services,Equipment Purchase,5001,13/09/2017,5372629,237.86,REVENUE,3d Displays Ltd,,3DD0001D
North Lincolnshire Council,http://data.ordnancesurvey.co.uk/id/7000000000025623,Culture & Related Services,Payments To Voluntary Orgs,6001,19/09/2017,5381054,570.00,REVENUE,8th Ashby Brownies,,8TH0002H
North Lincolnshire Council,http://data.ordnancesurvey.co.uk/id/7000000000025623,Culture & Related Services,Payments To Voluntary Orgs,6001,19/09/2017,5381055,380.00,REVENUE,8th Ashby Rainbows,,8TH0004H
North Lincolnshire Council,http://data.ordnancesurvey.co.uk/id/7000000000025623,Fin&Inv I&E,Other Supplies & Services,5799,01/09/2017,5372521,209.25,REVENUE,Abc Vending,,ABC0011C
North Lincolnshire Council,http://data.ordnancesurvey.co.uk/id/7000000000025623,Planning Services,Other Professional Fees,5829,06/09/2017,5373841,"2,700.00",REVENUE,Access Regeneration Limited,,ACC0024C
North Lincolnshire Council,http://data.ordnancesurvey.co.uk/id/7000000000025623,Childrens & Education,Course Fees/Training,2002,11/10/2017,5378003,275.00,REVENUE,Ace Education Training Llp,,ACE0130E
North Lincolnshire Council,http://data.ordnancesurvey.co.uk/id/7000000000025623,Adult Social Care,Repair & Maintenance Costs,3000,21/09/2017,5382626,39.38,REVENUE,Acumen Solutions Ltd,03320506,ACU0004U
North Lincolnshire Council,http://data.ordnancesurvey.co.uk/id/7000000000025623,Childrens & Education,Repair & Maintenance Costs,3000,21/09/2017,5382626,"9,755.76",REVENUE,Acumen Solutions Ltd,03320506,ACU0004U
North Lincolnshire Council,http://data.ordnancesurvey.co.uk/id/7000000000025623,Corporate And Democratic Core,Repair & Maintenance Costs,3000,15/09/2017,5377964,"1,150.00",REVENUE,Acumen Solutions Ltd,03320506,ACU0004U
North Lincolnshire Council,http://data.ordnancesurvey.co.uk/id/7000000000025623,Corporate And Democratic Core,Repair & Maintenance Costs,3000,21/09/2017,5382626,"3,239.18",REVENUE,Acumen Solutions Ltd,03320506,ACU0004U
North Lincolnshire Council,http://data.ordnancesurvey.co.uk/id/7000000000025623,Culture & Related Services,Other Supplies & Services,5799,15/09/2017,5377964,916.47,REVENUE,Acumen Solutions Ltd,03320506,ACU0004U
North Lincolnshire Council,http://data.ordnancesurvey.co.uk/id/7000000000025623,Culture & Related Services,Equipment Maint.& Repair,5003,13/09/2017,5375553,490.00,REVENUE,Acumen Waste Services Ltd,,HIG0071G
North Lincolnshire Council,http://data.ordnancesurvey.co.uk/id/7000000000025623,Corporate And Democratic Core,Subscriptions & Memberships,5510,08/09/2017,5374820,"1,615.00",REVENUE,Adass,,ADA0051A
North Lincolnshire Council,http://data.ordnancesurvey.co.uk/id/7000000000025623,Corporate And Democratic Core,It Software-Maintenance,5053,12/10/2017,5381097,341.36,REVENUE,Advanced Business Solutions,3214465,CED0008D
North Lincolnshire Council,http://data.ordnancesurvey.co.uk/id/7000000000025623,Corporate And Democratic Core,It Software-Maintenance,5053,12/10/2017,5381099,"1,740.71",REVENUE,Advanced Business Solutions,3214465,CED0008D
North Lincolnshire Council,http://data.ordnancesurvey.co.uk/id/7000000000025623,Adult Social Care,Payments To Private Orgs,6002,21/09/2017,5382952,"1,566.00",REVENUE,Advanced Care Yorkshire Limited,,ADV0065V
North Lincolnshire Council,http://data.ordnancesurvey.co.uk/id/7000000000025623,Adult Social Care,Payments To Private Orgs,6002,21/09/2017,5382953,"1,741.04",REVENUE,Advanced Care Yorkshire Limited,,ADV0065V
North Lincolnshire Council,http://data.ordnancesurvey.co.uk/id/7000000000025623,Childrens & Education,Other Supplies & Services,5799,08/10/2017,5377722,306.00,REVENUE,A E Cox & Sons,,AEC0001C
North Lincolnshire Council,http://data.ordnancesurvey.co.uk/id/7000000000025623,Adult Social Care,Equipment Hire/Rent,5002,01/09/2017,5371045,341.09,REVENUE,Age Uk North Lincolnshire,1101646,AGE0006E
North Lincolnshire Council,http://data.ordnancesurvey.co.uk/id/7000000000025623,Culture & Related Services,Materials,5004,06/09/2017,5372892,500.50,REVENUE,Aitkens Sportsturf Ltd,,AIT0006T
North Lincolnshire Council,http://data.ordnancesurvey.co.uk/id/7000000000025623,Corporate And Democratic Core,Legal Fees,5823,15/09/2017,5378756,"1,380.00",REVENUE,A J C Comaish,,COM0103M
North Lincolnshire Council,http://data.ordnancesurvey.co.uk/id/7000000000025623,Childrens & Education,Payments To Private Orgs,6002,15/09/2017,5378539,"1,159.20",REVENUE,Alison Fixter,,FIX0036X
North Lincolnshire Council,http://data.ordnancesurvey.co.uk/id/7000000000025623,Fin&Inv I&E,Materials,5004,30/09/2017,5377819,"2,390.48",REVENUE,Allan Fuller Ltd,,FUL0002L
North Lincolnshire Council,http://data.ordnancesurvey.co.uk/id/7000000000025623,Fin&Inv I&E,Materials,5004,14/10/2017,5383710,"6,375.57",REVENUE,Allan Fuller Ltd,,FUL0002L
North Lincolnshire Council,http://data.ordnancesurvey.co.uk/id/7000000000025623,Adult Social Care,Payments To Private Orgs,6002,21/09/2017,5382954,"12,077.78",REVENUE,Allied Healthcare Group Ltd,1963820,ALL0094L
North Lincolnshire Council,http://data.ordnancesurvey.co.uk/id/7000000000025623,Adult Social Care,Payments To Private Orgs,6002,21/09/2017,5382999,-402.28,REVENUE,Allied Healthcare (Uk) Ltd,,ISF0012F
North Lincolnshire Council,http://data.ordnancesurvey.co.uk/id/7000000000025623,Adult Social Care,Payments To Private Orgs,6002,21/09/2017,5383000,"1,408.00",REVENUE,Allied Healthcare (Uk) Ltd,,ISF0012F
North Lincolnshire Council,http://data.ordnancesurvey.co.uk/id/7000000000025623,Culture & Related Services,Course Fees/Training,2002,19/09/2017,5381062,"2,150.00",REVENUE,Amac,04779660,AMA0120A
North Lincolnshire Council,http://data.ordnancesurvey.co.uk/id/7000000000025623,Childrens & Education,Payments To Private Orgs,6002,15/09/2017,5378534,619.42,REVENUE,Amanda Batty,,BAT0081T
North Lincolnshire Council,http://data.ordnancesurvey.co.uk/id/7000000000025623,Childrens & Education,Payments To Private Orgs,6002,01/09/2017,5372359,"6,495.05",REVENUE,Amanda Foley,,FOL0034L
North Lincolnshire Council,http://data.ordnancesurvey.co.uk/id/7000000000025623,Adult Social Care,Payments To Private Orgs,6002,21/09/2017,5382955,"11,095.20",REVENUE,Amara Care,4459044,AMA0002A
North Lincolnshire Council,http://data.ordnancesurvey.co.uk/id/7000000000025623,Adult Social Care,Payments To Private Orgs,6002,21/09/2017,5382955,"1,037.00",REVENUE,Amara Care,4459044,AMA0002A
North Lincolnshire Council,http://data.ordnancesurvey.co.uk/id/7000000000025623,Adult Social Care,Payments To Private Orgs,6002,21/09/2017,5382992,"3,217.60",REVENUE,Amara Care,,ISF0006F
North Lincolnshire Council,http://data.ordnancesurvey.co.uk/id/7000000000025623,Adult Social Care,Payments To Private Orgs,6002,21/09/2017,5382992,"4,585.00",REVENUE,Amara Care,,ISF0006F
North Lincolnshire Council,http://data.ordnancesurvey.co.uk/id/7000000000025623,Childrens & Education,Payments To Private Orgs,6002,19/09/2017,5381112,588.60,REVENUE,Amara Care,4459044,AMA0002A
North Lincolnshire Council,http://data.ordnancesurvey.co.uk/id/7000000000025623,Adult Social Care,Fees & Charges Income,9002,21/09/2017,5383016,-85.95,REVENUE,Amber Care (Lincolnshire) Ltd,,ISF0038F
North Lincolnshire Council,http://data.ordnancesurvey.co.uk/id/7000000000025623,Adult Social Care,Payments To Private Orgs,6002,21/09/2017,5383016,"1,020.00",REVENUE,Amber Care (Lincolnshire) Ltd,,ISF0038F
North Lincolnshire Council,http://data.ordnancesurvey.co.uk/id/7000000000025623,Adult Social Care,Fees & Charges Income,9002,21/09/2017,5382991,-162.40,REVENUE,Amphion Home Care Services Ltd,,ISF0005F
North Lincolnshire Council,http://data.ordnancesurvey.co.uk/id/7000000000025623,Adult Social Care,Fees & Charges Income,9002,21/09/2017,5382991,-89.46,REVENUE,Amphion Home Care Services Ltd,,ISF0005F
North Lincolnshire Council,http://data.ordnancesurvey.co.uk/id/7000000000025623,Adult Social Care,Payments To Private Orgs,6002,21/09/2017,5382958,"1,057.32",REVENUE,Amphion Home Care Services Ltd,03480829,AMP0002P
North Lincolnshire Council,http://data.ordnancesurvey.co.uk/id/7000000000025623,Adult Social Care,Payments To Private Orgs,6002,21/09/2017,5382958,"92,527.52",REVENUE,Amphion Home Care Services Ltd,03480829,AMP0002P
North Lincolnshire Council,http://data.ordnancesurvey.co.uk/id/7000000000025623,Adult Social Care,Payments To Private Orgs,6002,21/09/2017,5382959,720.00,REVENUE,Amphion Home Care Services Ltd,03480829,AMP0002P
North Lincolnshire Council,http://data.ordnancesurvey.co.uk/id/7000000000025623,Adult Social Care,Payments To Private Orgs,6002,21/09/2017,5382960,"-2,106.29",REVENUE,Amphion Home Care Services Ltd,03480829,AMP0002P
North Lincolnshire Council,http://data.ordnancesurvey.co.uk/id/7000000000025623,Adult Social Care,Payments To Private Orgs,6002,21/09/2017,5382991,"4,798.44",REVENUE,Amphion Home Care Services Ltd,,ISF0005F
North Lincolnshire Council,http://data.ordnancesurvey.co.uk/id/7000000000025623,Adult Social Care,Payments To Private Orgs,6002,21/09/2017,5382991,"4,928.00",REVENUE,Amphion Home Care Services Ltd,,ISF0005F
North Lincolnshire Council,http://data.ordnancesurvey.co.uk/id/7000000000025623,Childrens & Education,Client Transport Costs,6092,01/09/2017,5371574,496.00,REVENUE,Amvale Medical Transport Ltd,,AMV0003V
North Lincolnshire Council,http://data.ordnancesurvey.co.uk/id/7000000000025623,Childrens & Education,Vehicle Hire,4101,21/09/2017,5381137,"4,158.72",REVENUE,Amvale Medical Transport Ltd,,AMV0003V
North Lincolnshire Council,http://data.ordnancesurvey.co.uk/id/7000000000025623,Childrens & Education,Equipment Hire/Rent,5002,21/09/2017,5375274,631.77,REVENUE,Angel Springs Ltd,2418453,ANG0018G
North Lincolnshire Council,http://data.ordnancesurvey.co.uk/id/7000000000025623,Adult Social Care,Water (Meter/Rate) & Sewerage,3221,30/08/2017,5370357,"1,092.43",REVENUE,Anglian Water Business,2366656,ANG0001G
North Lincolnshire Council,http://data.ordnancesurvey.co.uk/id/7000000000025623,Childrens & Education,Water (Meter/Rate) & Sewerage,3221,19/09/2017,5378601,582.04,REVENUE,Anglian Water Business,2366656,ANG0001G
North Lincolnshire Council,http://data.ordnancesurvey.co.uk/id/7000000000025623,Childrens & Education,Water (Meter/Rate) & Sewerage,3221,21/09/2017,5379734,28.06,REVENUE,Anglian Water Business,2366656,ANG0001G
North Lincolnshire Council,http://data.ordnancesurvey.co.uk/id/7000000000025623,Culture & Related Services,Water (Meter/Rate) & Sewerage,3221,01/09/2017,5369926,"3,919.73",REVENUE,Anglian Water Business,2366656,ANG0001G
North Lincolnshire Council,http://data.ordnancesurvey.co.uk/id/7000000000025623,Culture & Related Services,Water (Meter/Rate) & Sewerage,3221,06/09/2017,5372729,"1,568.21",REVENUE,Anglian Water Business,2366656,ANG0001G
North Lincolnshire Council,http://data.ordnancesurvey.co.uk/id/7000000000025623,Culture & Related Services,Water (Meter/Rate) & Sewerage,3221,19/09/2017,5379259,286.50,REVENUE,Anglian Water Business,2366656,ANG0001G
North Lincolnshire Council,http://data.ordnancesurvey.co.uk/id/7000000000025623,Culture & Related Services,Water (Meter/Rate) & Sewerage,3221,21/09/2017,5379734,358.45,REVENUE,Anglian Water Business,2366656,ANG0001G
North Lincolnshire Council,http://data.ordnancesurvey.co.uk/id/7000000000025623,Environmental & Regulatory Svs,Water (Meter/Rate) & Sewerage,3221,06/09/2017,5372647,280.90,REVENUE,Anglian Water Business,2366656,ANG0001G
North Lincolnshire Council,http://data.ordnancesurvey.co.uk/id/7000000000025623,Environmental & Regulatory Svs,Water (Meter/Rate) & Sewerage,3221,15/09/2017,5383759,281.40,REVENUE,Anglian Water Business,2366656,ANG0001G
North Lincolnshire Council,http://data.ordnancesurvey.co.uk/id/7000000000025623,Environmental & Regulatory Svs,Water (Meter/Rate) & Sewerage,3221,19/09/2017,5379799,648.58,REVENUE,Anglian Water Business,2366656,ANG0001G
North Lincolnshire Council,http://data.ordnancesurvey.co.uk/id/7000000000025623,Environmental & Regulatory Svs,Water (Meter/Rate) & Sewerage,3221,19/09/2017,5381149,388.40,REVENUE,Anglian Water Business,2366656,ANG0001G
North Lincolnshire Council,http://data.ordnancesurvey.co.uk/id/7000000000025623,Environmental & Regulatory Svs,Water (Meter/Rate) & Sewerage,3221,20/10/2017,5379798,512.82,REVENUE,Anglian Water Business,2366656,ANG0001G
North Lincolnshire Council,http://data.ordnancesurvey.co.uk/id/7000000000025623,Fin&Inv I&E,Water (Meter/Rate) & Sewerage,3221,01/09/2017,5372568,326.24,REVENUE,Anglian Water Business,2366656,ANG0001G
North Lincolnshire Council,http://data.ordnancesurvey.co.uk/id/7000000000025623,Fin&Inv I&E,Water (Meter/Rate) & Sewerage,3221,15/09/2017,5377685,680.92,REVENUE,Anglian Water Business,2366656,ANG0001G
North Lincolnshire Council,http://data.ordnancesurvey.co.uk/id/7000000000025623,Highways & Transport,Water (Meter/Rate) & Sewerage,3221,19/09/2017,5377876,711.45,REVENUE,Anglian Water Business,2366656,ANG0001G
North Lincolnshire Council,http://data.ordnancesurvey.co.uk/id/7000000000025623,Childrens & Education,Client Related Costs,5534,06/09/2017,5373969,896.00,REVENUE,Apple Tree Day Nursery Ltd,,APP0007P
North Lincolnshire Council,http://data.ordnancesurvey.co.uk/id/7000000000025623,Childrens & Education,Payments To Private Orgs,6002,01/09/2017,5372339,"7,868.28",REVENUE,Apple Tree Day Nursery Ltd,,APP0007P
North Lincolnshire Council,http://data.ordnancesurvey.co.uk/id/7000000000025623,Childrens & Education,Payments To Private Orgs,6002,01/09/2017,5372340,"9,296.28",REVENUE,Apple Tree Day Nursery Ltd,,APP0024P
North Lincolnshire Council,http://data.ordnancesurvey.co.uk/id/7000000000025623,Childrens & Education,Payments To Private Orgs,6002,01/09/2017,5372341,655.20,REVENUE,Arc Childminding,,ARC0011C
North Lincolnshire Council,http://data.ordnancesurvey.co.uk/id/7000000000025623,Culture & Related Services,Other Supplies & Services,5799,08/09/2017,5372305,"2,614.00",REVENUE,Archaeological Project Services,,ARC0046C
North Lincolnshire Council,http://data.ordnancesurvey.co.uk/id/7000000000025623,"Culture,Env,Reg & Planning Cap",Other Costs,A085,13/09/2017,5375966,"12,816.00",CAPITAL,Archaeology Group,,ARC0174C
North Lincolnshire Council,http://data.ordnancesurvey.co.uk/id/7000000000025623,Childrens & Education,Client Related Costs,5534,10/10/2017,5377935,266.72,REVENUE,Argos Business Solutions Ltd,03234511,ARG0003G
North Lincolnshire Council,http://data.ordnancesurvey.co.uk/id/7000000000025623,Childrens & Education,Equipment Purchase,5001,17/10/2017,5382520,212.78,REVENUE,Argos Business Solutions Ltd,03234511,ARG0003G
North Lincolnshire Council,http://data.ordnancesurvey.co.uk/id/7000000000025623,Childrens & Education,Equipment Purchase,5001,08/09/2017,5374335,458.32,REVENUE,Argos Distributors Ltd,03234511,ARG0010G
North Lincolnshire Council,http://data.ordnancesurvey.co.uk/id/7000000000025623,Highways & Transport,Concessionary Fares,6010,07/10/2017,5379743,"1,000.00",REVENUE,Arriva Rail Northern Ltd,04337712,NOR0761R
North Lincolnshire Council,http://data.ordnancesurvey.co.uk/id/7000000000025623,Highways & Transport,Passenger Transport,6011,07/10/2017,5379743,135.72,REVENUE,Arriva Rail Northern Ltd,04337712,NOR0761R
North Lincolnshire Council,http://data.ordnancesurvey.co.uk/id/7000000000025623,Adult Social Care,Payments To Private Orgs,6002,21/09/2017,5383013,"19,201.00",REVENUE,Ashby Meadows (Hica),,ISF0033F
North Lincolnshire Council,http://data.ordnancesurvey.co.uk/id/7000000000025623,Adult Social Care,Payments To Private Orgs,6002,21/09/2017,5383013,396.00,REVENUE,Ashby Meadows (Hica),,ISF0033F
North Lincolnshire Council,http://data.ordnancesurvey.co.uk/id/7000000000025623,Adult Social Care,Payments To Private Orgs,6002,15/09/2017,5377606,600.00,REVENUE,Ashby Wesley Methodist Church,,ASH0012H
North Lincolnshire Council,http://data.ordnancesurvey.co.uk/id/7000000000025623,Environmental & Regulatory Svs,Materials,5004,21/09/2017,5373865,692.25,REVENUE,Asigns (Scunthorpe) Ltd,,ASI0002I
North Lincolnshire Council,http://data.ordnancesurvey.co.uk/id/7000000000025623,Environmental & Regulatory Svs,Materials,5004,21/09/2017,5373866,450.00,REVENUE,Asigns (Scunthorpe) Ltd,,ASI0002I
North Lincolnshire Council,http://data.ordnancesurvey.co.uk/id/7000000000025623,Environmental & Regulatory Svs,Materials,5004,21/09/2017,5373869,315.30,REVENUE,Asigns (Scunthorpe) Ltd,,ASI0002I
North Lincolnshire Council,http://data.ordnancesurvey.co.uk/id/7000000000025623,Fin&Inv I&E,Other Supplies & Services,5799,01/09/2017,5372516,510.25,REVENUE,Ask4 Business Ltd,03614661,ASK0163K
North Lincolnshire Council,http://data.ordnancesurvey.co.uk/id/7000000000025623,Fin&Inv I&E,Other Supplies & Services,5799,01/09/2017,5372518,"1,600.00",REVENUE,Ask4 Business Ltd,03614661,ASK0163K
North Lincolnshire Council,http://data.ordnancesurvey.co.uk/id/7000000000025623,Childrens & Education,It Hardware -Purchase,5050,21/09/2017,5374009,"1,000.00",REVENUE,Asure Software Uk Ltd,5565282,ASU0002U
North Lincolnshire Council,http://data.ordnancesurvey.co.uk/id/7000000000025623,Childrens & Education,Subscriptions & Memberships,5510,21/09/2017,5374009,"4,149.77",REVENUE,Asure Software Uk Ltd,5565282,ASU0002U
North Lincolnshire Council,http://data.ordnancesurvey.co.uk/id/7000000000025623,Adult Social Care,Payments To Private Orgs,6002,21/09/2017,5382961,"5,205.36",REVENUE,A.T.C.S. Ltd,05057212,ATC0006C
North Lincolnshire Council,http://data.ordnancesurvey.co.uk/id/7000000000025623,Adult Social Care,Payments To Private Orgs,6002,21/09/2017,5382993,"-2,249.84",REVENUE,A.T.C.S. Ltd,,ISF0007F
North Lincolnshire Council,http://data.ordnancesurvey.co.uk/id/7000000000025623,Adult Social Care,Payments To Private Orgs,6002,21/09/2017,5382994,"8,731.28",REVENUE,A.T.C.S. Ltd,,ISF0007F
North Lincolnshire Council,http://data.ordnancesurvey.co.uk/id/7000000000025623,Adult Social Care,Payments To Private Orgs,6002,21/09/2017,5382994,"8,532.08",REVENUE,A.T.C.S. Ltd,,ISF0007F
North Lincolnshire Council,http://data.ordnancesurvey.co.uk/id/7000000000025623,Childrens & Education,Payments To Private Orgs,6002,13/09/2017,5377913,383.51,REVENUE,A.T.C.S. Ltd,05057212,ATC0006C
North Lincolnshire Council,http://data.ordnancesurvey.co.uk/id/7000000000025623,Culture & Related Services,Other Supplies & Services,5799,21/09/2017,5378553,"2,324.41",REVENUE,Attend 2 It Ltd,06811916,ATT0068T
North Lincolnshire Council,http://data.ordnancesurvey.co.uk/id/7000000000025623,Culture & Related Services,Other Supplies & Services,5799,06/10/2017,5378554,"2,324.41",REVENUE,Attend 2 It Ltd,06811916,ATT0068T
North Lincolnshire Council,http://data.ordnancesurvey.co.uk/id/7000000000025623,Corporate And Democratic Core,It Software-Maintenance,5053,21/09/2017,5378574,"7,349.83",REVENUE,Avecto Ltd,06538381,AVE0006E
North Lincolnshire Council,http://data.ordnancesurvey.co.uk/id/7000000000025623,Environmental & Regulatory Svs,Other Vehicle Costs,4005,08/10/2017,5379102,292.99,REVENUE,B A Bush & Sons  Ltd,,BUS0283S
North Lincolnshire Council,http://data.ordnancesurvey.co.uk/id/7000000000025623,Fin&Inv I&E,Other Vehicle Costs,4005,11/08/2017,5383638,"2,190.06",REVENUE,B A Bush & Sons  Ltd,,BUS0283S
North Lincolnshire Council,http://data.ordnancesurvey.co.uk/id/7000000000025623,Fin&Inv I&E,Other Vehicle Costs,4005,01/09/2017,5372757,456.24,REVENUE,B A Bush & Sons  Ltd,,BUS0283S
North Lincolnshire Council,http://data.ordnancesurvey.co.uk/id/7000000000025623,Fin&Inv I&E,Other Vehicle Costs,4005,01/09/2017,5372768,241.22,REVENUE,B A Bush & Sons  Ltd,,BUS0283S
North Lincolnshire Council,http://data.ordnancesurvey.co.uk/id/7000000000025623,Fin&Inv I&E,Other Vehicle Costs,4005,01/09/2017,5372775,223.55,REVENUE,B A Bush & Sons  Ltd,,BUS0283S
North Lincolnshire Council,http://data.ordnancesurvey.co.uk/id/7000000000025623,Fin&Inv I&E,Other Vehicle Costs,4005,13/09/2017,5372779,723.24,REVENUE,B A Bush & Sons  Ltd,,BUS0283S
North Lincolnshire Council,http://data.ordnancesurvey.co.uk/id/7000000000025623,Fin&Inv I&E,Other Vehicle Costs,4005,13/09/2017,5372785,215.00,REVENUE,B A Bush & Sons  Ltd,,BUS0283S
North Lincolnshire Council,http://data.ordnancesurvey.co.uk/id/7000000000025623,Fin&Inv I&E,Other Vehicle Costs,4005,13/09/2017,5372786,246.99,REVENUE,B A Bush & Sons  Ltd,,BUS0283S
North Lincolnshire Council,http://data.ordnancesurvey.co.uk/id/7000000000025623,Fin&Inv I&E,Other Vehicle Costs,4005,15/09/2017,5379084,255.98,REVENUE,B A Bush & Sons  Ltd,,BUS0283S
North Lincolnshire Council,http://data.ordnancesurvey.co.uk/id/7000000000025623,Fin&Inv I&E,Other Vehicle Costs,4005,19/09/2017,5372797,476.25,REVENUE,B A Bush & Sons  Ltd,,BUS0283S
North Lincolnshire Council,http://data.ordnancesurvey.co.uk/id/7000000000025623,Fin&Inv I&E,Other Vehicle Costs,4005,08/10/2017,5379104,429.70,REVENUE,B A Bush & Sons  Ltd,,BUS0283S
North Lincolnshire Council,http://data.ordnancesurvey.co.uk/id/7000000000025623,Fin&Inv I&E,Other Vehicle Costs,4005,08/10/2017,5379105,317.62,REVENUE,B A Bush & Sons  Ltd,,BUS0283S
North Lincolnshire Council,http://data.ordnancesurvey.co.uk/id/7000000000025623,Fin&Inv I&E,Other Vehicle Costs,4005,11/10/2017,5379090,715.99,REVENUE,B A Bush & Sons  Ltd,,BUS0283S
North Lincolnshire Council,http://data.ordnancesurvey.co.uk/id/7000000000025623,Fin&Inv I&E,Other Vehicle Costs,4005,16/10/2017,5383645,493.98,REVENUE,B A Bush & Sons  Ltd,,BUS0283S
North Lincolnshire Council,http://data.ordnancesurvey.co.uk/id/7000000000025623,Adult Social Care,Equipment Purchase,5001,30/09/2017,5375563,985.60,REVENUE,Back Care Solutions Limited,,BAC0060C
North Lincolnshire Council,http://data.ordnancesurvey.co.uk/id/7000000000025623,Other Expenditure & Income,Course Fees/Training,2002,08/09/2017,5374414,472.50,REVENUE,Barnardos Training & Consultancy,,BAR0616R
North Lincolnshire Council,http://data.ordnancesurvey.co.uk/id/7000000000025623,"Culture,Env,Reg & Planning Cap",Other Costs,A085,08/09/2017,5375176,"25,000.00",CAPITAL,Barnetby Parish Council Recreation Field,,BAR0411R
North Lincolnshire Council,http://data.ordnancesurvey.co.uk/id/7000000000025623,Childrens & Education,Payments To Voluntary Orgs,6001,15/09/2017,5378533,"17,474.08",REVENUE,Barnetby Under Fives Playgroup,,BAR0021R
North Lincolnshire Council,http://data.ordnancesurvey.co.uk/id/7000000000025623,Childrens & Education,Payments To Other La'S,6003,08/09/2017,5374415,"7,000.00",REVENUE,Barnsley Metropolitan Borough Council,,MET0015T
North Lincolnshire Council,http://data.ordnancesurvey.co.uk/id/7000000000025623,Childrens & Education,Payments To Voluntary Orgs,6001,01/09/2017,5372345,"8,447.04",REVENUE,Barrow Preschool Playgroup,,BAR0072R
North Lincolnshire Council,http://data.ordnancesurvey.co.uk/id/7000000000025623,Childrens & Education,Client Transport Costs,6092,21/09/2017,5380426,660.20,REVENUE,Barton Tt Taxis Ltd,07405760,BAR0888R
North Lincolnshire Council,http://data.ordnancesurvey.co.uk/id/7000000000025623,Corporate And Democratic Core,It Software-Maintenance,5053,21/09/2017,5372531,975.00,REVENUE,Basemap Ltd,,BAS0088S
North Lincolnshire Council,http://data.ordnancesurvey.co.uk/id/7000000000025623,Environmental & Regulatory Svs,Other Supplies & Services,5799,21/09/2017,5372531,825.00,REVENUE,Basemap Ltd,,BAS0088S
North Lincolnshire Council,http://data.ordnancesurvey.co.uk/id/7000000000025623,Public Health,Course Fees/Training,2002,04/10/2017,5378001,"3,000.00",REVENUE,Bassetlaw Mind,,BAS0185S
North Lincolnshire Council,http://data.ordnancesurvey.co.uk/id/7000000000025623,Childrens & Education,Examination Fees,5730,19/09/2017,5371851,420.00,REVENUE,Bcs Learning & Development Ltd,1005485,BRI0664I
North Lincolnshire Council,http://data.ordnancesurvey.co.uk/id/7000000000025623,Culture & Related Services,Fuel,4001,15/09/2017,5376614,326.53,REVENUE,Be Fuelcards Ltd,,BEF0001F
North Lincolnshire Council,http://data.ordnancesurvey.co.uk/id/7000000000025623,Culture & Related Services,Fuel,4001,21/09/2017,5380764,261.12,REVENUE,Be Fuelcards Ltd,,BEF0001F
North Lincolnshire Council,http://data.ordnancesurvey.co.uk/id/7000000000025623,Culture & Related Services,Fuel,4001,21/09/2017,5380765,271.37,REVENUE,Be Fuelcards Ltd,,BEF0001F
North Lincolnshire Council,http://data.ordnancesurvey.co.uk/id/7000000000025623,Culture & Related Services,Fuel,4001,21/09/2017,5380768,318.00,REVENUE,Be Fuelcards Ltd,,BEF0001F
North Lincolnshire Council,http://data.ordnancesurvey.co.uk/id/7000000000025623,Environmental & Regulatory Svs,Fuel,4001,15/09/2017,5376614,98.25,REVENUE,Be Fuelcards Ltd,,BEF0001F
North Lincolnshire Council,http://data.ordnancesurvey.co.uk/id/7000000000025623,Environmental & Regulatory Svs,Fuel,4001,21/09/2017,5380764,203.96,REVENUE,Be Fuelcards Ltd,,BEF0001F
North Lincolnshire Council,http://data.ordnancesurvey.co.uk/id/7000000000025623,Environmental & Regulatory Svs,Fuel,4001,21/09/2017,5380765,105.83,REVENUE,Be Fuelcards Ltd,,BEF0001F
North Lincolnshire Council,http://data.ordnancesurvey.co.uk/id/7000000000025623,Environmental & Regulatory Svs,Fuel,4001,21/09/2017,5380768,49.97,REVENUE,Be Fuelcards Ltd,,BEF0001F
North Lincolnshire Council,http://data.ordnancesurvey.co.uk/id/7000000000025623,Childrens & Education,Payments To Voluntary Orgs,6001,01/09/2017,5372388,"4,749.36",REVENUE,Belwood Playgroup,,PLA0049A
North Lincolnshire Council,http://data.ordnancesurvey.co.uk/id/7000000000025623,Highways & Transport,Equipment Purchase,5001,06/09/2017,5373229,"3,900.00",REVENUE,Bemrose Booth Ltd,,HEN0031N
North Lincolnshire Council,http://data.ordnancesurvey.co.uk/id/7000000000025623,Childrens & Education,Payments To Private Orgs,6002,15/09/2017,5378964,"11,723.60",REVENUE,Best Futures School,,BFS0001S
North Lincolnshire Council,http://data.ordnancesurvey.co.uk/id/7000000000025623,Corporate And Democratic Core,Legal Fees,5823,15/09/2017,5378020,851.20,REVENUE,Bevan Brittan Llp Client Account,,BEV0120V
North Lincolnshire Council,http://data.ordnancesurvey.co.uk/id/7000000000025623,Culture & Related Services,Subscriptions & Memberships,5510,13/09/2017,5373196,"3,024.00",REVENUE,Bibliographic Data Services Ltd,154602,BIB0027B
North Lincolnshire Council,http://data.ordnancesurvey.co.uk/id/7000000000025623,Environmental & Regulatory Svs,Payments To Private Orgs,6002,19/09/2017,5379029,"395,767.52",REVENUE,Biffa Waste Services Plc,00946107,BIF0005F
North Lincolnshire Council,http://data.ordnancesurvey.co.uk/id/7000000000025623,Environmental & Regulatory Svs,Payments To Private Orgs,6002,30/09/2017,5382671,"413,533.79",REVENUE,Biffa Waste Services Plc,00946107,BIF0005F
North Lincolnshire Council,http://data.ordnancesurvey.co.uk/id/7000000000025623,Environmental & Regulatory Svs,Payments To Private Orgs,6002,13/09/2017,5370905,727.00,REVENUE,Binwashers Llp T/A The Bin Washing Co,OC348052,BIN0019N
North Lincolnshire Council,http://data.ordnancesurvey.co.uk/id/7000000000025623,Environmental & Regulatory Svs,Payments To Private Orgs,6002,06/09/2017,5370893,"46,707.02",REVENUE,Biowise Ltd,04305295,BIO0014O
North Lincolnshire Council,http://data.ordnancesurvey.co.uk/id/7000000000025623,Environmental & Regulatory Svs,Payments To Private Orgs,6002,06/09/2017,5370894,"12,180.69",REVENUE,Biowise Ltd,04305295,BIO0014O
North Lincolnshire Council,http://data.ordnancesurvey.co.uk/id/7000000000025623,Environmental & Regulatory Svs,Payments To Private Orgs,6002,30/09/2017,5382654,"54,328.14",REVENUE,Biowise Ltd,04305295,BIO0014O
North Lincolnshire Council,http://data.ordnancesurvey.co.uk/id/7000000000025623,Environmental & Regulatory Svs,Payments To Private Orgs,6002,30/09/2017,5382668,"9,438.66",REVENUE,Biowise Ltd,04305295,BIO0014O
North Lincolnshire Council,http://data.ordnancesurvey.co.uk/id/7000000000025623,Highways & Transport,Passenger Transport,6011,21/09/2017,5379744,"4,832.00",REVENUE,Black And White Coaches,,BLA0209A
North Lincolnshire Council,http://data.ordnancesurvey.co.uk/id/7000000000025623,Adult Social Care,Client Transport Costs,6092,01/09/2017,5371746,288.20,REVENUE,Blue Line Taxis (Scunthorpe) Ltd,,BLU0004U
North Lincolnshire Council,http://data.ordnancesurvey.co.uk/id/7000000000025623,Culture & Related Services,Equipment Hire/Rent,5002,06/09/2017,5371856,"1,137.49",REVENUE,Bnp Paribas Lease Group (Rentals),,BNP0002P
North Lincolnshire Council,http://data.ordnancesurvey.co.uk/id/7000000000025623,Childrens & Education,Payments To Voluntary Orgs,6001,15/09/2017,5378535,"12,888.62",REVENUE,Bonby Pre-School,,BON0005N
North Lincolnshire Council,http://data.ordnancesurvey.co.uk/id/7000000000025623,Childrens & Education,Payments To Private Orgs,6002,01/09/2017,5372346,"15,568.56",REVENUE,Bottesford Bunnies Ltd,,BOT0226T
North Lincolnshire Council,http://data.ordnancesurvey.co.uk/id/7000000000025623,Childrens & Education,Payments To Private Orgs,6002,13/09/2017,5375900,"2,252.20",REVENUE,Bottesford Bunnies Ltd,,BOT0004T
North Lincolnshire Council,http://data.ordnancesurvey.co.uk/id/7000000000025623,Childrens & Education,Legal Fees,5823,19/09/2017,5378902,350.00,REVENUE,Bradbury Roberts & Raby,,BRA0039A
North Lincolnshire Council,http://data.ordnancesurvey.co.uk/id/7000000000025623,Culture & Related Services,Provisions,5201,08/09/2017,5372613,881.33,REVENUE,Brakes Catering Equipment,,BRA0322A
North Lincolnshire Council,http://data.ordnancesurvey.co.uk/id/7000000000025623,Culture & Related Services,Provisions,5201,15/09/2017,5372584,323.66,REVENUE,Brakes Catering Equipment,,BRA0322A
North Lincolnshire Council,http://data.ordnancesurvey.co.uk/id/7000000000025623,Culture & Related Services,Provisions,5201,15/09/2017,5372585,719.61,REVENUE,Brakes Catering Equipment,,BRA0322A
North Lincolnshire Council,http://data.ordnancesurvey.co.uk/id/7000000000025623,Culture & Related Services,Provisions,5201,21/09/2017,5375533,370.43,REVENUE,Brakes Catering Equipment,,BRA0322A
North Lincolnshire Council,http://data.ordnancesurvey.co.uk/id/7000000000025623,Culture & Related Services,Stock Purchases & Adjustments,5030,14/10/2017,5382941,469.40,REVENUE,British Fossils,,BRI0687I
North Lincolnshire Council,http://data.ordnancesurvey.co.uk/id/7000000000025623,Corporate And Democratic Core,Telephone Rent/Calls,5403,13/09/2017,5375610,725.44,REVENUE,British Telecom Plc,1800000,BRI0020I
North Lincolnshire Council,http://data.ordnancesurvey.co.uk/id/7000000000025623,Corporate And Democratic Core,Telephone Rent/Calls,5403,13/09/2017,5375611,651.93,REVENUE,British Telecom Plc,1800000,BRI0020I
North Lincolnshire Council,http://data.ordnancesurvey.co.uk/id/7000000000025623,Environmental & Regulatory Svs,Telephone Rent/Calls,5403,13/09/2017,5374889,"3,179.36",REVENUE,Bt Redcare-Remote Vision,1800000,BTR0004R
North Lincolnshire Council,http://data.ordnancesurvey.co.uk/id/7000000000025623,"Culture,Env,Reg & Planning Cap",Other Costs,A085,19/09/2017,5381056,"48,999.00",CAPITAL,Burringham Parish Council,,BUR0003R
North Lincolnshire Council,http://data.ordnancesurvey.co.uk/id/7000000000025623,Childrens & Education,Payments To Voluntary Orgs,6001,01/09/2017,5372348,"8,660.40",REVENUE,Burton Play,,BUR0352R
North Lincolnshire Council,http://data.ordnancesurvey.co.uk/id/7000000000025623,"Culture,Env,Reg & Planning Cap",Other Costs,A085,06/09/2017,5373884,"3,732.00",CAPITAL,Burton Upon Stather Parish Council,,BUR0468R
North Lincolnshire Council,http://data.ordnancesurvey.co.uk/id/7000000000025623,Childrens & Education,Payments To Private Orgs,6002,15/09/2017,5378537,"25,810.42",REVENUE,Busi Bodies Day Nursery,,BUS0015S
North Lincolnshire Council,http://data.ordnancesurvey.co.uk/id/7000000000025623,Childrens & Education,Course Fees/Training,2002,19/09/2017,5378151,920.00,REVENUE,Calder Training & Consultancy Ltd,,CAL0246L
North Lincolnshire Council,http://data.ordnancesurvey.co.uk/id/7000000000025623,Culture & Related Services,Gas,3101,15/09/2017,5372633,961.22,REVENUE,Calor Gas Ltd,303703,CAL0063L
North Lincolnshire Council,http://data.ordnancesurvey.co.uk/id/7000000000025623,Culture & Related Services,Subscriptions & Memberships,5510,08/09/2017,5375199,471.00,REVENUE,Cambridge University Press,,CAM0100M
North Lincolnshire Council,http://data.ordnancesurvey.co.uk/id/7000000000025623,Culture & Related Services,"Skips/Sanitary Collections,Etc",3321,06/09/2017,5373162,437.62,REVENUE,Cannon Hygiene,3056469,CAN0001N
North Lincolnshire Council,http://data.ordnancesurvey.co.uk/id/7000000000025623,Culture & Related Services,"Skips/Sanitary Collections,Etc",3321,01/10/2017,5372732,402.62,REVENUE,Cannon Hygiene,3056469,CAN0001N
North Lincolnshire Council,http://data.ordnancesurvey.co.uk/id/7000000000025623,Corporate And Democratic Core,Gen Office Exp (Incl Postage),5603,06/09/2017,5374408,"2,974.62",REVENUE,Capita Business Services Ltd,2299747,CAP0021P
North Lincolnshire Council,http://data.ordnancesurvey.co.uk/id/7000000000025623,Corporate And Democratic Core,Gen Office Exp (Incl Postage),5603,06/09/2017,5374410,"3,219.59",REVENUE,Capita Business Services Ltd,2299747,CAP0021P
North Lincolnshire Council,http://data.ordnancesurvey.co.uk/id/7000000000025623,Adult Social Care,Pay - Agency,0131,06/09/2017,5373882,"8,640.00",REVENUE,Capita Resourcing Ltd,3949686,CAP0085P
North Lincolnshire Council,http://data.ordnancesurvey.co.uk/id/7000000000025623,Adult Social Care,Payments To Private Orgs,6002,21/09/2017,5382964,"17,244.25",REVENUE,Care Plus Care Ltd,,CAR0337R
North Lincolnshire Council,http://data.ordnancesurvey.co.uk/id/7000000000025623,Adult Social Care,Payments To Private Orgs,6002,21/09/2017,5382966,"-4,528.75",REVENUE,Care Plus Care Ltd,,CAR0337R
North Lincolnshire Council,http://data.ordnancesurvey.co.uk/id/7000000000025623,Adult Social Care,Payments To Private Orgs,6002,21/09/2017,5382986,"-1,902.32",REVENUE,Care Plus Care Uk Ltd,,ISF0002F
North Lincolnshire Council,http://data.ordnancesurvey.co.uk/id/7000000000025623,Adult Social Care,Payments To Private Orgs,6002,21/09/2017,5382987,"5,741.96",REVENUE,Care Plus Care Uk Ltd,,ISF0002F
North Lincolnshire Council,http://data.ordnancesurvey.co.uk/id/7000000000025623,Adult Social Care,Payments To Private Orgs,6002,21/09/2017,5382987,924.00,REVENUE,Care Plus Care Uk Ltd,,ISF0002F
North Lincolnshire Council,http://data.ordnancesurvey.co.uk/id/7000000000025623,Adult Social Care,Payments To Private Orgs,6002,21/09/2017,5382969,"13,118.00",REVENUE,Care Plus Care (Uk) Ltd (Isle),,CAR0542R
North Lincolnshire Council,http://data.ordnancesurvey.co.uk/id/7000000000025623,Adult Social Care,Payments To Private Orgs,6002,21/09/2017,5382970,"4,860.00",REVENUE,Care Plus Care (Uk) Ltd (Isle),,CAR0542R
North Lincolnshire Council,http://data.ordnancesurvey.co.uk/id/7000000000025623,Adult Social Care,Payments To Private Orgs,6002,21/09/2017,5382971,"2,130.00",REVENUE,Care Plus Care (Uk) Ltd (Isle),,CAR0542R
North Lincolnshire Council,http://data.ordnancesurvey.co.uk/id/7000000000025623,Adult Social Care,Payments To Private Orgs,6002,21/09/2017,5383006,"5,208.00",REVENUE,Care Plus Care Uk Ltd (Isle),,ISF0025F
North Lincolnshire Council,http://data.ordnancesurvey.co.uk/id/7000000000025623,Adult Social Care,Payments To Private Orgs,6002,06/09/2017,5373904,552.00,REVENUE,Care Plus Group,31272R,CAR0264R
North Lincolnshire Council,http://data.ordnancesurvey.co.uk/id/7000000000025623,Adult Social Care,Payments To Private Orgs,6002,21/09/2017,5382962,552.00,REVENUE,Carers' Support Centre,,CAR0131R
North Lincolnshire Council,http://data.ordnancesurvey.co.uk/id/7000000000025623,Adult Social Care,Payments To Private Orgs,6002,21/09/2017,5382962,"9,101.80",REVENUE,Carers' Support Centre,,CAR0131R
North Lincolnshire Council,http://data.ordnancesurvey.co.uk/id/7000000000025623,Adult Social Care,Payments To Private Orgs,6002,21/09/2017,5382988,-820.00,REVENUE,Carers' Support Centre,,ISF0003F
North Lincolnshire Council,http://data.ordnancesurvey.co.uk/id/7000000000025623,Adult Social Care,Payments To Private Orgs,6002,21/09/2017,5382989,416.00,REVENUE,Carers' Support Centre,,ISF0003F
North Lincolnshire Council,http://data.ordnancesurvey.co.uk/id/7000000000025623,Adult Social Care,Payments To Private Orgs,6002,21/09/2017,5382989,"3,924.28",REVENUE,Carers' Support Centre,,ISF0003F
North Lincolnshire Council,http://data.ordnancesurvey.co.uk/id/7000000000025623,Adult Social Care,Pay - Agency,0131,30/08/2017,5370242,"1,428.95",REVENUE,Caritas Recruitment,6728939,CAR0580R
North Lincolnshire Council,http://data.ordnancesurvey.co.uk/id/7000000000025623,Adult Social Care,Pay - Agency,0131,19/09/2017,5378726,"1,672.00",REVENUE,Caritas Recruitment,6728939,CAR0580R
North Lincolnshire Council,http://data.ordnancesurvey.co.uk/id/7000000000025623,Adult Social Care,Pay - Agency,0131,19/09/2017,5378727,"1,786.00",REVENUE,Caritas Recruitment,6728939,CAR0580R
North Lincolnshire Council,http://data.ordnancesurvey.co.uk/id/7000000000025623,Adult Social Care,Pay - Agency,0131,19/09/2017,5378728,"1,786.00",REVENUE,Caritas Recruitment,6728939,CAR0580R
North Lincolnshire Council,http://data.ordnancesurvey.co.uk/id/7000000000025623,Adult Social Care,Pay - Agency,0131,19/09/2017,5378730,"1,406.00",REVENUE,Caritas Recruitment,6728939,CAR0580R
North Lincolnshire Council,http://data.ordnancesurvey.co.uk/id/7000000000025623,Adult Social Care,Pay - Agency,0131,19/09/2017,5378731,"1,216.00",REVENUE,Caritas Recruitment,6728939,CAR0580R
North Lincolnshire Council,http://data.ordnancesurvey.co.uk/id/7000000000025623,Adult Social Care,Pay - Agency,0131,19/09/2017,5378737,"1,710.00",REVENUE,Caritas Recruitment,6728939,CAR0580R
North Lincolnshire Council,http://data.ordnancesurvey.co.uk/id/7000000000025623,Adult Social Care,Pay - Agency,0131,19/09/2017,5378740,"1,786.00",REVENUE,Caritas Recruitment,6728939,CAR0580R
North Lincolnshire Council,http://data.ordnancesurvey.co.uk/id/7000000000025623,Adult Social Care,Pay - Agency,0131,19/09/2017,5378752,"1,406.00",REVENUE,Caritas Recruitment,6728939,CAR0580R
North Lincolnshire Council,http://data.ordnancesurvey.co.uk/id/7000000000025623,Adult Social Care,Pay - Agency,0131,19/09/2017,5378943,684.00,REVENUE,Caritas Recruitment,6728939,CAR0580R
North Lincolnshire Council,http://data.ordnancesurvey.co.uk/id/7000000000025623,Adult Social Care,Pay - Agency,0131,19/09/2017,5378948,"1,672.00",REVENUE,Caritas Recruitment,6728939,CAR0580R
North Lincolnshire Council,http://data.ordnancesurvey.co.uk/id/7000000000025623,Adult Social Care,Pay - Agency,0131,19/09/2017,5378950,"1,406.00",REVENUE,Caritas Recruitment,6728939,CAR0580R
North Lincolnshire Council,http://data.ordnancesurvey.co.uk/id/7000000000025623,Adult Social Care,Pay - Agency,0131,19/09/2017,5378954,"1,786.00",REVENUE,Caritas Recruitment,6728939,CAR0580R
North Lincolnshire Council,http://data.ordnancesurvey.co.uk/id/7000000000025623,Adult Social Care,Pay - Agency,0131,19/09/2017,5378957,"1,406.00",REVENUE,Caritas Recruitment,6728939,CAR0580R
North Lincolnshire Council,http://data.ordnancesurvey.co.uk/id/7000000000025623,Adult Social Care,Pay - Agency,0131,19/09/2017,5378958,"1,406.00",REVENUE,Caritas Recruitment,6728939,CAR0580R
North Lincolnshire Council,http://data.ordnancesurvey.co.uk/id/7000000000025623,Adult Social Care,Pay - Agency,0131,19/09/2017,5378975,"1,406.00",REVENUE,Caritas Recruitment,6728939,CAR0580R
North Lincolnshire Council,http://data.ordnancesurvey.co.uk/id/7000000000025623,Adult Social Care,Pay - Agency,0131,19/09/2017,5378977,"1,406.00",REVENUE,Caritas Recruitment,6728939,CAR0580R
North Lincolnshire Council,http://data.ordnancesurvey.co.uk/id/7000000000025623,Adult Social Care,Pay - Agency,0131,19/09/2017,5378983,"1,786.00",REVENUE,Caritas Recruitment,6728939,CAR0580R
North Lincolnshire Council,http://data.ordnancesurvey.co.uk/id/7000000000025623,Adult Social Care,Pay - Agency,0131,19/09/2017,5379074,"-1,406.00",REVENUE,Caritas Recruitment,6728939,CAR0580R
North Lincolnshire Council,http://data.ordnancesurvey.co.uk/id/7000000000025623,Childrens & Education,Pay - Agency,0131,19/09/2017,5378927,918.72,REVENUE,Caritas Recruitment,6728939,CAR0580R
North Lincolnshire Council,http://data.ordnancesurvey.co.uk/id/7000000000025623,Childrens & Education,Payments To Private Orgs,6002,01/09/2017,5372386,504.00,REVENUE,Carlie Peake,,PEA0152A
North Lincolnshire Council,http://data.ordnancesurvey.co.uk/id/7000000000025623,Childrens & Education,Client Related Costs,5534,19/09/2017,5381769,"1,038.00",REVENUE,Carl Meechan,,MEE0165E
North Lincolnshire Council,http://data.ordnancesurvey.co.uk/id/7000000000025623,Culture & Related Services,Fuel,4001,08/09/2017,5371713,926.80,REVENUE,Carlton Fuels,04168225,CAR0127R
North Lincolnshire Council,http://data.ordnancesurvey.co.uk/id/7000000000025623,Culture & Related Services,Fuel,4001,08/09/2017,5374757,688.65,REVENUE,Carlton Fuels,04168225,CAR0127R
North Lincolnshire Council,http://data.ordnancesurvey.co.uk/id/7000000000025623,Culture & Related Services,Fuel,4001,15/10/2017,5377750,477.90,REVENUE,Carlton Fuels,04168225,CAR0127R
North Lincolnshire Council,http://data.ordnancesurvey.co.uk/id/7000000000025623,Culture & Related Services,Heating Fuels,3104,15/10/2017,5379269,477.90,REVENUE,Carlton Fuels,04168225,CAR0127R
North Lincolnshire Council,http://data.ordnancesurvey.co.uk/id/7000000000025623,Culture & Related Services,Heating Fuels,3104,15/10/2017,5379275,716.85,REVENUE,Carlton Fuels,04168225,CAR0127R
North Lincolnshire Council,http://data.ordnancesurvey.co.uk/id/7000000000025623,Fin&Inv I&E,Fuel,4001,15/10/2017,5383654,"32,756.50",REVENUE,Carlton Fuels,04168225,CAR0127R
North Lincolnshire Council,http://data.ordnancesurvey.co.uk/id/7000000000025623,Corporate And Democratic Core,Legal Fees,5823,13/09/2017,5372310,"1,691.20",REVENUE,Carter Brown The Expert Service,,CAR0564R
North Lincolnshire Council,http://data.ordnancesurvey.co.uk/id/7000000000025623,Childrens & Education,Client Related Costs,5534,08/09/2017,5374825,300.00,REVENUE,Castledyke Ltd,,CAS0095S
North Lincolnshire Council,http://data.ordnancesurvey.co.uk/id/7000000000025623,Childrens & Education,Payments To Private Orgs,6002,01/09/2017,5372350,"9,372.42",REVENUE,Castledyke Ltd,,CAS0095S
North Lincolnshire Council,http://data.ordnancesurvey.co.uk/id/7000000000025623,Fin&Inv I&E,Other Supplies & Services,5799,15/09/2017,5377990,441.99,REVENUE,Cathedral Leasing Ltd,,CAT0020T
North Lincolnshire Council,http://data.ordnancesurvey.co.uk/id/7000000000025623,Highways & Transport,Repair & Maintenance Costs,3000,04/10/2017,5378009,624.00,REVENUE,Cathedral Leasing Ltd,,CAT0020T
North Lincolnshire Council,http://data.ordnancesurvey.co.uk/id/7000000000025623,Culture & Related Services,Equipment Purchase,5001,06/09/2017,5373160,240.00,REVENUE,Ccr,,CCR0001R
North Lincolnshire Council,http://data.ordnancesurvey.co.uk/id/7000000000025623,Culture & Related Services,Materials,5004,13/09/2017,5375549,730.00,REVENUE,Ccr,,CCR0001R
North Lincolnshire Council,http://data.ordnancesurvey.co.uk/id/7000000000025623,Adult Social Care,"Clothing, Uniforms & Laundry",5301,21/09/2017,5381119,822.08,REVENUE,Central Laundry Ltd,06765045,CEN0085N
North Lincolnshire Council,http://data.ordnancesurvey.co.uk/id/7000000000025623,Adult Social Care,"Clothing, Uniforms & Laundry",5301,21/09/2017,5381132,747.11,REVENUE,Central Laundry Ltd,06765045,CEN0085N
North Lincolnshire Council,http://data.ordnancesurvey.co.uk/id/7000000000025623,Environmental & Regulatory Svs,Course Fees/Training,2002,21/09/2017,5374305,"1,895.00",REVENUE,Central Law Training,,CEN0018N
North Lincolnshire Council,http://data.ordnancesurvey.co.uk/id/7000000000025623,Adult Social Care,Payments To Health Providers,6019,08/09/2017,5374409,"1,301.29",REVENUE,Central Surgery,,DIC0005C
North Lincolnshire Council,http://data.ordnancesurvey.co.uk/id/7000000000025623,Public Health,Payments To Health Providers,6019,08/09/2017,5374409,560.00,REVENUE,Central Surgery,,DIC0005C
North Lincolnshire Council,http://data.ordnancesurvey.co.uk/id/7000000000025623,Culture & Related Services,Other Supplies & Services,5799,30/09/2017,5376635,525.00,REVENUE,Centurion Site Services Limited,,CEN0103N
North Lincolnshire Council,http://data.ordnancesurvey.co.uk/id/7000000000025623,Corporate And Democratic Core,It Software-Maintenance,5053,13/09/2017,5375392,"6,940.08",REVENUE,Certero Ltd,,CER0002R
North Lincolnshire Council,http://data.ordnancesurvey.co.uk/id/7000000000025623,Public Health,Payments To Health Providers,6019,19/09/2017,5379713,"5,792.40",REVENUE,Cgl,3861209,CRI0001I
North Lincolnshire Council,http://data.ordnancesurvey.co.uk/id/7000000000025623,Culture & Related Services,Stock Purchases & Adjustments,5030,13/09/2017,5376591,493.13,REVENUE,Chapterhouse Theatre Company,,CHA0363A
North Lincolnshire Council,http://data.ordnancesurvey.co.uk/id/7000000000025623,Culture & Related Services,Equipment Purchase,5001,13/09/2017,5375227,880.00,REVENUE,Charles H Hill Ltd,,HIL0352L
North Lincolnshire Council,http://data.ordnancesurvey.co.uk/id/7000000000025623,Environmental & Regulatory Svs,Payments To Private Orgs,6002,01/10/2017,5379807,315.00,REVENUE,Chemtech Waste Management Ltd,03244279,CHE0152E
North Lincolnshire Council,http://data.ordnancesurvey.co.uk/id/7000000000025623,Environmental & Regulatory Svs,Payments To Private Orgs,6002,01/10/2017,5379808,570.00,REVENUE,Chemtech Waste Management Ltd,03244279,CHE0152E
North Lincolnshire Council,http://data.ordnancesurvey.co.uk/id/7000000000025623,Environmental & Regulatory Svs,Payments To Private Orgs,6002,01/10/2017,5379809,540.00,REVENUE,Chemtech Waste Management Ltd,03244279,CHE0152E
North Lincolnshire Council,http://data.ordnancesurvey.co.uk/id/7000000000025623,Adult Social Care,Payments To Private Orgs,6002,21/09/2017,5382972,"4,253.57",REVENUE,Chestnut Homecare Ltd,,CHE0222E
North Lincolnshire Council,http://data.ordnancesurvey.co.uk/id/7000000000025623,Adult Social Care,Payments To Private Orgs,6002,21/09/2017,5382973,-900.57,REVENUE,Chestnut Homecare Ltd,,CHE0222E
North Lincolnshire Council,http://data.ordnancesurvey.co.uk/id/7000000000025623,Adult Social Care,Payments To Private Orgs,6002,21/09/2017,5382974,"27,912.48",REVENUE,Chestnut Homecare Ltd,,CHE0222E
North Lincolnshire Council,http://data.ordnancesurvey.co.uk/id/7000000000025623,Adult Social Care,Payments To Private Orgs,6002,21/09/2017,5383010,"4,403.52",REVENUE,Chestnut Homecare Ltd,,ISF0027F
North Lincolnshire Council,http://data.ordnancesurvey.co.uk/id/7000000000025623,Childrens & Education,Examination Fees,5730,14/10/2017,5382718,321.00,REVENUE,City & Guilds,312832,CIT0025T
North Lincolnshire Council,http://data.ordnancesurvey.co.uk/id/7000000000025623,Adult Social Care,Payments To Health Providers,6019,15/09/2017,5374416,"1,626.00",REVENUE,City Health Care Partnership Cic,,HUL0022L
North Lincolnshire Council,http://data.ordnancesurvey.co.uk/id/7000000000025623,Adult Social Care,It Software-Purchase,5051,21/09/2017,5373899,"3,684.80",REVENUE,Civica Uk Ltd,1628868,CIV0010V
North Lincolnshire Council,http://data.ordnancesurvey.co.uk/id/7000000000025623,Adult Social Care,Other Supplies & Services,5799,21/09/2017,5373889,"6,208.22",REVENUE,Civica Uk Ltd,1628868,CIV0010V
North Lincolnshire Council,http://data.ordnancesurvey.co.uk/id/7000000000025623,Corporate And Democratic Core,It Software-Maintenance,5053,08/09/2017,5375086,"30,000.00",REVENUE,Civica Uk Ltd,1628868,CIV0010V
North Lincolnshire Council,http://data.ordnancesurvey.co.uk/id/7000000000025623,Support Servs Capital,It Equipment,A098,08/09/2017,5375087,"5,249.00",CAPITAL,Civica Uk Ltd,1628868,CIV0010V
North Lincolnshire Council,http://data.ordnancesurvey.co.uk/id/7000000000025623,Adult Social Care,Payments To Private Orgs,6002,21/09/2017,5383011,"22,197.92",REVENUE,Clark James,,ISF0030F
North Lincolnshire Council,http://data.ordnancesurvey.co.uk/id/7000000000025623,Adult Social Care,"Clothing, Uniforms & Laundry",5301,19/09/2017,5375569,278.90,REVENUE,Cleaning & Paper Disposables Plc,,CLE0051E
North Lincolnshire Council,http://data.ordnancesurvey.co.uk/id/7000000000025623,Environmental & Regulatory Svs,Other Supplies & Services,5799,30/09/2017,5375239,"1,590.00",REVENUE,Clearway Environmental Services Ltd,,CLE0018E
North Lincolnshire Council,http://data.ordnancesurvey.co.uk/id/7000000000025623,Highways & Transport,Other Supplies & Services,5799,01/09/2017,5371736,688.00,REVENUE,Clearway Environmental Services Ltd,,CLE0018E
North Lincolnshire Council,http://data.ordnancesurvey.co.uk/id/7000000000025623,Highways & Transport,Other Supplies & Services,5799,01/09/2017,5371738,"1,244.00",REVENUE,Clearway Environmental Services Ltd,,CLE0018E
North Lincolnshire Council,http://data.ordnancesurvey.co.uk/id/7000000000025623,Highways & Transport,Other Supplies & Services,5799,01/09/2017,5371739,688.00,REVENUE,Clearway Environmental Services Ltd,,CLE0018E
North Lincolnshire Council,http://data.ordnancesurvey.co.uk/id/7000000000025623,Highways & Transport,Other Supplies & Services,5799,06/09/2017,5371742,688.00,REVENUE,Clearway Environmental Services Ltd,,CLE0018E
North Lincolnshire Council,http://data.ordnancesurvey.co.uk/id/7000000000025623,Highways & Transport,Other Supplies & Services,5799,06/09/2017,5371743,688.00,REVENUE,Clearway Environmental Services Ltd,,CLE0018E
North Lincolnshire Council,http://data.ordnancesurvey.co.uk/id/7000000000025623,Highways & Transport,Other Supplies & Services,5799,13/09/2017,5371726,688.00,REVENUE,Clearway Environmental Services Ltd,,CLE0018E
North Lincolnshire Council,http://data.ordnancesurvey.co.uk/id/7000000000025623,Highways & Transport,Other Supplies & Services,5799,13/09/2017,5371733,970.00,REVENUE,Clearway Environmental Services Ltd,,CLE0018E
North Lincolnshire Council,http://data.ordnancesurvey.co.uk/id/7000000000025623,Highways & Transport,Other Supplies & Services,5799,13/09/2017,5371744,688.00,REVENUE,Clearway Environmental Services Ltd,,CLE0018E
North Lincolnshire Council,http://data.ordnancesurvey.co.uk/id/7000000000025623,Highways & Transport,Other Supplies & Services,5799,15/09/2017,5371717,766.00,REVENUE,Clearway Environmental Services Ltd,,CLE0018E
North Lincolnshire Council,http://data.ordnancesurvey.co.uk/id/7000000000025623,Highways & Transport,Other Supplies & Services,5799,15/09/2017,5371730,688.00,REVENUE,Clearway Environmental Services Ltd,,CLE0018E
North Lincolnshire Council,http://data.ordnancesurvey.co.uk/id/7000000000025623,Highways & Transport,Other Supplies & Services,5799,30/09/2017,5375237,868.00,REVENUE,Clearway Environmental Services Ltd,,CLE0018E
North Lincolnshire Council,http://data.ordnancesurvey.co.uk/id/7000000000025623,Highways & Transport,Other Supplies & Services,5799,30/09/2017,5375240,688.00,REVENUE,Clearway Environmental Services Ltd,,CLE0018E
North Lincolnshire Council,http://data.ordnancesurvey.co.uk/id/7000000000025623,Adult Social Care,Payments To Private Orgs,6002,06/09/2017,5374153,221.66,REVENUE,Click Travel Limited,03770815,CLI0015I
North Lincolnshire Council,http://data.ordnancesurvey.co.uk/id/7000000000025623,Adult Social Care,Payments To Private Orgs,6002,06/09/2017,5374153,8.32,REVENUE,Click Travel Limited,03770815,CLI0015I
North Lincolnshire Council,http://data.ordnancesurvey.co.uk/id/7000000000025623,Adult Social Care,Payments To Private Orgs,6002,13/09/2017,5376501,108.34,REVENUE,Click Travel Limited,03770815,CLI0015I
North Lincolnshire Council,http://data.ordnancesurvey.co.uk/id/7000000000025623,Adult Social Care,Rail & Other Fares,4121,06/09/2017,5374153,182.60,REVENUE,Click Travel Limited,03770815,CLI0015I
North Lincolnshire Council,http://data.ordnancesurvey.co.uk/id/7000000000025623,Adult Social Care,Rail & Other Fares,4121,06/09/2017,5374153,534.80,REVENUE,Click Travel Limited,03770815,CLI0015I
North Lincolnshire Council,http://data.ordnancesurvey.co.uk/id/7000000000025623,Adult Social Care,Rail & Other Fares,4121,06/09/2017,5374160,-243.00,REVENUE,Click Travel Limited,03770815,CLI0015I
North Lincolnshire Council,http://data.ordnancesurvey.co.uk/id/7000000000025623,Adult Social Care,Rail & Other Fares,4121,13/09/2017,5376501,191.50,REVENUE,Click Travel Limited,03770815,CLI0015I
North Lincolnshire Council,http://data.ordnancesurvey.co.uk/id/7000000000025623,Adult Social Care,Rail & Other Fares,4121,13/09/2017,5376541,-44.60,REVENUE,Click Travel Limited,03770815,CLI0015I
North Lincolnshire Council,http://data.ordnancesurvey.co.uk/id/7000000000025623,Adult Social Care,Subsistence & Expenses (Staff),5720,06/09/2017,5374153,245.76,REVENUE,Click Travel Limited,03770815,CLI0015I
North Lincolnshire Council,http://data.ordnancesurvey.co.uk/id/7000000000025623,Childrens & Education,Client Transport Costs,6092,06/09/2017,5374153,"1,239.45",REVENUE,Click Travel Limited,03770815,CLI0015I
North Lincolnshire Council,http://data.ordnancesurvey.co.uk/id/7000000000025623,Childrens & Education,Client Transport Costs,6092,13/09/2017,5376501,"1,282.00",REVENUE,Click Travel Limited,03770815,CLI0015I
North Lincolnshire Council,http://data.ordnancesurvey.co.uk/id/7000000000025623,Childrens & Education,Client Transport Costs,6092,13/09/2017,5376541,-27.90,REVENUE,Click Travel Limited,03770815,CLI0015I
North Lincolnshire Council,http://data.ordnancesurvey.co.uk/id/7000000000025623,Childrens & Education,Other Incidental Travel Costs,4311,13/09/2017,5376501,163.50,REVENUE,Click Travel Limited,03770815,CLI0015I
North Lincolnshire Council,http://data.ordnancesurvey.co.uk/id/7000000000025623,Childrens & Education,Other Supplies & Services,5799,06/09/2017,5374153,120.75,REVENUE,Click Travel Limited,03770815,CLI0015I
North Lincolnshire Council,http://data.ordnancesurvey.co.uk/id/7000000000025623,Childrens & Education,Payments To Private Orgs,6002,06/09/2017,5374153,86.67,REVENUE,Click Travel Limited,03770815,CLI0015I
North Lincolnshire Council,http://data.ordnancesurvey.co.uk/id/7000000000025623,Childrens & Education,Payments To Private Orgs,6002,06/09/2017,5374153,16.65,REVENUE,Click Travel Limited,03770815,CLI0015I
North Lincolnshire Council,http://data.ordnancesurvey.co.uk/id/7000000000025623,Childrens & Education,Payments To Private Orgs,6002,06/09/2017,5374153,120.75,REVENUE,Click Travel Limited,03770815,CLI0015I
North Lincolnshire Council,http://data.ordnancesurvey.co.uk/id/7000000000025623,Childrens & Education,Rail & Other Fares,4121,06/09/2017,5374153,283.90,REVENUE,Click Travel Limited,03770815,CLI0015I
North Lincolnshire Council,http://data.ordnancesurvey.co.uk/id/7000000000025623,Childrens & Education,Rail & Other Fares,4121,06/09/2017,5374153,501.37,REVENUE,Click Travel Limited,03770815,CLI0015I
North Lincolnshire Council,http://data.ordnancesurvey.co.uk/id/7000000000025623,Childrens & Education,Rail & Other Fares,4121,06/09/2017,5374160,-128.70,REVENUE,Click Travel Limited,03770815,CLI0015I
North Lincolnshire Council,http://data.ordnancesurvey.co.uk/id/7000000000025623,Childrens & Education,Rail & Other Fares,4121,13/09/2017,5376501,500.15,REVENUE,Click Travel Limited,03770815,CLI0015I
North Lincolnshire Council,http://data.ordnancesurvey.co.uk/id/7000000000025623,Childrens & Education,Rail & Other Fares,4121,13/09/2017,5376501,494.93,REVENUE,Click Travel Limited,03770815,CLI0015I
North Lincolnshire Council,http://data.ordnancesurvey.co.uk/id/7000000000025623,Childrens & Education,Rail & Other Fares,4121,13/09/2017,5376541,-100.73,REVENUE,Click Travel Limited,03770815,CLI0015I
North Lincolnshire Council,http://data.ordnancesurvey.co.uk/id/7000000000025623,Corporate And Democratic Core,Car And Travel Allowances,4306,06/09/2017,5374153,6.10,REVENUE,Click Travel Limited,03770815,CLI0015I
North Lincolnshire Council,http://data.ordnancesurvey.co.uk/id/7000000000025623,Corporate And Democratic Core,Car And Travel Allowances,4306,13/09/2017,5376501,60.70,REVENUE,Click Travel Limited,03770815,CLI0015I
North Lincolnshire Council,http://data.ordnancesurvey.co.uk/id/7000000000025623,Corporate And Democratic Core,Other Professional Fees,5829,06/09/2017,5374153,120.00,REVENUE,Click Travel Limited,03770815,CLI0015I
North Lincolnshire Council,http://data.ordnancesurvey.co.uk/id/7000000000025623,Corporate And Democratic Core,Other Professional Fees,5829,13/09/2017,5376501,120.00,REVENUE,Click Travel Limited,03770815,CLI0015I
North Lincolnshire Council,http://data.ordnancesurvey.co.uk/id/7000000000025623,Corporate And Democratic Core,Rail & Other Fares,4121,06/09/2017,5374153,768.60,REVENUE,Click Travel Limited,03770815,CLI0015I
North Lincolnshire Council,http://data.ordnancesurvey.co.uk/id/7000000000025623,Corporate And Democratic Core,Rail & Other Fares,4121,06/09/2017,5374153,83.85,REVENUE,Click Travel Limited,03770815,CLI0015I
North Lincolnshire Council,http://data.ordnancesurvey.co.uk/id/7000000000025623,Corporate And Democratic Core,Rail & Other Fares,4121,06/09/2017,5374160,-42.50,REVENUE,Click Travel Limited,03770815,CLI0015I
North Lincolnshire Council,http://data.ordnancesurvey.co.uk/id/7000000000025623,Corporate And Democratic Core,Rail & Other Fares,4121,13/09/2017,5376501,49.60,REVENUE,Click Travel Limited,03770815,CLI0015I
North Lincolnshire Council,http://data.ordnancesurvey.co.uk/id/7000000000025623,Corporate And Democratic Core,Rail & Other Fares,4121,13/09/2017,5376501,188.35,REVENUE,Click Travel Limited,03770815,CLI0015I
North Lincolnshire Council,http://data.ordnancesurvey.co.uk/id/7000000000025623,Corporate And Democratic Core,Vehicle Hire,4101,06/09/2017,5374153,21.80,REVENUE,Click Travel Limited,03770815,CLI0015I
North Lincolnshire Council,http://data.ordnancesurvey.co.uk/id/7000000000025623,Corporate And Democratic Core,Vehicle Hire,4101,13/09/2017,5376501,15.70,REVENUE,Click Travel Limited,03770815,CLI0015I
North Lincolnshire Council,http://data.ordnancesurvey.co.uk/id/7000000000025623,Culture & Related Services,Exhibitions/Events,5709,06/09/2017,5374153,41.00,REVENUE,Click Travel Limited,03770815,CLI0015I
North Lincolnshire Council,http://data.ordnancesurvey.co.uk/id/7000000000025623,Culture & Related Services,Exhibitions/Events,5709,13/09/2017,5376501,127.24,REVENUE,Click Travel Limited,03770815,CLI0015I
North Lincolnshire Council,http://data.ordnancesurvey.co.uk/id/7000000000025623,Culture & Related Services,Other Supplies & Services,5799,06/09/2017,5374153,138.21,REVENUE,Click Travel Limited,03770815,CLI0015I
North Lincolnshire Council,http://data.ordnancesurvey.co.uk/id/7000000000025623,Culture & Related Services,Other Supplies & Services,5799,13/09/2017,5376501,17.50,REVENUE,Click Travel Limited,03770815,CLI0015I
North Lincolnshire Council,http://data.ordnancesurvey.co.uk/id/7000000000025623,Culture & Related Services,Rail & Other Fares,4121,06/09/2017,5374153,273.90,REVENUE,Click Travel Limited,03770815,CLI0015I
North Lincolnshire Council,http://data.ordnancesurvey.co.uk/id/7000000000025623,Environmental & Regulatory Svs,Other Supplies & Services,5799,06/09/2017,5374153,174.00,REVENUE,Click Travel Limited,03770815,CLI0015I
North Lincolnshire Council,http://data.ordnancesurvey.co.uk/id/7000000000025623,Environmental & Regulatory Svs,Other Supplies & Services,5799,13/09/2017,5376501,28.00,REVENUE,Click Travel Limited,03770815,CLI0015I
North Lincolnshire Council,http://data.ordnancesurvey.co.uk/id/7000000000025623,Environmental & Regulatory Svs,Rail & Other Fares,4121,06/09/2017,5374153,31.80,REVENUE,Click Travel Limited,03770815,CLI0015I
North Lincolnshire Council,http://data.ordnancesurvey.co.uk/id/7000000000025623,Environmental & Regulatory Svs,Rail & Other Fares,4121,13/09/2017,5376501,132.80,REVENUE,Click Travel Limited,03770815,CLI0015I
North Lincolnshire Council,http://data.ordnancesurvey.co.uk/id/7000000000025623,Highways & Transport,Rail & Other Fares,4121,06/09/2017,5374153,164.60,REVENUE,Click Travel Limited,03770815,CLI0015I
North Lincolnshire Council,http://data.ordnancesurvey.co.uk/id/7000000000025623,Highways & Transport,Rail & Other Fares,4121,13/09/2017,5376501,52.80,REVENUE,Click Travel Limited,03770815,CLI0015I
North Lincolnshire Council,http://data.ordnancesurvey.co.uk/id/7000000000025623,Housing Services,Rail & Other Fares,4121,06/09/2017,5374153,118.90,REVENUE,Click Travel Limited,03770815,CLI0015I
North Lincolnshire Council,http://data.ordnancesurvey.co.uk/id/7000000000025623,Housing Services,Rail & Other Fares,4121,13/09/2017,5376501,76.10,REVENUE,Click Travel Limited,03770815,CLI0015I
North Lincolnshire Council,http://data.ordnancesurvey.co.uk/id/7000000000025623,Housing Services,Rail & Other Fares,4121,13/09/2017,5376541,-64.30,REVENUE,Click Travel Limited,03770815,CLI0015I
North Lincolnshire Council,http://data.ordnancesurvey.co.uk/id/7000000000025623,Planning Services,Car And Travel Allowances,4306,13/09/2017,5376501,52.50,REVENUE,Click Travel Limited,03770815,CLI0015I
North Lincolnshire Council,http://data.ordnancesurvey.co.uk/id/7000000000025623,Planning Services,Other Supplies & Services,5799,13/09/2017,5376501,24.40,REVENUE,Click Travel Limited,03770815,CLI0015I
North Lincolnshire Council,http://data.ordnancesurvey.co.uk/id/7000000000025623,Planning Services,Rail & Other Fares,4121,06/09/2017,5374153,172.30,REVENUE,Click Travel Limited,03770815,CLI0015I
North Lincolnshire Council,http://data.ordnancesurvey.co.uk/id/7000000000025623,Planning Services,Rail & Other Fares,4121,13/09/2017,5376501,36.00,REVENUE,Click Travel Limited,03770815,CLI0015I
North Lincolnshire Council,http://data.ordnancesurvey.co.uk/id/7000000000025623,Public Health,Car And Travel Allowances,4306,13/09/2017,5376501,108.40,REVENUE,Click Travel Limited,03770815,CLI0015I
North Lincolnshire Council,http://data.ordnancesurvey.co.uk/id/7000000000025623,Public Health,Rail & Other Fares,4121,13/09/2017,5376501,167.00,REVENUE,Click Travel Limited,03770815,CLI0015I
North Lincolnshire Council,http://data.ordnancesurvey.co.uk/id/7000000000025623,Adult Social Care,Payments To Private Orgs,6002,30/09/2017,5374418,"12,670.77",REVENUE,Cloverleaf Advocacy 2000 Ltd,,CLO0101O
North Lincolnshire Council,http://data.ordnancesurvey.co.uk/id/7000000000025623,"Culture,Env,Reg & Planning Cap",Building/Construction,A082,01/09/2017,5371774,"21,262.49",CAPITAL,Clugston Construction Ltd,681537,CLU0001U
North Lincolnshire Council,http://data.ordnancesurvey.co.uk/id/7000000000025623,"Culture,Env,Reg & Planning Cap",Building/Construction,A082,01/09/2017,5371774,"195,025.49",CAPITAL,Clugston Construction Ltd,681537,CLU0001U
North Lincolnshire Council,http://data.ordnancesurvey.co.uk/id/7000000000025623,Culture & Related Services,Other Supplies & Services,5799,01/09/2017,5371774,"8,617.07",REVENUE,Clugston Construction Ltd,681537,CLU0001U
North Lincolnshire Council,http://data.ordnancesurvey.co.uk/id/7000000000025623,Highways & Transport,Other Professional Fees,5829,30/09/2017,5375437,262.64,REVENUE,Cobalt Telephone Technologies Ltd,3151938,COB0031B
North Lincolnshire Council,http://data.ordnancesurvey.co.uk/id/7000000000025623,Childrens & Education,Subscriptions & Memberships,5510,30/09/2017,5378600,"1,830.00",REVENUE,Compass Computer Consultants Ltd,2211500,COM0072M
North Lincolnshire Council,http://data.ordnancesurvey.co.uk/id/7000000000025623,Adult Social Care,Equipment Purchase,5001,21/09/2017,5374809,"1,258.00",REVENUE,Complete Office Solutions (Uk) Ltd,3045607,AQU0001U
North Lincolnshire Council,http://data.ordnancesurvey.co.uk/id/7000000000025623,Central Services To Public,Equipment Purchase,5001,16/10/2017,5378784,980.00,REVENUE,Complete Office Solutions (Uk) Ltd,3045607,AQU0001U
North Lincolnshire Council,http://data.ordnancesurvey.co.uk/id/7000000000025623,Corporate And Democratic Core,Equipment Purchase,5001,21/09/2017,5374810,222.00,REVENUE,Complete Office Solutions (Uk) Ltd,3045607,AQU0001U
North Lincolnshire Council,http://data.ordnancesurvey.co.uk/id/7000000000025623,Corporate And Democratic Core,Equipment Purchase,5001,21/09/2017,5374811,"1,184.00",REVENUE,Complete Office Solutions (Uk) Ltd,3045607,AQU0001U
North Lincolnshire Council,http://data.ordnancesurvey.co.uk/id/7000000000025623,Corporate And Democratic Core,Repair & Maintenance Costs,3000,08/09/2017,5374142,888.00,REVENUE,Complete Office Solutions (Uk) Ltd,3045607,AQU0001U
North Lincolnshire Council,http://data.ordnancesurvey.co.uk/id/7000000000025623,Environmental & Regulatory Svs,Equipment Purchase,5001,13/09/2017,5374301,881.25,REVENUE,Complete Office Solutions (Uk) Ltd,3045607,AQU0001U
North Lincolnshire Council,http://data.ordnancesurvey.co.uk/id/7000000000025623,Adult Social Care,Equipment Purchase,5001,13/09/2017,5370048,238.51,REVENUE,Computacenter (Uk) Ltd,1584718,COM0070M
North Lincolnshire Council,http://data.ordnancesurvey.co.uk/id/7000000000025623,Adult Social Care,It Hardware -Purchase,5050,13/09/2017,5370148,367.98,REVENUE,Computacenter (Uk) Ltd,1584718,COM0070M
North Lincolnshire Council,http://data.ordnancesurvey.co.uk/id/7000000000025623,Corporate And Democratic Core,It Hardware -Purchase,5050,13/09/2017,5370060,733.80,REVENUE,Computacenter (Uk) Ltd,1584718,COM0070M
North Lincolnshire Council,http://data.ordnancesurvey.co.uk/id/7000000000025623,Childrens & Education,Payments To Private Orgs,6002,01/09/2017,5372353,"11,044.68",REVENUE,Coneygarth Farm Day Nursery,,CON0013N
North Lincolnshire Council,http://data.ordnancesurvey.co.uk/id/7000000000025623,Culture & Related Services,Provisions,5201,08/09/2017,5372478,293.63,REVENUE,Conviviality Group Ltd,,MAT0125T
North Lincolnshire Council,http://data.ordnancesurvey.co.uk/id/7000000000025623,Culture & Related Services,Equipment Purchase,5001,08/09/2017,5375434,365.30,REVENUE,Cosy,7483416,COS0005S
North Lincolnshire Council,http://data.ordnancesurvey.co.uk/id/7000000000025623,Culture & Related Services,Stock Purchases & Adjustments,5030,13/09/2017,5375895,360.00,REVENUE,Countryside Arts,,COU0097U
North Lincolnshire Council,http://data.ordnancesurvey.co.uk/id/7000000000025623,Adult Social Care,Payments To Private Orgs,6002,21/09/2017,5382976,"56,220.84",REVENUE,Creative Support,,CRE0144E
North Lincolnshire Council,http://data.ordnancesurvey.co.uk/id/7000000000025623,Adult Social Care,Payments To Private Orgs,6002,21/09/2017,5382976,"5,286.12",REVENUE,Creative Support,,CRE0144E
North Lincolnshire Council,http://data.ordnancesurvey.co.uk/id/7000000000025623,Adult Social Care,Payments To Private Orgs,6002,21/09/2017,5382977,-880.11,REVENUE,Creative Support,,CRE0144E
North Lincolnshire Council,http://data.ordnancesurvey.co.uk/id/7000000000025623,Adult Social Care,Payments To Private Orgs,6002,21/09/2017,5383001,"3,273.16",REVENUE,Creative Support Ltd,,ISF0013F
North Lincolnshire Council,http://data.ordnancesurvey.co.uk/id/7000000000025623,Adult Social Care,Payments To Private Orgs,6002,21/09/2017,5383001,"23,819.80",REVENUE,Creative Support Ltd,,ISF0013F
North Lincolnshire Council,http://data.ordnancesurvey.co.uk/id/7000000000025623,Adult Social Care,Payments To Private Orgs,6002,21/09/2017,5383002,-940.34,REVENUE,Creative Support Ltd,,ISF0013F
North Lincolnshire Council,http://data.ordnancesurvey.co.uk/id/7000000000025623,Environmental & Regulatory Svs,Materials,5004,06/09/2017,5371581,"1,166.40",REVENUE,Cromwell Polythene Ltd,2230104,CRO0048O
North Lincolnshire Council,http://data.ordnancesurvey.co.uk/id/7000000000025623,Planning Services,Payments To Voluntary Orgs,6001,21/09/2017,5382842,"4,000.00",REVENUE,Crowle & Ealand 1940s Weekend,,CRO0134O
North Lincolnshire Council,http://data.ordnancesurvey.co.uk/id/7000000000025623,Fin&Inv I&E,Consultancy,5830,13/09/2017,5377410,380.66,REVENUE,C R Parrott Consultants Ltd,3622915,PAR0011R
North Lincolnshire Council,http://data.ordnancesurvey.co.uk/id/7000000000025623,Childrens & Education,Repair & Maintenance Costs,3000,06/09/2017,5373175,130.00,REVENUE,C S L (Dualcom) Ltd,03155883,CSL0003L
North Lincolnshire Council,http://data.ordnancesurvey.co.uk/id/7000000000025623,Childrens & Education,Repair & Maintenance Costs,3000,01/10/2017,5382460,129.00,REVENUE,C S L (Dualcom) Ltd,03155883,CSL0003L
North Lincolnshire Council,http://data.ordnancesurvey.co.uk/id/7000000000025623,Childrens & Education,Repair & Maintenance Costs,3000,01/10/2017,5382460,258.00,REVENUE,C S L (Dualcom) Ltd,03155883,CSL0003L
North Lincolnshire Council,http://data.ordnancesurvey.co.uk/id/7000000000025623,Corporate And Democratic Core,Repair & Maintenance Costs,3000,06/09/2017,5373175,0,REVENUE,C S L (Dualcom) Ltd,03155883,CSL0003L
North Lincolnshire Council,http://data.ordnancesurvey.co.uk/id/7000000000025623,Corporate And Democratic Core,Repair & Maintenance Costs,3000,01/10/2017,5382460,"1,806.00",REVENUE,C S L (Dualcom) Ltd,03155883,CSL0003L
North Lincolnshire Council,http://data.ordnancesurvey.co.uk/id/7000000000025623,Culture & Related Services,Repair & Maintenance Costs,3000,06/09/2017,5373175,130.00,REVENUE,C S L (Dualcom) Ltd,03155883,CSL0003L
North Lincolnshire Council,http://data.ordnancesurvey.co.uk/id/7000000000025623,Culture & Related Services,Repair & Maintenance Costs,3000,01/10/2017,5382460,129.00,REVENUE,C S L (Dualcom) Ltd,03155883,CSL0003L
North Lincolnshire Council,http://data.ordnancesurvey.co.uk/id/7000000000025623,Fin&Inv I&E,Repair & Maintenance Costs,3000,01/10/2017,5382460,129.00,REVENUE,C S L (Dualcom) Ltd,03155883,CSL0003L
North Lincolnshire Council,http://data.ordnancesurvey.co.uk/id/7000000000025623,Fin&Inv I&E,Repair & Maintenance Costs,3000,01/10/2017,5382460,"-1,419.00",REVENUE,C S L (Dualcom) Ltd,03155883,CSL0003L
North Lincolnshire Council,http://data.ordnancesurvey.co.uk/id/7000000000025623,Highways & Transport,Repair & Maintenance Costs,3000,01/10/2017,5382460,129.00,REVENUE,C S L (Dualcom) Ltd,03155883,CSL0003L
North Lincolnshire Council,http://data.ordnancesurvey.co.uk/id/7000000000025623,Fin&Inv I&E,Other Vehicle Costs,4005,01/10/2017,5379112,"2,232.87",REVENUE,Ctrack Ltd,04643588,CTR0001R
North Lincolnshire Council,http://data.ordnancesurvey.co.uk/id/7000000000025623,Fin&Inv I&E,It Software-Maintenance,5053,19/09/2017,5381152,405.00,REVENUE,Cunninghams Cash Registers Ltd,1221095,CUN0030N
North Lincolnshire Council,http://data.ordnancesurvey.co.uk/id/7000000000025623,Adult Social Care,Legal Fees,5823,21/09/2017,5377747,888.00,REVENUE,Dac Beachcroft Llp,,DAC0001C
North Lincolnshire Council,http://data.ordnancesurvey.co.uk/id/7000000000025623,Culture & Related Services,Cleaning Costs/ Materials,3301,15/09/2017,5375540,307.32,REVENUE,Dale (Uk) Ltd (Scunthorpe),,DAL0034L
North Lincolnshire Council,http://data.ordnancesurvey.co.uk/id/7000000000025623,Childrens & Education,Payments To Private Orgs,6002,07/10/2017,5377725,550.00,REVENUE,Dandi'S Diner Ltd T/A Dandi'S,,DAN0200N
North Lincolnshire Council,http://data.ordnancesurvey.co.uk/id/7000000000025623,Childrens & Education,Payments To Private Orgs,6002,13/09/2017,5375896,"1,575.00",REVENUE,Danielle Johns,,JOH0168H
North Lincolnshire Council,http://data.ordnancesurvey.co.uk/id/7000000000025623,Corporate And Democratic Core,Course Fees/Training,2002,18/10/2017,5382831,975.00,REVENUE,David Burnby & Associates,,BUR0380R
North Lincolnshire Council,http://data.ordnancesurvey.co.uk/id/7000000000025623,Planning Services,Rents,3201,21/09/2017,5382828,520.00,REVENUE,David Samuel Asset Management Ltd,,SAM0130M
North Lincolnshire Council,http://data.ordnancesurvey.co.uk/id/7000000000025623,Planning Services,Rents,3201,21/09/2017,5382865,520.00,REVENUE,David Samuel Asset Management Ltd,,SAM0130M
North Lincolnshire Council,http://data.ordnancesurvey.co.uk/id/7000000000025623,Culture & Related Services,Other Professional Fees,5829,07/10/2017,5382738,"2,025.49",REVENUE,Debit Finance Collections Plc,3422873,DEB0189B
North Lincolnshire Council,http://data.ordnancesurvey.co.uk/id/7000000000025623,Childrens & Education,Repair & Maintenance Costs,3000,06/09/2017,5373886,"1,565.00",REVENUE,Delta Security Systems Ltd,06373017,DEL0004L
North Lincolnshire Council,http://data.ordnancesurvey.co.uk/id/7000000000025623,Corporate And Democratic Core,Other Professional Fees,5829,21/09/2017,5381826,750.00,REVENUE,Delta-Simons Env. Consultants Ltd,,DEL0055L
North Lincolnshire Council,http://data.ordnancesurvey.co.uk/id/7000000000025623,Corporate And Democratic Core,Other Professional Fees,5829,21/09/2017,5381827,750.00,REVENUE,Delta-Simons Env. Consultants Ltd,,DEL0055L
North Lincolnshire Council,http://data.ordnancesurvey.co.uk/id/7000000000025623,Childrens & Education,Payments To Private Orgs,6002,15/09/2017,5378538,"11,494.39",REVENUE,Demeter House (England) Ltd,5774107,DEM0021M
North Lincolnshire Council,http://data.ordnancesurvey.co.uk/id/7000000000025623,Childrens & Education,Advertising & Publicity,5610,06/09/2017,5373180,"3,490.00",REVENUE,Digital Film Production Ltd,07610114,DIG0164G
North Lincolnshire Council,http://data.ordnancesurvey.co.uk/id/7000000000025623,Adult Social Care,Equipment Purchase,5001,19/09/2017,5375867,"3,630.00",REVENUE,Digital Hearing Care Solutions Ltd,5659065,DIG0055G
North Lincolnshire Council,http://data.ordnancesurvey.co.uk/id/7000000000025623,Fin&Inv I&E,Materials,5004,07/10/2017,5379114,"2,957.52",REVENUE,Direct Commercial Veh.Serv.Ltd,2267244,DIR0001R
North Lincolnshire Council,http://data.ordnancesurvey.co.uk/id/7000000000025623,Environmental & Regulatory Svs,Payments To Private Orgs,6002,19/09/2017,5378973,792.00,REVENUE,Disclosure & Barring Service,,CRI0032I
North Lincolnshire Council,http://data.ordnancesurvey.co.uk/id/7000000000025623,Childrens & Education,Payments To Private Orgs,6002,01/09/2017,5372368,"3,276.00",REVENUE,D Johns,,JOH0680H
North Lincolnshire Council,http://data.ordnancesurvey.co.uk/id/7000000000025623,Housing Services,Fees & Charges Income,9002,06/09/2017,5372687,-636.88,REVENUE,Dolphin Mobility East Midlands Ltd,4175896,DOL0006L
North Lincolnshire Council,http://data.ordnancesurvey.co.uk/id/7000000000025623,Adult Social Care,Payments To Health Providers,6019,08/09/2017,5373917,"2,448.00",REVENUE,Doncaster & Bassetlaw Hospitals Nhs Trust,,DON0232N
North Lincolnshire Council,http://data.ordnancesurvey.co.uk/id/7000000000025623,Childrens & Education,Payments To Private Orgs,6002,01/10/2017,5378916,"29,001.00",REVENUE,Doncaster Deaf Trust,,DON0228N
North Lincolnshire Council,http://data.ordnancesurvey.co.uk/id/7000000000025623,Adult Social Care,Pay - Agency,0131,15/09/2017,5378566,"1,318.67",REVENUE,Doncaster Metropolitan B C,,DON0001N
North Lincolnshire Council,http://data.ordnancesurvey.co.uk/id/7000000000025623,Corporate And Democratic Core,Gen Office Exp (Incl Postage),5603,18/10/2017,5383544,290.22,REVENUE,Doncaster Metropolitan B C,,DON0001N
North Lincolnshire Council,http://data.ordnancesurvey.co.uk/id/7000000000025623,Corporate And Democratic Core,Gen Office Exp (Incl Postage),5603,18/10/2017,5383546,310.88,REVENUE,Doncaster Metropolitan B C,,DON0001N
North Lincolnshire Council,http://data.ordnancesurvey.co.uk/id/7000000000025623,Culture & Related Services,Other Supplies & Services,5799,08/10/2017,5374443,600.00,REVENUE,Donna Smith,,SMI0149I
North Lincolnshire Council,http://data.ordnancesurvey.co.uk/id/7000000000025623,Childrens & Education,Client Related Costs,5534,06/09/2017,5373971,300.00,REVENUE,Do-Re-Mi Nursery,,WIN0044N
North Lincolnshire Council,http://data.ordnancesurvey.co.uk/id/7000000000025623,Childrens & Education,Client Related Costs,5534,06/09/2017,5373973,300.00,REVENUE,Do-Re-Mi Nursery,,WIN0044N
North Lincolnshire Council,http://data.ordnancesurvey.co.uk/id/7000000000025623,Childrens & Education,Payments To Private Orgs,6002,01/09/2017,5372408,"17,194.80",REVENUE,Do-Re-Mi Nursery,,WIN0044N
North Lincolnshire Council,http://data.ordnancesurvey.co.uk/id/7000000000025623,Corporate And Democratic Core,Repair & Maintenance Costs,3000,01/09/2017,5371840,240.00,REVENUE,Drainmaster (Uk) Ltd,3802760,DRA0028A
North Lincolnshire Council,http://data.ordnancesurvey.co.uk/id/7000000000025623,Corporate And Democratic Core,Repair & Maintenance Costs,3000,06/09/2017,5371839,240.00,REVENUE,Drainmaster (Uk) Ltd,3802760,DRA0028A
North Lincolnshire Council,http://data.ordnancesurvey.co.uk/id/7000000000025623,Corporate And Democratic Core,Repair & Maintenance Costs,3000,15/09/2017,5377933,450.00,REVENUE,Drainmaster (Uk) Ltd,3802760,DRA0028A
North Lincolnshire Council,http://data.ordnancesurvey.co.uk/id/7000000000025623,Adult Social Care,Payments To Health Providers,6019,08/09/2017,5374412,545.06,REVENUE,Dr A Whitaker & Partners,,WHI0114I
North Lincolnshire Council,http://data.ordnancesurvey.co.uk/id/7000000000025623,Public Health,Payments To Health Providers,6019,08/09/2017,5374412,20.00,REVENUE,Dr A Whitaker & Partners,,WHI0114I
North Lincolnshire Council,http://data.ordnancesurvey.co.uk/id/7000000000025623,Adult Social Care,Equipment Purchase,5001,19/09/2017,5379763,595.05,REVENUE,Drive Devilbiss Healthcare Limited,4301005,DRI0008I
North Lincolnshire Council,http://data.ordnancesurvey.co.uk/id/7000000000025623,Adult Social Care,Equipment Purchase,5001,19/09/2017,5379769,688.01,REVENUE,Drive Devilbiss Healthcare Limited,4301005,DRI0008I
North Lincolnshire Council,http://data.ordnancesurvey.co.uk/id/7000000000025623,Adult Social Care,Equipment Purchase,5001,01/10/2017,5379780,313.50,REVENUE,Drive Devilbiss Healthcare Limited,4301005,DRI0008I
North Lincolnshire Council,http://data.ordnancesurvey.co.uk/id/7000000000025623,Adult Social Care,Equipment Purchase,5001,08/10/2017,5379779,289.80,REVENUE,Drive Devilbiss Healthcare Limited,4301005,DRI0008I
North Lincolnshire Council,http://data.ordnancesurvey.co.uk/id/7000000000025623,Adult Social Care,Equipment Purchase,5001,08/10/2017,5379783,418.60,REVENUE,Drive Devilbiss Healthcare Limited,4301005,DRI0008I
North Lincolnshire Council,http://data.ordnancesurvey.co.uk/id/7000000000025623,Adult Social Care,Equipment Purchase,5001,14/10/2017,5379796,354.00,REVENUE,Drive Devilbiss Healthcare Limited,4301005,DRI0008I
North Lincolnshire Council,http://data.ordnancesurvey.co.uk/id/7000000000025623,Environmental & Regulatory Svs,Pay - Agency,0131,06/09/2017,5370969,518.40,REVENUE,Driver Hire,,DRI0060I
North Lincolnshire Council,http://data.ordnancesurvey.co.uk/id/7000000000025623,Environmental & Regulatory Svs,Pay - Agency,0131,06/09/2017,5370971,518.40,REVENUE,Driver Hire,,DRI0060I
North Lincolnshire Council,http://data.ordnancesurvey.co.uk/id/7000000000025623,Environmental & Regulatory Svs,Pay - Agency,0131,13/09/2017,5375070,518.40,REVENUE,Driver Hire,,DRI0060I
North Lincolnshire Council,http://data.ordnancesurvey.co.uk/id/7000000000025623,Environmental & Regulatory Svs,Pay - Agency,0131,13/09/2017,5375076,529.20,REVENUE,Driver Hire,,DRI0060I
North Lincolnshire Council,http://data.ordnancesurvey.co.uk/id/7000000000025623,Environmental & Regulatory Svs,Pay - Agency,0131,13/09/2017,5375077,675.00,REVENUE,Driver Hire,,DRI0060I
North Lincolnshire Council,http://data.ordnancesurvey.co.uk/id/7000000000025623,Environmental & Regulatory Svs,Pay - Agency,0131,21/09/2017,5382656,583.20,REVENUE,Driver Hire,,DRI0060I
North Lincolnshire Council,http://data.ordnancesurvey.co.uk/id/7000000000025623,Environmental & Regulatory Svs,Pay - Agency,0131,21/09/2017,5382657,388.80,REVENUE,Driver Hire,,DRI0060I
North Lincolnshire Council,http://data.ordnancesurvey.co.uk/id/7000000000025623,Adult Social Care,Other Professional Fees,5829,30/09/2017,5373204,380.00,REVENUE,Dr M C Waziri,,WAZ0001Z
North Lincolnshire Council,http://data.ordnancesurvey.co.uk/id/7000000000025623,Adult Social Care,Other Professional Fees,5829,05/10/2017,5382623,560.00,REVENUE,Dr M C Waziri,,WAZ0001Z
North Lincolnshire Council,http://data.ordnancesurvey.co.uk/id/7000000000025623,Adult Social Care,Other Professional Fees,5829,10/10/2017,5382621,380.00,REVENUE,Dr M C Waziri,,WAZ0001Z
North Lincolnshire Council,http://data.ordnancesurvey.co.uk/id/7000000000025623,Adult Social Care,Payments To Health Providers,6019,08/09/2017,5374380,398.35,REVENUE,Dr M J Dwyer & Partners,,DWY0001Y
North Lincolnshire Council,http://data.ordnancesurvey.co.uk/id/7000000000025623,Public Health,Payments To Health Providers,6019,08/09/2017,5374380,800.00,REVENUE,Dr M J Dwyer & Partners,,DWY0001Y
North Lincolnshire Council,http://data.ordnancesurvey.co.uk/id/7000000000025623,Environmental & Regulatory Svs,Other Professional Fees,5829,13/09/2017,5374948,"1,935.00",REVENUE,Dr T Mahmood Anwar,,MAH0003H
North Lincolnshire Council,http://data.ordnancesurvey.co.uk/id/7000000000025623,Childrens & Education,Payments To Private Orgs,6002,15/09/2017,5378551,"1,663.20",REVENUE,D Towers,,TOW0071W
North Lincolnshire Council,http://data.ordnancesurvey.co.uk/id/7000000000025623,Corporate And Democratic Core,Telephone Rent/Calls,5403,13/09/2017,5372499,"12,495.00",REVENUE,Dvo2 Limited,04468762,DVO0001O
North Lincolnshire Council,http://data.ordnancesurvey.co.uk/id/7000000000025623,Culture & Related Services,Other Supplies & Services,5799,21/09/2017,5377856,"20,583.33",REVENUE,E A Littlewood,,LIT0008T
North Lincolnshire Council,http://data.ordnancesurvey.co.uk/id/7000000000025623,Highways & Transport,Exhibitions/Events,5709,13/09/2017,5375946,277.00,REVENUE,Earth Bound Misfits Ltd,3337453,EAR0018R
North Lincolnshire Council,http://data.ordnancesurvey.co.uk/id/7000000000025623,Fin&Inv I&E,Other Professional Fees,5829,13/09/2017,5375874,"2,831.83",REVENUE,Easters & Son Commercial Services Ltd,,EAS0590S
North Lincolnshire Council,http://data.ordnancesurvey.co.uk/id/7000000000025623,Childrens & Education,Client Transport Costs,6092,30/09/2017,5379753,320.00,REVENUE,East Hull Cars Ltd,5777873,EAS0093S
North Lincolnshire Council,http://data.ordnancesurvey.co.uk/id/7000000000025623,Planning Services,Payments To Voluntary Orgs,6001,19/09/2017,5379345,500.00,REVENUE,Eastoft Parish Council,,EAS0124S
North Lincolnshire Council,http://data.ordnancesurvey.co.uk/id/7000000000025623,Non Distributed Costs,Retirement Additional Costs,2007,21/09/2017,5376685,"162,600.00",REVENUE,East Riding Pension Fund,,EAS0381S
North Lincolnshire Council,http://data.ordnancesurvey.co.uk/id/7000000000025623,Non Distributed Costs,Sup - Admin & Support (Lg),1653,13/09/2017,5376642,"43,112.01",REVENUE,East Riding Pension Fund,,EAS0381S
North Lincolnshire Council,http://data.ordnancesurvey.co.uk/id/7000000000025623,Highways & Transport,Concessionary Fares,6010,01/09/2017,5371590,"4,500.00",REVENUE,East Yorkshire Motor Services Ltd,216628,EAS0120S
North Lincolnshire Council,http://data.ordnancesurvey.co.uk/id/7000000000025623,Highways & Transport,Passenger Transport,6011,01/09/2017,5371603,"1,427.28",REVENUE,East Yorkshire Motor Services Ltd,216628,EAS0120S
North Lincolnshire Council,http://data.ordnancesurvey.co.uk/id/7000000000025623,Highways & Transport,Passenger Transport,6011,21/09/2017,5382479,"1,367.81",REVENUE,East Yorkshire Motor Services Ltd,216628,EAS0120S
North Lincolnshire Council,http://data.ordnancesurvey.co.uk/id/7000000000025623,Corporate And Democratic Core,Telephone Rent/Calls,5403,21/09/2017,5379250,"265,970.88",REVENUE,Easynet Enterprise Services Ltd,4287100,MDN0001N
North Lincolnshire Council,http://data.ordnancesurvey.co.uk/id/7000000000025623,Corporate And Democratic Core,Telephone Rent/Calls,5403,21/09/2017,5379254,"259,187.03",REVENUE,Easynet Enterprise Services Ltd,4287100,MDN0001N
North Lincolnshire Council,http://data.ordnancesurvey.co.uk/id/7000000000025623,Highways & Transport,Other Supplies & Services,5799,19/09/2017,5377860,"3,796.17",REVENUE,E C Surfacing Ltd,07080098,ECS0006S
North Lincolnshire Council,http://data.ordnancesurvey.co.uk/id/7000000000025623,Adult Social Care,Pay - Agency,0131,13/09/2017,5375335,"1,665.00",REVENUE,Eden Brown Synergy,3643845,EDE0130E
North Lincolnshire Council,http://data.ordnancesurvey.co.uk/id/7000000000025623,Adult Social Care,Pay - Agency,0131,13/09/2017,5375338,"1,665.00",REVENUE,Eden Brown Synergy,3643845,EDE0130E
North Lincolnshire Council,http://data.ordnancesurvey.co.uk/id/7000000000025623,Adult Social Care,Pay - Agency,0131,13/09/2017,5375404,"1,665.00",REVENUE,Eden Brown Synergy,3643845,EDE0130E
North Lincolnshire Council,http://data.ordnancesurvey.co.uk/id/7000000000025623,Adult Social Care,Pay - Agency,0131,15/09/2017,5378582,"2,420.00",REVENUE,Eden Brown Synergy,3643845,EDE0130E
North Lincolnshire Council,http://data.ordnancesurvey.co.uk/id/7000000000025623,Adult Social Care,Pay - Agency,0131,15/09/2017,5378584,"1,408.00",REVENUE,Eden Brown Synergy,3643845,EDE0130E
North Lincolnshire Council,http://data.ordnancesurvey.co.uk/id/7000000000025623,Adult Social Care,Pay - Agency,0131,15/09/2017,5378586,"1,034.00",REVENUE,Eden Brown Synergy,3643845,EDE0130E
North Lincolnshire Council,http://data.ordnancesurvey.co.uk/id/7000000000025623,Adult Social Care,Pay - Agency,0131,15/09/2017,5378587,396.00,REVENUE,Eden Brown Synergy,3643845,EDE0130E
North Lincolnshire Council,http://data.ordnancesurvey.co.uk/id/7000000000025623,Adult Social Care,Pay - Agency,0131,15/09/2017,5378588,"3,124.00",REVENUE,Eden Brown Synergy,3643845,EDE0130E
North Lincolnshire Council,http://data.ordnancesurvey.co.uk/id/7000000000025623,Adult Social Care,Pay - Agency,0131,15/09/2017,5378589,"1,056.00",REVENUE,Eden Brown Synergy,3643845,EDE0130E
North Lincolnshire Council,http://data.ordnancesurvey.co.uk/id/7000000000025623,Adult Social Care,Pay - Agency,0131,15/09/2017,5378590,"2,420.00",REVENUE,Eden Brown Synergy,3643845,EDE0130E
North Lincolnshire Council,http://data.ordnancesurvey.co.uk/id/7000000000025623,Culture & Related Services,Provisions,5201,08/09/2017,5372586,569.90,REVENUE,Eden Farm Hulleys Ltd,,EDE0050E
North Lincolnshire Council,http://data.ordnancesurvey.co.uk/id/7000000000025623,Culture & Related Services,Provisions,5201,13/09/2017,5372587,455.28,REVENUE,Eden Farm Hulleys Ltd,,EDE0050E
North Lincolnshire Council,http://data.ordnancesurvey.co.uk/id/7000000000025623,Culture & Related Services,Provisions,5201,15/09/2017,5372616,408.14,REVENUE,Eden Farm Hulleys Ltd,,EDE0050E
North Lincolnshire Council,http://data.ordnancesurvey.co.uk/id/7000000000025623,Culture & Related Services,Provisions,5201,19/09/2017,5372614,573.56,REVENUE,Eden Farm Hulleys Ltd,,EDE0050E
North Lincolnshire Council,http://data.ordnancesurvey.co.uk/id/7000000000025623,Culture & Related Services,Provisions,5201,19/09/2017,5372618,479.88,REVENUE,Eden Farm Hulleys Ltd,,EDE0050E
North Lincolnshire Council,http://data.ordnancesurvey.co.uk/id/7000000000025623,Culture & Related Services,Provisions,5201,21/09/2017,5375535,314.41,REVENUE,Eden Farm Hulleys Ltd,,EDE0050E
North Lincolnshire Council,http://data.ordnancesurvey.co.uk/id/7000000000025623,Adult Social Care,It Hardware -Purchase,5050,13/09/2017,5369921,"14,640.00",REVENUE,Eden Telecom Ltd,,EDE0145E
North Lincolnshire Council,http://data.ordnancesurvey.co.uk/id/7000000000025623,Adult Social Care,It Hardware -Purchase,5050,15/09/2017,5369944,690.00,REVENUE,Eden Telecom Ltd,,EDE0145E
North Lincolnshire Council,http://data.ordnancesurvey.co.uk/id/7000000000025623,Corporate And Democratic Core,It Hardware -Purchase,5050,13/09/2017,5369920,472.50,REVENUE,Eden Telecom Ltd,,EDE0145E
North Lincolnshire Council,http://data.ordnancesurvey.co.uk/id/7000000000025623,Corporate And Democratic Core,It Hardware -Purchase,5050,21/09/2017,5378567,586.35,REVENUE,Eden Telecom Ltd,,EDE0145E
North Lincolnshire Council,http://data.ordnancesurvey.co.uk/id/7000000000025623,Childrens & Education,Advertising & Publicity,5610,02/10/2017,5375566,220.00,REVENUE,E H Advertising Ltd,,EHA0003A
North Lincolnshire Council,http://data.ordnancesurvey.co.uk/id/7000000000025623,Planning Services,Other Supplies & Services,5799,02/10/2017,5381022,401.76,REVENUE,E H Advertising Ltd,,EHA0003A
North Lincolnshire Council,http://data.ordnancesurvey.co.uk/id/7000000000025623,Adult Social Care,Course Fees/Training,2002,13/09/2017,5371844,595.00,REVENUE,Elearning For You Limited,,ELE0015E
North Lincolnshire Council,http://data.ordnancesurvey.co.uk/id/7000000000025623,Highways & Transport,Equipment Hire/Rent,5002,15/09/2017,5356641,770.00,REVENUE,Elev8,5902099,ELE0071E
North Lincolnshire Council,http://data.ordnancesurvey.co.uk/id/7000000000025623,Highways & Transport,Equipment Hire/Rent,5002,21/09/2017,5364989,"1,540.00",REVENUE,Elev8,5902099,ELE0071E
North Lincolnshire Council,http://data.ordnancesurvey.co.uk/id/7000000000025623,Highways & Transport,Equipment Hire/Rent,5002,30/10/2017,5374426,"2,530.00",REVENUE,Elev8,5902099,ELE0071E
North Lincolnshire Council,http://data.ordnancesurvey.co.uk/id/7000000000025623,Adult Social Care,Payments To Private Orgs,6002,04/10/2017,5379716,"3,249.00",REVENUE,Elisian Limited,,MIC0023C
North Lincolnshire Council,http://data.ordnancesurvey.co.uk/id/7000000000025623,Adult Social Care,Payments To Private Orgs,6002,21/09/2017,5382996,"4,415.20",REVENUE,Elite Care Solutions Ltd,,ISF0009F
North Lincolnshire Council,http://data.ordnancesurvey.co.uk/id/7000000000025623,Adult Social Care,Payments To Private Orgs,6002,21/09/2017,5382996,"11,064.32",REVENUE,Elite Care Solutions Ltd,,ISF0009F
North Lincolnshire Council,http://data.ordnancesurvey.co.uk/id/7000000000025623,Environmental & Regulatory Svs,Other Professional Fees,5829,06/09/2017,5371005,496.00,REVENUE,Ellgia Scunthorpe,860123,BEL0170L
North Lincolnshire Council,http://data.ordnancesurvey.co.uk/id/7000000000025623,Environmental & Regulatory Svs,Other Professional Fees,5829,06/09/2017,5371006,"1,488.00",REVENUE,Ellgia Scunthorpe,860123,BEL0170L
North Lincolnshire Council,http://data.ordnancesurvey.co.uk/id/7000000000025623,Environmental & Regulatory Svs,Other Professional Fees,5829,06/09/2017,5371007,496.00,REVENUE,Ellgia Scunthorpe,860123,BEL0170L
North Lincolnshire Council,http://data.ordnancesurvey.co.uk/id/7000000000025623,Environmental & Regulatory Svs,Other Professional Fees,5829,06/09/2017,5371008,"1,463.64",REVENUE,Ellgia Scunthorpe,860123,BEL0170L
North Lincolnshire Council,http://data.ordnancesurvey.co.uk/id/7000000000025623,Environmental & Regulatory Svs,Other Professional Fees,5829,06/09/2017,5372639,576.00,REVENUE,Ellgia Scunthorpe,860123,BEL0170L
North Lincolnshire Council,http://data.ordnancesurvey.co.uk/id/7000000000025623,Environmental & Regulatory Svs,Other Professional Fees,5829,06/09/2017,5372640,248.00,REVENUE,Ellgia Scunthorpe,860123,BEL0170L
North Lincolnshire Council,http://data.ordnancesurvey.co.uk/id/7000000000025623,Environmental & Regulatory Svs,Other Professional Fees,5829,06/09/2017,5372642,423.00,REVENUE,Ellgia Scunthorpe,860123,BEL0170L
North Lincolnshire Council,http://data.ordnancesurvey.co.uk/id/7000000000025623,Environmental & Regulatory Svs,Other Professional Fees,5829,13/09/2017,5374933,"1,763.20",REVENUE,Ellgia Scunthorpe,860123,BEL0170L
North Lincolnshire Council,http://data.ordnancesurvey.co.uk/id/7000000000025623,Environmental & Regulatory Svs,Other Professional Fees,5829,13/09/2017,5374936,"1,917.08",REVENUE,Ellgia Scunthorpe,860123,BEL0170L
North Lincolnshire Council,http://data.ordnancesurvey.co.uk/id/7000000000025623,Environmental & Regulatory Svs,Other Professional Fees,5829,13/09/2017,5374938,"2,108.04",REVENUE,Ellgia Scunthorpe,860123,BEL0170L
North Lincolnshire Council,http://data.ordnancesurvey.co.uk/id/7000000000025623,Environmental & Regulatory Svs,Other Professional Fees,5829,13/09/2017,5374941,744.00,REVENUE,Ellgia Scunthorpe,860123,BEL0170L
North Lincolnshire Council,http://data.ordnancesurvey.co.uk/id/7000000000025623,Environmental & Regulatory Svs,Other Professional Fees,5829,13/09/2017,5374942,"1,776.00",REVENUE,Ellgia Scunthorpe,860123,BEL0170L
North Lincolnshire Council,http://data.ordnancesurvey.co.uk/id/7000000000025623,Environmental & Regulatory Svs,Other Professional Fees,5829,13/09/2017,5375418,-248.00,REVENUE,Ellgia Scunthorpe,860123,BEL0170L
North Lincolnshire Council,http://data.ordnancesurvey.co.uk/id/7000000000025623,Environmental & Regulatory Svs,Other Professional Fees,5829,21/09/2017,5379028,"1,581.92",REVENUE,Ellgia Scunthorpe,860123,BEL0170L
North Lincolnshire Council,http://data.ordnancesurvey.co.uk/id/7000000000025623,Environmental & Regulatory Svs,Other Professional Fees,5829,21/09/2017,5379031,"-1,581.92",REVENUE,Ellgia Scunthorpe,860123,BEL0170L
North Lincolnshire Council,http://data.ordnancesurvey.co.uk/id/7000000000025623,Environmental & Regulatory Svs,Other Professional Fees,5829,21/09/2017,5382664,"2,204.96",REVENUE,Ellgia Scunthorpe,860123,BEL0170L
North Lincolnshire Council,http://data.ordnancesurvey.co.uk/id/7000000000025623,Environmental & Regulatory Svs,Other Professional Fees,5829,21/09/2017,5382665,"1,568.00",REVENUE,Ellgia Scunthorpe,860123,BEL0170L
North Lincolnshire Council,http://data.ordnancesurvey.co.uk/id/7000000000025623,Environmental & Regulatory Svs,Other Professional Fees,5829,21/09/2017,5382666,496.00,REVENUE,Ellgia Scunthorpe,860123,BEL0170L
North Lincolnshire Council,http://data.ordnancesurvey.co.uk/id/7000000000025623,Environmental & Regulatory Svs,Other Professional Fees,5829,21/09/2017,5382667,288.00,REVENUE,Ellgia Scunthorpe,860123,BEL0170L
North Lincolnshire Council,http://data.ordnancesurvey.co.uk/id/7000000000025623,Environmental & Regulatory Svs,Other Professional Fees,5829,21/09/2017,5382669,"12,552.61",REVENUE,Ellgia Scunthorpe,860123,BEL0170L
North Lincolnshire Council,http://data.ordnancesurvey.co.uk/id/7000000000025623,Environmental & Regulatory Svs,Other Professional Fees,5829,30/10/2017,5379025,"1,318.00",REVENUE,Ellgia Scunthorpe,860123,BEL0170L
North Lincolnshire Council,http://data.ordnancesurvey.co.uk/id/7000000000025623,Environmental & Regulatory Svs,Payments To Private Orgs,6002,06/09/2017,5370934,"20,694.60",REVENUE,Ellgia Scunthorpe,860123,BEL0170L
North Lincolnshire Council,http://data.ordnancesurvey.co.uk/id/7000000000025623,Environmental & Regulatory Svs,Payments To Private Orgs,6002,06/09/2017,5371002,813.30,REVENUE,Ellgia Scunthorpe,860123,BEL0170L
North Lincolnshire Council,http://data.ordnancesurvey.co.uk/id/7000000000025623,Environmental & Regulatory Svs,Payments To Private Orgs,6002,06/09/2017,5372635,"3,782.88",REVENUE,Ellgia Scunthorpe,860123,BEL0170L
North Lincolnshire Council,http://data.ordnancesurvey.co.uk/id/7000000000025623,Environmental & Regulatory Svs,Payments To Private Orgs,6002,21/09/2017,5382660,789.90,REVENUE,Ellgia Scunthorpe,860123,BEL0170L
North Lincolnshire Council,http://data.ordnancesurvey.co.uk/id/7000000000025623,Environmental & Regulatory Svs,Payments To Private Orgs,6002,21/09/2017,5382663,"3,549.52",REVENUE,Ellgia Scunthorpe,860123,BEL0170L
North Lincolnshire Council,http://data.ordnancesurvey.co.uk/id/7000000000025623,Corporate And Democratic Core,Cleaning Services & Contracts,3311,08/09/2017,5374130,"1,198.00",REVENUE,Ellis Cleaning Services,,ELL0115L
North Lincolnshire Council,http://data.ordnancesurvey.co.uk/id/7000000000025623,Culture & Related Services,Stock Purchases & Adjustments,5030,15/10/2017,5383110,348.48,REVENUE,Emblem Print Products Ltd,,EMB0004B
North Lincolnshire Council,http://data.ordnancesurvey.co.uk/id/7000000000025623,Adult Social Care,Payments To Private Orgs,6002,21/09/2017,5382980,522.07,REVENUE,Emerald Care Services (North Lincs) Ltd,08136830,EME0032E
North Lincolnshire Council,http://data.ordnancesurvey.co.uk/id/7000000000025623,Adult Social Care,Payments To Private Orgs,6002,21/09/2017,5382981,"4,652.86",REVENUE,Emerald Care Services (North Lincs) Ltd,08136830,EME0032E
North Lincolnshire Council,http://data.ordnancesurvey.co.uk/id/7000000000025623,Adult Social Care,Payments To Private Orgs,6002,21/09/2017,5382982,"48,830.60",REVENUE,Emerald Care Services (North Lincs) Ltd,08136830,EME0032E
North Lincolnshire Council,http://data.ordnancesurvey.co.uk/id/7000000000025623,Adult Social Care,Payments To Private Orgs,6002,21/09/2017,5383008,-266.00,REVENUE,Emerald Care Services (North Lincs) Ltd,,ISF0026F
North Lincolnshire Council,http://data.ordnancesurvey.co.uk/id/7000000000025623,Adult Social Care,Payments To Private Orgs,6002,21/09/2017,5383009,491.64,REVENUE,Emerald Care Services (North Lincs) Ltd,,ISF0026F
North Lincolnshire Council,http://data.ordnancesurvey.co.uk/id/7000000000025623,Adult Social Care,Payments To Private Orgs,6002,21/09/2017,5383009,"18,553.00",REVENUE,Emerald Care Services (North Lincs) Ltd,,ISF0026F
North Lincolnshire Council,http://data.ordnancesurvey.co.uk/id/7000000000025623,Corporate And Democratic Core,Repair & Maintenance Costs,3000,15/09/2017,5370926,"2,670.75",REVENUE,End2end Services Limited,,END0042D
North Lincolnshire Council,http://data.ordnancesurvey.co.uk/id/7000000000025623,Corporate And Democratic Core,Repair & Maintenance Costs,3000,15/09/2017,5370930,"2,358.00",REVENUE,End2end Services Limited,,END0042D
North Lincolnshire Council,http://data.ordnancesurvey.co.uk/id/7000000000025623,Childrens & Education,Course Fees/Training,2002,15/09/2017,5377984,550.00,REVENUE,Endeavour Training Providers Ltd,,END0066D
North Lincolnshire Council,http://data.ordnancesurvey.co.uk/id/7000000000025623,Culture & Related Services,Other Supplies & Services,5799,19/09/2017,5378986,516.00,REVENUE,Enforce Specialist Security Solitions Ltd,,ENF0198F
North Lincolnshire Council,http://data.ordnancesurvey.co.uk/id/7000000000025623,Culture & Related Services,Course Fees/Training,2002,30/09/2017,5381063,640.00,REVENUE,England Athletics Ltd,,ENG0250G
North Lincolnshire Council,http://data.ordnancesurvey.co.uk/id/7000000000025623,Public Health,Equipment Maint.& Repair,5003,01/09/2017,5371612,617.50,REVENUE,Enviro Technology Services Plc,,ENV0009V
North Lincolnshire Council,http://data.ordnancesurvey.co.uk/id/7000000000025623,Environmental & Regulatory Svs,Payments To Private Orgs,6002,06/09/2017,5370946,254.60,REVENUE,Envirotyre Uk Ltd,,ENV0014V
North Lincolnshire Council,http://data.ordnancesurvey.co.uk/id/7000000000025623,Environmental & Regulatory Svs,Payments To Private Orgs,6002,12/10/2017,5382649,247.60,REVENUE,Envirotyre Uk Ltd,,ENV0014V
North Lincolnshire Council,http://data.ordnancesurvey.co.uk/id/7000000000025623,Childrens & Education,Payments To Voluntary Orgs,6001,01/09/2017,5372355,"3,442.32",REVENUE,Epworth Thurlow Pre-School,,EPW0018W
North Lincolnshire Council,http://data.ordnancesurvey.co.uk/id/7000000000025623,Childrens & Education,Cleaning Costs/ Materials,3301,19/09/2017,5378180,258.72,REVENUE,Eryc - Supplies,,EAS0125S
North Lincolnshire Council,http://data.ordnancesurvey.co.uk/id/7000000000025623,Childrens & Education,Equipment Purchase,5001,14/10/2017,5382523,234.62,REVENUE,Eryc - Supplies,,EAS0125S
North Lincolnshire Council,http://data.ordnancesurvey.co.uk/id/7000000000025623,Fin&Inv I&E,Equipment Purchase,5001,19/09/2017,5381153,"1,191.88",REVENUE,Eryc - Supplies,,EAS0125S
North Lincolnshire Council,http://data.ordnancesurvey.co.uk/id/7000000000025623,Environmental & Regulatory Svs,Equipment Purchase,5001,08/09/2017,5366773,309.50,REVENUE,Essentra Security,07271407,LAM0057M
North Lincolnshire Council,http://data.ordnancesurvey.co.uk/id/7000000000025623,Corporate And Democratic Core,It Software-Maintenance,5053,30/09/2017,5374815,"1,595.00",REVENUE,Euclid Limited,,EUC0003C
North Lincolnshire Council,http://data.ordnancesurvey.co.uk/id/7000000000025623,Highways & Transport,Other Supplies & Services,5799,19/09/2017,5372472,"15,545.57",REVENUE,Event Traffic Control Ltd,08625028,EVE0165E
North Lincolnshire Council,http://data.ordnancesurvey.co.uk/id/7000000000025623,Highways & Transport,Other Supplies & Services,5799,21/09/2017,5380806,"6,662.39",REVENUE,Event Traffic Control Ltd,08625028,EVE0165E
North Lincolnshire Council,http://data.ordnancesurvey.co.uk/id/7000000000025623,Highways & Transport,Other Supplies & Services,5799,21/09/2017,5375521,550.00,REVENUE,Exactrak,,EXA0014A
North Lincolnshire Council,http://data.ordnancesurvey.co.uk/id/7000000000025623,Childrens & Education,Other Premises Costs,3390,06/09/2017,5370975,300.00,REVENUE,Eye Watch Security Ltd,04480210,EYE0006E
North Lincolnshire Council,http://data.ordnancesurvey.co.uk/id/7000000000025623,Childrens & Education,Other Premises Costs,3390,21/09/2017,5381139,"1,744.00",REVENUE,Eye Watch Security Ltd,04480210,EYE0006E
North Lincolnshire Council,http://data.ordnancesurvey.co.uk/id/7000000000025623,Environmental & Regulatory Svs,Other Premises Costs,3390,06/09/2017,5370973,"2,430.00",REVENUE,Eye Watch Security Ltd,04480210,EYE0006E
North Lincolnshire Council,http://data.ordnancesurvey.co.uk/id/7000000000025623,Environmental & Regulatory Svs,Other Premises Costs,3390,06/09/2017,5370975,300.00,REVENUE,Eye Watch Security Ltd,04480210,EYE0006E
North Lincolnshire Council,http://data.ordnancesurvey.co.uk/id/7000000000025623,Fin&Inv I&E,Other Supplies & Services,5799,30/08/2017,5370215,582.00,REVENUE,Eye Watch Security Ltd,04480210,EYE0006E
North Lincolnshire Council,http://data.ordnancesurvey.co.uk/id/7000000000025623,Fin&Inv I&E,Other Supplies & Services,5799,13/09/2017,5375587,533.50,REVENUE,Eye Watch Security Ltd,04480210,EYE0006E
North Lincolnshire Council,http://data.ordnancesurvey.co.uk/id/7000000000025623,Central Services To Public,Gen Office Exp (Incl Postage),5603,19/09/2017,5379048,548.71,REVENUE,Fcs Laser Mail,,FCS0002S
North Lincolnshire Council,http://data.ordnancesurvey.co.uk/id/7000000000025623,Central Services To Public,Gen Office Exp (Incl Postage),5603,19/09/2017,5379050,"1,726.48",REVENUE,Fcs Laser Mail,,FCS0002S
North Lincolnshire Council,http://data.ordnancesurvey.co.uk/id/7000000000025623,Childrens & Education,Payments To Private Orgs,6002,01/09/2017,5372358,"28,617.94",REVENUE,Fieldview Day Nursery,,FIE0045E
North Lincolnshire Council,http://data.ordnancesurvey.co.uk/id/7000000000025623,Childrens & Education,Payments To Private Orgs,6002,13/09/2017,5375893,"1,050.00",REVENUE,Fieldview Day Nursery,,FIE0045E
North Lincolnshire Council,http://data.ordnancesurvey.co.uk/id/7000000000025623,Highways & Transport,Equipment Purchase,5001,06/09/2017,5372522,"1,600.00",REVENUE,First Step Sports Ltd,,FIR0143R
North Lincolnshire Council,http://data.ordnancesurvey.co.uk/id/7000000000025623,Childrens & Education,Payments To Private Orgs,6002,15/09/2017,5378499,"3,516.91",REVENUE,Five Rivers Child Care Ltd,,FIV0006V
North Lincolnshire Council,http://data.ordnancesurvey.co.uk/id/7000000000025623,Fin&Inv I&E,Equipment Hire/Rent,5002,13/09/2017,5377777,368.25,REVENUE,Fleetclean Ltd,01381865,FLE0007E
North Lincolnshire Council,http://data.ordnancesurvey.co.uk/id/7000000000025623,Fin&Inv I&E,Equipment Maint.& Repair,5003,01/09/2017,5372802,229.84,REVENUE,Fleetclean Ltd,01381865,FLE0007E
North Lincolnshire Council,http://data.ordnancesurvey.co.uk/id/7000000000025623,Fin&Inv I&E,Fuel,4001,05/10/2017,5379119,"1,160.00",REVENUE,Fleet Factors Ltd,01231325,FLE0026E
North Lincolnshire Council,http://data.ordnancesurvey.co.uk/id/7000000000025623,Fin&Inv I&E,Materials,5004,01/09/2017,5372861,-975.00,REVENUE,Fleet Factors Ltd,01231325,FLE0026E
North Lincolnshire Council,http://data.ordnancesurvey.co.uk/id/7000000000025623,Fin&Inv I&E,Materials,5004,15/09/2017,5372817,348.21,REVENUE,Fleet Factors Ltd,01231325,FLE0026E
North Lincolnshire Council,http://data.ordnancesurvey.co.uk/id/7000000000025623,Fin&Inv I&E,Materials,5004,19/09/2017,5372803,495.00,REVENUE,Fleet Factors Ltd,01231325,FLE0026E
North Lincolnshire Council,http://data.ordnancesurvey.co.uk/id/7000000000025623,Fin&Inv I&E,Materials,5004,19/09/2017,5372828,750.01,REVENUE,Fleet Factors Ltd,01231325,FLE0026E
North Lincolnshire Council,http://data.ordnancesurvey.co.uk/id/7000000000025623,Fin&Inv I&E,Materials,5004,19/09/2017,5372829,401.51,REVENUE,Fleet Factors Ltd,01231325,FLE0026E
North Lincolnshire Council,http://data.ordnancesurvey.co.uk/id/7000000000025623,Fin&Inv I&E,Materials,5004,19/09/2017,5372830,401.51,REVENUE,Fleet Factors Ltd,01231325,FLE0026E
North Lincolnshire Council,http://data.ordnancesurvey.co.uk/id/7000000000025623,Fin&Inv I&E,Materials,5004,19/09/2017,5372838,271.43,REVENUE,Fleet Factors Ltd,01231325,FLE0026E
North Lincolnshire Council,http://data.ordnancesurvey.co.uk/id/7000000000025623,Fin&Inv I&E,Materials,5004,19/09/2017,5372857,513.47,REVENUE,Fleet Factors Ltd,01231325,FLE0026E
North Lincolnshire Council,http://data.ordnancesurvey.co.uk/id/7000000000025623,Fin&Inv I&E,Materials,5004,21/09/2017,5377784,329.95,REVENUE,Fleet Factors Ltd,01231325,FLE0026E
North Lincolnshire Council,http://data.ordnancesurvey.co.uk/id/7000000000025623,Fin&Inv I&E,Materials,5004,21/09/2017,5377785,417.86,REVENUE,Fleet Factors Ltd,01231325,FLE0026E
North Lincolnshire Council,http://data.ordnancesurvey.co.uk/id/7000000000025623,Fin&Inv I&E,Materials,5004,30/09/2017,5377796,299.49,REVENUE,Fleet Factors Ltd,01231325,FLE0026E
North Lincolnshire Council,http://data.ordnancesurvey.co.uk/id/7000000000025623,Fin&Inv I&E,Materials,5004,01/10/2017,5377798,310.00,REVENUE,Fleet Factors Ltd,01231325,FLE0026E
North Lincolnshire Council,http://data.ordnancesurvey.co.uk/id/7000000000025623,Fin&Inv I&E,Materials,5004,01/10/2017,5377802,305.00,REVENUE,Fleet Factors Ltd,01231325,FLE0026E
North Lincolnshire Council,http://data.ordnancesurvey.co.uk/id/7000000000025623,Fin&Inv I&E,Materials,5004,01/10/2017,5377803,333.41,REVENUE,Fleet Factors Ltd,01231325,FLE0026E
North Lincolnshire Council,http://data.ordnancesurvey.co.uk/id/7000000000025623,Fin&Inv I&E,Materials,5004,01/10/2017,5377806,390.00,REVENUE,Fleet Factors Ltd,01231325,FLE0026E
North Lincolnshire Council,http://data.ordnancesurvey.co.uk/id/7000000000025623,Fin&Inv I&E,Materials,5004,01/10/2017,5377807,375.95,REVENUE,Fleet Factors Ltd,01231325,FLE0026E
North Lincolnshire Council,http://data.ordnancesurvey.co.uk/id/7000000000025623,Fin&Inv I&E,Materials,5004,01/10/2017,5377818,435.00,REVENUE,Fleet Factors Ltd,01231325,FLE0026E
North Lincolnshire Council,http://data.ordnancesurvey.co.uk/id/7000000000025623,Fin&Inv I&E,Materials,5004,04/10/2017,5377809,362.00,REVENUE,Fleet Factors Ltd,01231325,FLE0026E
North Lincolnshire Council,http://data.ordnancesurvey.co.uk/id/7000000000025623,Fin&Inv I&E,Materials,5004,04/10/2017,5377813,"1,070.41",REVENUE,Fleet Factors Ltd,01231325,FLE0026E
North Lincolnshire Council,http://data.ordnancesurvey.co.uk/id/7000000000025623,Fin&Inv I&E,Materials,5004,04/10/2017,5377816,300.00,REVENUE,Fleet Factors Ltd,01231325,FLE0026E
North Lincolnshire Council,http://data.ordnancesurvey.co.uk/id/7000000000025623,Fin&Inv I&E,Materials,5004,05/10/2017,5379121,322.33,REVENUE,Fleet Factors Ltd,01231325,FLE0026E
North Lincolnshire Council,http://data.ordnancesurvey.co.uk/id/7000000000025623,Fin&Inv I&E,Materials,5004,05/10/2017,5379123,473.94,REVENUE,Fleet Factors Ltd,01231325,FLE0026E
North Lincolnshire Council,http://data.ordnancesurvey.co.uk/id/7000000000025623,Fin&Inv I&E,Materials,5004,05/10/2017,5379126,375.00,REVENUE,Fleet Factors Ltd,01231325,FLE0026E
North Lincolnshire Council,http://data.ordnancesurvey.co.uk/id/7000000000025623,Fin&Inv I&E,Materials,5004,05/10/2017,5379129,389.98,REVENUE,Fleet Factors Ltd,01231325,FLE0026E
North Lincolnshire Council,http://data.ordnancesurvey.co.uk/id/7000000000025623,Fin&Inv I&E,Materials,5004,05/10/2017,5379130,"1,634.95",REVENUE,Fleet Factors Ltd,01231325,FLE0026E
North Lincolnshire Council,http://data.ordnancesurvey.co.uk/id/7000000000025623,Fin&Inv I&E,Materials,5004,06/10/2017,5379135,252.38,REVENUE,Fleet Factors Ltd,01231325,FLE0026E
North Lincolnshire Council,http://data.ordnancesurvey.co.uk/id/7000000000025623,Fin&Inv I&E,Materials,5004,06/10/2017,5379143,400.00,REVENUE,Fleet Factors Ltd,01231325,FLE0026E
North Lincolnshire Council,http://data.ordnancesurvey.co.uk/id/7000000000025623,Fin&Inv I&E,Materials,5004,07/10/2017,5379151,284.40,REVENUE,Fleet Factors Ltd,01231325,FLE0026E
North Lincolnshire Council,http://data.ordnancesurvey.co.uk/id/7000000000025623,Fin&Inv I&E,Materials,5004,07/10/2017,5379154,229.91,REVENUE,Fleet Factors Ltd,01231325,FLE0026E
North Lincolnshire Council,http://data.ordnancesurvey.co.uk/id/7000000000025623,Fin&Inv I&E,Materials,5004,07/10/2017,5379156,357.86,REVENUE,Fleet Factors Ltd,01231325,FLE0026E
North Lincolnshire Council,http://data.ordnancesurvey.co.uk/id/7000000000025623,Fin&Inv I&E,Materials,5004,07/10/2017,5379157,275.00,REVENUE,Fleet Factors Ltd,01231325,FLE0026E
North Lincolnshire Council,http://data.ordnancesurvey.co.uk/id/7000000000025623,Fin&Inv I&E,Materials,5004,07/10/2017,5379163,342.94,REVENUE,Fleet Factors Ltd,01231325,FLE0026E
North Lincolnshire Council,http://data.ordnancesurvey.co.uk/id/7000000000025623,Fin&Inv I&E,Materials,5004,08/10/2017,5379173,448.00,REVENUE,Fleet Factors Ltd,01231325,FLE0026E
North Lincolnshire Council,http://data.ordnancesurvey.co.uk/id/7000000000025623,Fin&Inv I&E,Materials,5004,11/10/2017,5379185,209.98,REVENUE,Fleet Factors Ltd,01231325,FLE0026E
North Lincolnshire Council,http://data.ordnancesurvey.co.uk/id/7000000000025623,Fin&Inv I&E,Materials,5004,12/10/2017,5383663,273.00,REVENUE,Fleet Factors Ltd,01231325,FLE0026E
North Lincolnshire Council,http://data.ordnancesurvey.co.uk/id/7000000000025623,Fin&Inv I&E,Materials,5004,12/10/2017,5383664,"1,440.28",REVENUE,Fleet Factors Ltd,01231325,FLE0026E
North Lincolnshire Council,http://data.ordnancesurvey.co.uk/id/7000000000025623,Fin&Inv I&E,Materials,5004,12/10/2017,5383669,368.55,REVENUE,Fleet Factors Ltd,01231325,FLE0026E
North Lincolnshire Council,http://data.ordnancesurvey.co.uk/id/7000000000025623,Fin&Inv I&E,Materials,5004,12/10/2017,5383670,368.55,REVENUE,Fleet Factors Ltd,01231325,FLE0026E
North Lincolnshire Council,http://data.ordnancesurvey.co.uk/id/7000000000025623,Fin&Inv I&E,Materials,5004,13/10/2017,5383677,850.00,REVENUE,Fleet Factors Ltd,01231325,FLE0026E
North Lincolnshire Council,http://data.ordnancesurvey.co.uk/id/7000000000025623,Fin&Inv I&E,Materials,5004,14/10/2017,5383688,395.00,REVENUE,Fleet Factors Ltd,01231325,FLE0026E
North Lincolnshire Council,http://data.ordnancesurvey.co.uk/id/7000000000025623,Fin&Inv I&E,Materials,5004,19/10/2017,5383703,294.73,REVENUE,Fleet Factors Ltd,01231325,FLE0026E
North Lincolnshire Council,http://data.ordnancesurvey.co.uk/id/7000000000025623,Fin&Inv I&E,Materials,5004,19/10/2017,5383704,274.20,REVENUE,Fleet Factors Ltd,01231325,FLE0026E
North Lincolnshire Council,http://data.ordnancesurvey.co.uk/id/7000000000025623,Fin&Inv I&E,Stock Purchases & Adjustments,5030,30/09/2017,5377794,220.03,REVENUE,Fleet Factors Ltd,01231325,FLE0026E
North Lincolnshire Council,http://data.ordnancesurvey.co.uk/id/7000000000025623,Culture & Related Services,Materials,5004,13/09/2017,5371714,353.03,REVENUE,Fleet (Line Markers) Ltd,588668,FLE0103E
North Lincolnshire Council,http://data.ordnancesurvey.co.uk/id/7000000000025623,Culture & Related Services,Materials,5004,12/10/2017,5379376,755.83,REVENUE,Fleet (Line Markers) Ltd,588668,FLE0103E
North Lincolnshire Council,http://data.ordnancesurvey.co.uk/id/7000000000025623,Corporate And Democratic Core,Repair & Maintenance Costs,3000,15/09/2017,5378108,770.00,REVENUE,Flow Mech Products Ltd,2726033,FLO0050O
North Lincolnshire Council,http://data.ordnancesurvey.co.uk/id/7000000000025623,N Lincs Gf Balance Sheet,Insurance-Combined Liability,L493,19/09/2017,5381115,0,CAPITAL,Forbes Solicitors,,FOR0452R
North Lincolnshire Council,http://data.ordnancesurvey.co.uk/id/7000000000025623,Adult Social Care,Payments To Private Orgs,6002,13/09/2017,5375125,372.00,REVENUE,Foresight Ne Lincs Ltd,1095120,FOR0192R
North Lincolnshire Council,http://data.ordnancesurvey.co.uk/id/7000000000025623,Adult Social Care,Payments To Private Orgs,6002,13/09/2017,5375332,434.00,REVENUE,Foresight Ne Lincs Ltd,1095120,FOR0192R
North Lincolnshire Council,http://data.ordnancesurvey.co.uk/id/7000000000025623,Culture & Related Services,Equipment Purchase,5001,15/09/2017,5378805,600.00,REVENUE,Forest Crafts Ltd,,FOR0073R
North Lincolnshire Council,http://data.ordnancesurvey.co.uk/id/7000000000025623,Planning Services,Exhibitions/Events,5709,08/09/2017,5374468,291.67,REVENUE,Forest Pines Hotel,3398544,FOR0245R
North Lincolnshire Council,http://data.ordnancesurvey.co.uk/id/7000000000025623,Childrens & Education,Heating Fuels,3104,15/09/2017,5371683,"1,335.58",REVENUE,Forever Fuels Ltd,06239423,FOR0050R
North Lincolnshire Council,http://data.ordnancesurvey.co.uk/id/7000000000025623,Culture & Related Services,Heating Fuels,3104,08/09/2017,5373169,"1,741.16",REVENUE,Forever Fuels Ltd,06239423,FOR0050R
North Lincolnshire Council,http://data.ordnancesurvey.co.uk/id/7000000000025623,Culture & Related Services,Heating Fuels,3104,15/09/2017,5372743,"1,343.00",REVENUE,Forever Fuels Ltd,06239423,FOR0050R
North Lincolnshire Council,http://data.ordnancesurvey.co.uk/id/7000000000025623,Culture & Related Services,Heating Fuels,3104,21/09/2017,5373168,"1,756.96",REVENUE,Forever Fuels Ltd,06239423,FOR0050R
North Lincolnshire Council,http://data.ordnancesurvey.co.uk/id/7000000000025623,Culture & Related Services,Heating Fuels,3104,06/10/2017,5375552,"2,212.00",REVENUE,Forever Fuels Ltd,06239423,FOR0050R
North Lincolnshire Council,http://data.ordnancesurvey.co.uk/id/7000000000025623,Environmental & Regulatory Svs,Vehicle Hire,4101,30/09/2017,5379191,249.19,REVENUE,Forktruck Solutions Ltd,4032332,FOR0059R
North Lincolnshire Council,http://data.ordnancesurvey.co.uk/id/7000000000025623,Childrens & Education,Payments To Private Orgs,6002,14/06/2017,5383494,342.84,REVENUE,Foster Care Associates Limited,08273494,FOS0030S
North Lincolnshire Council,http://data.ordnancesurvey.co.uk/id/7000000000025623,Childrens & Education,Payments To Private Orgs,6002,14/06/2017,5383495,342.84,REVENUE,Foster Care Associates Limited,08273494,FOS0030S
North Lincolnshire Council,http://data.ordnancesurvey.co.uk/id/7000000000025623,Childrens & Education,Payments To Private Orgs,6002,15/09/2017,5378501,"3,341.49",REVENUE,Foster Care Associates Limited,08273494,FOS0030S
North Lincolnshire Council,http://data.ordnancesurvey.co.uk/id/7000000000025623,Childrens & Education,Payments To Private Orgs,6002,15/09/2017,5378502,"3,542.68",REVENUE,Foster Care Associates Limited,08273494,FOS0030S
North Lincolnshire Council,http://data.ordnancesurvey.co.uk/id/7000000000025623,Childrens & Education,Payments To Private Orgs,6002,15/09/2017,5378503,"-2,057.04",REVENUE,Foster Care Associates Limited,08273494,FOS0030S
North Lincolnshire Council,http://data.ordnancesurvey.co.uk/id/7000000000025623,Childrens & Education,Payments To Private Orgs,6002,15/09/2017,5378507,"5,314.02",REVENUE,Foster Care Associates Limited,08273494,FOS0030S
North Lincolnshire Council,http://data.ordnancesurvey.co.uk/id/7000000000025623,Childrens & Education,Payments To Private Orgs,6002,15/09/2017,5378508,"2,574.86",REVENUE,Foster Care Associates Limited,08273494,FOS0030S
North Lincolnshire Council,http://data.ordnancesurvey.co.uk/id/7000000000025623,Childrens & Education,Payments To Private Orgs,6002,15/09/2017,5378509,"3,299.02",REVENUE,Foster Care Associates Limited,08273494,FOS0030S
North Lincolnshire Council,http://data.ordnancesurvey.co.uk/id/7000000000025623,Childrens & Education,Payments To Private Orgs,6002,15/09/2017,5378510,"3,265.85",REVENUE,Fostering Solutions Ltd,,FOS0044S
North Lincolnshire Council,http://data.ordnancesurvey.co.uk/id/7000000000025623,Culture & Related Services,Other Supplies & Services,5799,15/09/2017,5378107,553.60,REVENUE,Fountains & Features Ltd,,FEA0065A
North Lincolnshire Council,http://data.ordnancesurvey.co.uk/id/7000000000025623,Culture & Related Services,Payments To Voluntary Orgs,6001,13/09/2017,5377608,"1,500.00",REVENUE,Friends Of Ealand Academy,,FOE0001E
North Lincolnshire Council,http://data.ordnancesurvey.co.uk/id/7000000000025623,Childrens & Education,Payments To Private Orgs,6002,15/09/2017,5378511,"3,985.71",REVENUE,Fusion Fostering,07819299,FUS0130S
North Lincolnshire Council,http://data.ordnancesurvey.co.uk/id/7000000000025623,Corporate And Democratic Core,Other Professional Fees,5829,01/09/2017,5382936,-514.85,REVENUE,G4s Cash Solutions (Uk) Ltd,354883,SEC0006C
North Lincolnshire Council,http://data.ordnancesurvey.co.uk/id/7000000000025623,Corporate And Democratic Core,Other Professional Fees,5829,30/09/2017,5382937,-261.30,REVENUE,G4s Cash Solutions (Uk) Ltd,354883,SEC0006C
North Lincolnshire Council,http://data.ordnancesurvey.co.uk/id/7000000000025623,Childrens & Education,Payments To Private Orgs,6002,15/09/2017,5378545,"2,318.40",REVENUE,Gayle Parker,,PAR0491R
North Lincolnshire Council,http://data.ordnancesurvey.co.uk/id/7000000000025623,Fin&Inv I&E,Equipment Maint.& Repair,5003,14/10/2017,5383711,725.00,REVENUE,Gemco Equipment Ltd,,GEM0002M
North Lincolnshire Council,http://data.ordnancesurvey.co.uk/id/7000000000025623,Fin&Inv I&E,Equipment Purchase,5001,21/09/2017,5377820,"1,475.00",REVENUE,Gemco Equipment Ltd,,GEM0002M
North Lincolnshire Council,http://data.ordnancesurvey.co.uk/id/7000000000025623,Fin&Inv I&E,Other Supplies & Services,5799,21/09/2017,5382431,"1,750.00",REVENUE,George Shuttleworth Ltd,4017442,SHU0025U
North Lincolnshire Council,http://data.ordnancesurvey.co.uk/id/7000000000025623,Culture & Related Services,Other Supplies & Services,5799,21/09/2017,5382482,803.60,REVENUE,Get Cycling Cic,,GET0150T
North Lincolnshire Council,http://data.ordnancesurvey.co.uk/id/7000000000025623,Highways & Transport,Stock Purchases & Adjustments,5030,08/09/2017,5367179,994.00,REVENUE,Glasdon Uk Ltd,2160576,GLA0002A
North Lincolnshire Council,http://data.ordnancesurvey.co.uk/id/7000000000025623,"Culture,Env,Reg & Planning Cap",Other Costs,A085,21/09/2017,5381791,762.10,CAPITAL,Glew Mackintosh-Smith Ltd,,GLE0160E
North Lincolnshire Council,http://data.ordnancesurvey.co.uk/id/7000000000025623,Corporate And Democratic Core,Fees & Charges Income,9002,08/09/2017,5375282,-31.16,REVENUE,G M B,,GMB0003B
North Lincolnshire Council,http://data.ordnancesurvey.co.uk/id/7000000000025623,Childrens & Education,Payments To Private Orgs,6002,15/09/2017,5378592,253.50,REVENUE,Goodwin Healthcare Services Ltd,8461130,CLA0170A
North Lincolnshire Council,http://data.ordnancesurvey.co.uk/id/7000000000025623,Planning Services,Exhibitions/Events,5709,06/09/2017,5372883,875.00,REVENUE,Gordon Poole Agency Ltd,,POO0165O
North Lincolnshire Council,http://data.ordnancesurvey.co.uk/id/7000000000025623,Childrens & Education,Payments To Voluntary Orgs,6001,01/09/2017,5372361,"4,244.52",REVENUE,Goxhill Pre-School,,GOX0012X
North Lincolnshire Council,http://data.ordnancesurvey.co.uk/id/7000000000025623,Environmental & Regulatory Svs,Other Supplies & Services,5799,06/09/2017,5370993,450.00,REVENUE,Graham Gibbs Associates,,GGA0001A
North Lincolnshire Council,http://data.ordnancesurvey.co.uk/id/7000000000025623,Environmental & Regulatory Svs,Materials,5004,19/09/2017,5378788,216.00,REVENUE,Granart Ltd,2633289,GRA0288A
North Lincolnshire Council,http://data.ordnancesurvey.co.uk/id/7000000000025623,Environmental & Regulatory Svs,Materials,5004,21/09/2017,5378791,"1,007.50",REVENUE,Granart Ltd,2633289,GRA0288A
North Lincolnshire Council,http://data.ordnancesurvey.co.uk/id/7000000000025623,Environmental & Regulatory Svs,Materials,5004,21/09/2017,5378813,216.00,REVENUE,Granart Ltd,2633289,GRA0288A
North Lincolnshire Council,http://data.ordnancesurvey.co.uk/id/7000000000025623,Culture & Related Services,Other Supplies & Services,5799,01/09/2017,5372673,"3,776.59",REVENUE,Grassform Plant Hire Ltd,,GRA0565A
North Lincolnshire Council,http://data.ordnancesurvey.co.uk/id/7000000000025623,Adult Social Care,Payments To Private Orgs,6002,21/09/2017,5383012,"1,864.68",REVENUE,Gray Healthcare Ltd,,ISF0032F
North Lincolnshire Council,http://data.ordnancesurvey.co.uk/id/7000000000025623,Childrens & Education,Payments To Private Orgs,6002,13/09/2017,5377411,"21,035.71",REVENUE,Greenfields Adolescent Development Ltd,04068839,GRE0189E
North Lincolnshire Council,http://data.ordnancesurvey.co.uk/id/7000000000025623,Highways & Transport,Stock Purchases & Adjustments,5030,30/10/2017,5380982,219.80,REVENUE,Greenham Trading Limited,2902454,GRE0161E
North Lincolnshire Council,http://data.ordnancesurvey.co.uk/id/7000000000025623,Fin&Inv I&E,Other Professional Fees,5829,21/09/2017,5382439,"2,132.00",REVENUE,Grice & Hunter,,GRI0243I
North Lincolnshire Council,http://data.ordnancesurvey.co.uk/id/7000000000025623,Environmental & Regulatory Svs,Payments To Private Orgs (Inv),6026,19/09/2017,5379534,"75,000.00",REVENUE,Grimsby & Scunthorpe Rape Crisis Ltd,,RAP0006P
North Lincolnshire Council,http://data.ordnancesurvey.co.uk/id/7000000000025623,Housing Services,Payments To Private Orgs,6002,19/09/2017,5380843,"2,442.15",REVENUE,Guinness Finance Income Team,,NOR0810R
North Lincolnshire Council,http://data.ordnancesurvey.co.uk/id/7000000000025623,Childrens & Education,Payments To Voluntary Orgs,6001,15/09/2017,5378540,"10,931.76",REVENUE,Gunness & Burringham Playgroup,,GUN0025N
North Lincolnshire Council,http://data.ordnancesurvey.co.uk/id/7000000000025623,Central Services To Public,Gen Office Exp (Incl Postage),5603,08/10/2017,5377417,906.96,REVENUE,Halarose Ltd,1362834,HAL0053L
North Lincolnshire Council,http://data.ordnancesurvey.co.uk/id/7000000000025623,Housing Services,Fees & Charges Income,9002,06/09/2017,5372684,-525.00,REVENUE,Hales & Coultas Ltd,10365696,HAL0001L
North Lincolnshire Council,http://data.ordnancesurvey.co.uk/id/7000000000025623,Adult Social Care,Payments To Private Orgs,6002,21/09/2017,5382949,"28,265.79",REVENUE,Hales Group Ltd,04738023,ABB0054B
North Lincolnshire Council,http://data.ordnancesurvey.co.uk/id/7000000000025623,Adult Social Care,Payments To Private Orgs,6002,21/09/2017,5382950,325.00,REVENUE,Hales Group Ltd,04738023,ABB0054B
North Lincolnshire Council,http://data.ordnancesurvey.co.uk/id/7000000000025623,Adult Social Care,Payments To Private Orgs,6002,21/09/2017,5382951,"-6,338.06",REVENUE,Hales Group Ltd,04738023,ABB0054B
North Lincolnshire Council,http://data.ordnancesurvey.co.uk/id/7000000000025623,Adult Social Care,Payments To Private Orgs,6002,21/09/2017,5382990,"10,711.80",REVENUE,Hales Group Ltd,,ISF0004F
North Lincolnshire Council,http://data.ordnancesurvey.co.uk/id/7000000000025623,Childrens & Education,Payments To Private Orgs,6002,06/09/2017,5373986,336.63,REVENUE,Hales Group Ltd,03756814,HAL0160L
North Lincolnshire Council,http://data.ordnancesurvey.co.uk/id/7000000000025623,Childrens & Education,Payments To Private Orgs,6002,06/09/2017,5373987,288.54,REVENUE,Hales Group Ltd,03756814,HAL0160L
North Lincolnshire Council,http://data.ordnancesurvey.co.uk/id/7000000000025623,Childrens & Education,Payments To Private Orgs,6002,13/09/2017,5377927,"1,074.01",REVENUE,Hales Group Ltd,03756814,HAL0160L
North Lincolnshire Council,http://data.ordnancesurvey.co.uk/id/7000000000025623,Childrens & Education,Payments To Private Orgs,6002,13/09/2017,5377928,497.06,REVENUE,Hales Group Ltd,03756814,HAL0160L
North Lincolnshire Council,http://data.ordnancesurvey.co.uk/id/7000000000025623,Childrens & Education,Payments To Private Orgs,6002,13/09/2017,5377929,282.56,REVENUE,Hales Group Ltd,03756814,HAL0160L
North Lincolnshire Council,http://data.ordnancesurvey.co.uk/id/7000000000025623,Childrens & Education,Payments To Private Orgs,6002,13/09/2017,5377931,281.70,REVENUE,Hales Group Ltd,03756814,HAL0160L
North Lincolnshire Council,http://data.ordnancesurvey.co.uk/id/7000000000025623,Childrens & Education,Payments To Private Orgs,6002,01/09/2017,5372363,"13,614.72",REVENUE,Happy Days Day Nursery,,HAP0008P
North Lincolnshire Council,http://data.ordnancesurvey.co.uk/id/7000000000025623,Childrens & Education,Payments To Private Orgs,6002,01/09/2017,5372362,"16,337.15",REVENUE,Happy Stars Day Nursery,,HAP0006P
North Lincolnshire Council,http://data.ordnancesurvey.co.uk/id/7000000000025623,Childrens & Education,Payments To Private Orgs,6002,13/09/2017,5375909,"3,770.70",REVENUE,Happy Stars Day Nursery,,HAP0006P
North Lincolnshire Council,http://data.ordnancesurvey.co.uk/id/7000000000025623,Environmental & Regulatory Svs,Payments To Private Orgs,6002,06/09/2017,5370941,268.41,REVENUE,Hargreaves (Uk) Services Ltd,3735251,HAR0722R
North Lincolnshire Council,http://data.ordnancesurvey.co.uk/id/7000000000025623,Environmental & Regulatory Svs,Payments To Private Orgs,6002,21/09/2017,5382670,268.41,REVENUE,Hargreaves (Uk) Services Ltd,3735251,HAR0722R
North Lincolnshire Council,http://data.ordnancesurvey.co.uk/id/7000000000025623,Environmental & Regulatory Svs,Payments To Private Orgs,6002,30/09/2017,5379033,536.82,REVENUE,Hargreaves (Uk) Services Ltd,3735251,HAR0722R
North Lincolnshire Council,http://data.ordnancesurvey.co.uk/id/7000000000025623,Environmental & Regulatory Svs,Payments To Private Orgs,6002,30/09/2017,5379045,268.41,REVENUE,Hargreaves (Uk) Services Ltd,3735251,HAR0722R
North Lincolnshire Council,http://data.ordnancesurvey.co.uk/id/7000000000025623,Environmental & Regulatory Svs,Payments To Private Orgs,6002,30/10/2017,5379037,268.41,REVENUE,Hargreaves (Uk) Services Ltd,3735251,HAR0722R
North Lincolnshire Council,http://data.ordnancesurvey.co.uk/id/7000000000025623,Culture & Related Services,Equipment Purchase,5001,30/09/2017,5374759,240.00,REVENUE,Harlequin Office Furniture & Equipment,,HAR0024R
North Lincolnshire Council,http://data.ordnancesurvey.co.uk/id/7000000000025623,Childrens & Education,Payments To Private Orgs,6002,15/09/2017,5378513,"31,371.58",REVENUE,Harmony Childrens Services,07350725,HAR0789R
North Lincolnshire Council,http://data.ordnancesurvey.co.uk/id/7000000000025623,"Culture,Env,Reg & Planning Cap",Building/Construction,A082,06/09/2017,5372688,"242,335.33",CAPITAL,Harry Fairclough Construction Ltd,,HAR0360R
North Lincolnshire Council,http://data.ordnancesurvey.co.uk/id/7000000000025623,Culture & Related Services,Other Professional Fees,5829,06/09/2017,5372646,285.00,REVENUE,Harworth Brass,,HAR0208R
North Lincolnshire Council,http://data.ordnancesurvey.co.uk/id/7000000000025623,Childrens & Education,Client Related Costs,5534,31/08/2017,5371678,156.00,REVENUE,Haven/British Holidays,,HAV0019V
North Lincolnshire Council,http://data.ordnancesurvey.co.uk/id/7000000000025623,Childrens & Education,Subsistence & Expenses (Staff),5720,31/08/2017,5371678,156.00,REVENUE,Haven/British Holidays,,HAV0019V
North Lincolnshire Council,http://data.ordnancesurvey.co.uk/id/7000000000025623,Childrens & Education,Payments To Voluntary Orgs,6001,01/09/2017,5372364,"6,546.96",REVENUE,Haxey Pre-School,,HAX0008X
North Lincolnshire Council,http://data.ordnancesurvey.co.uk/id/7000000000025623,Environmental & Regulatory Svs,Other Professional Fees,5829,21/09/2017,5382659,407.40,REVENUE,Healthcare Environmental Services Ltd,,HEA0061A
North Lincolnshire Council,http://data.ordnancesurvey.co.uk/id/7000000000025623,Fin&Inv I&E,Materials,5004,13/09/2017,5377774,218.59,REVENUE,Heil Farid European Company Limited,SC053003,FAR0008R
North Lincolnshire Council,http://data.ordnancesurvey.co.uk/id/7000000000025623,Fin&Inv I&E,Materials,5004,13/09/2017,5377775,469.42,REVENUE,Heil Farid European Company Limited,SC053003,FAR0008R
North Lincolnshire Council,http://data.ordnancesurvey.co.uk/id/7000000000025623,Fin&Inv I&E,Materials,5004,13/09/2017,5377776,330.00,REVENUE,Heil Farid European Company Limited,SC053003,FAR0008R
North Lincolnshire Council,http://data.ordnancesurvey.co.uk/id/7000000000025623,Culture & Related Services,Exhibitions/Events,5709,13/09/2017,5375937,600.00,REVENUE,Heritage Trust Of Lincolnshire Ltd,1001463,HER0004R
North Lincolnshire Council,http://data.ordnancesurvey.co.uk/id/7000000000025623,Adult Social Care,Other Supplies & Services,5799,30/08/2017,5370952,262.75,REVENUE,He Words Ltd,,HEW0030W
North Lincolnshire Council,http://data.ordnancesurvey.co.uk/id/7000000000025623,Adult Social Care,Other Supplies & Services,5799,30/08/2017,5370961,230.25,REVENUE,He Words Ltd,,HEW0030W
North Lincolnshire Council,http://data.ordnancesurvey.co.uk/id/7000000000025623,Adult Social Care,Other Supplies & Services,5799,01/09/2017,5371749,212.25,REVENUE,He Words Ltd,,HEW0030W
North Lincolnshire Council,http://data.ordnancesurvey.co.uk/id/7000000000025623,Adult Social Care,Other Supplies & Services,5799,01/09/2017,5371755,248.00,REVENUE,He Words Ltd,,HEW0030W
North Lincolnshire Council,http://data.ordnancesurvey.co.uk/id/7000000000025623,Adult Social Care,Other Supplies & Services,5799,01/09/2017,5371761,223.25,REVENUE,He Words Ltd,,HEW0030W
North Lincolnshire Council,http://data.ordnancesurvey.co.uk/id/7000000000025623,Adult Social Care,Other Supplies & Services,5799,01/09/2017,5371765,230.25,REVENUE,He Words Ltd,,HEW0030W
North Lincolnshire Council,http://data.ordnancesurvey.co.uk/id/7000000000025623,Adult Social Care,Other Supplies & Services,5799,01/09/2017,5371772,223.25,REVENUE,He Words Ltd,,HEW0030W
North Lincolnshire Council,http://data.ordnancesurvey.co.uk/id/7000000000025623,Adult Social Care,Other Supplies & Services,5799,08/09/2017,5373927,220.25,REVENUE,He Words Ltd,,HEW0030W
North Lincolnshire Council,http://data.ordnancesurvey.co.uk/id/7000000000025623,Adult Social Care,Other Supplies & Services,5799,08/09/2017,5374306,223.25,REVENUE,He Words Ltd,,HEW0030W
North Lincolnshire Council,http://data.ordnancesurvey.co.uk/id/7000000000025623,Adult Social Care,Other Supplies & Services,5799,08/09/2017,5374419,230.25,REVENUE,He Words Ltd,,HEW0030W
North Lincolnshire Council,http://data.ordnancesurvey.co.uk/id/7000000000025623,Adult Social Care,Other Supplies & Services,5799,08/09/2017,5374421,223.25,REVENUE,He Words Ltd,,HEW0030W
North Lincolnshire Council,http://data.ordnancesurvey.co.uk/id/7000000000025623,Adult Social Care,Other Supplies & Services,5799,08/09/2017,5374422,223.25,REVENUE,He Words Ltd,,HEW0030W
North Lincolnshire Council,http://data.ordnancesurvey.co.uk/id/7000000000025623,Adult Social Care,Other Supplies & Services,5799,13/09/2017,5375943,212.25,REVENUE,He Words Ltd,,HEW0030W
North Lincolnshire Council,http://data.ordnancesurvey.co.uk/id/7000000000025623,Adult Social Care,Other Supplies & Services,5799,13/09/2017,5375947,223.25,REVENUE,He Words Ltd,,HEW0030W
North Lincolnshire Council,http://data.ordnancesurvey.co.uk/id/7000000000025623,Adult Social Care,Other Supplies & Services,5799,13/09/2017,5376597,223.25,REVENUE,He Words Ltd,,HEW0030W
North Lincolnshire Council,http://data.ordnancesurvey.co.uk/id/7000000000025623,Adult Social Care,Other Supplies & Services,5799,15/09/2017,5377954,212.25,REVENUE,He Words Ltd,,HEW0030W
North Lincolnshire Council,http://data.ordnancesurvey.co.uk/id/7000000000025623,Adult Social Care,Other Supplies & Services,5799,15/09/2017,5377957,223.25,REVENUE,He Words Ltd,,HEW0030W
North Lincolnshire Council,http://data.ordnancesurvey.co.uk/id/7000000000025623,Adult Social Care,Other Supplies & Services,5799,19/09/2017,5378939,223.25,REVENUE,He Words Ltd,,HEW0030W
North Lincolnshire Council,http://data.ordnancesurvey.co.uk/id/7000000000025623,Adult Social Care,Other Supplies & Services,5799,19/09/2017,5378940,223.25,REVENUE,He Words Ltd,,HEW0030W
North Lincolnshire Council,http://data.ordnancesurvey.co.uk/id/7000000000025623,Adult Social Care,Other Supplies & Services,5799,19/09/2017,5378942,223.25,REVENUE,He Words Ltd,,HEW0030W
North Lincolnshire Council,http://data.ordnancesurvey.co.uk/id/7000000000025623,Adult Social Care,Other Supplies & Services,5799,19/09/2017,5378981,230.25,REVENUE,He Words Ltd,,HEW0030W
North Lincolnshire Council,http://data.ordnancesurvey.co.uk/id/7000000000025623,Childrens & Education,Client Related Costs,5534,08/09/2017,5373923,233.50,REVENUE,He Words Ltd,,HEW0030W
North Lincolnshire Council,http://data.ordnancesurvey.co.uk/id/7000000000025623,Childrens & Education,Other Supplies & Services,5799,18/10/2017,5382508,304.50,REVENUE,He Words Ltd,,HEW0030W
North Lincolnshire Council,http://data.ordnancesurvey.co.uk/id/7000000000025623,Childrens & Education,Payments To Private Orgs,6002,19/09/2017,5371696,347.00,REVENUE,He Words Ltd,,HEW0030W
North Lincolnshire Council,http://data.ordnancesurvey.co.uk/id/7000000000025623,Adult Social Care,Payments To Private Orgs,6002,21/09/2017,5382997,"8,645.24",REVENUE,Hica Ltd,,ISF0010F
North Lincolnshire Council,http://data.ordnancesurvey.co.uk/id/7000000000025623,Adult Social Care,Payments To Private Orgs,6002,21/09/2017,5382997,"1,474.00",REVENUE,Hica Ltd,,ISF0010F
North Lincolnshire Council,http://data.ordnancesurvey.co.uk/id/7000000000025623,Fin&Inv I&E,Other Professional Fees,5829,01/09/2017,5372665,815.85,REVENUE,Highfield Awarding Body For Compliance Ltd,,HIG0151G
North Lincolnshire Council,http://data.ordnancesurvey.co.uk/id/7000000000025623,Adult Social Care,Heating Fuels,3104,19/09/2017,5375494,"1,599.96",REVENUE,High Park Industries Ltd,06943408,HIG0032G
North Lincolnshire Council,http://data.ordnancesurvey.co.uk/id/7000000000025623,Corporate And Democratic Core,Repair & Maintenance Costs,3000,21/09/2017,5379289,"1,217.39",REVENUE,Hill Builders (Humberside) Ltd,1876857,HIL0003L
North Lincolnshire Council,http://data.ordnancesurvey.co.uk/id/7000000000025623,Culture & Related Services,Repair & Maintenance Costs,3000,01/09/2017,5369916,907.49,REVENUE,Hill Builders (Humberside) Ltd,1876857,HIL0003L
North Lincolnshire Council,http://data.ordnancesurvey.co.uk/id/7000000000025623,Culture & Related Services,Repair & Maintenance Costs,3000,21/09/2017,5379289,71.82,REVENUE,Hill Builders (Humberside) Ltd,1876857,HIL0003L
North Lincolnshire Council,http://data.ordnancesurvey.co.uk/id/7000000000025623,Fin&Inv I&E,Repair & Maintenance Costs,3000,01/09/2017,5369915,"1,643.90",REVENUE,Hill Builders (Humberside) Ltd,1876857,HIL0003L
North Lincolnshire Council,http://data.ordnancesurvey.co.uk/id/7000000000025623,Fin&Inv I&E,Repair & Maintenance Costs,3000,21/09/2017,5379289,58.80,REVENUE,Hill Builders (Humberside) Ltd,1876857,HIL0003L
North Lincolnshire Council,http://data.ordnancesurvey.co.uk/id/7000000000025623,Fin&Inv I&E,Repair & Maintenance Costs,3000,21/09/2017,5381796,"13,956.00",REVENUE,Hill Builders (Humberside) Ltd,1876857,HIL0003L
North Lincolnshire Council,http://data.ordnancesurvey.co.uk/id/7000000000025623,Culture & Related Services,Equipment Purchase,5001,19/09/2017,5379290,"1,454.50",REVENUE,Hill Sport,,HIL0327L
North Lincolnshire Council,http://data.ordnancesurvey.co.uk/id/7000000000025623,Environmental & Regulatory Svs,Other Professional Fees,5829,01/09/2017,5370899,822.72,REVENUE,Hilton Studio,,HIL0023L
North Lincolnshire Council,http://data.ordnancesurvey.co.uk/id/7000000000025623,Environmental & Regulatory Svs,Other Professional Fees,5829,12/10/2017,5378761,737.83,REVENUE,Hilton Studio,,HIL0023L
North Lincolnshire Council,http://data.ordnancesurvey.co.uk/id/7000000000025623,Other Expenditure & Income,Payments To Private Orgs,6002,01/09/2017,5372538,400.00,REVENUE,Hmcts,,COU0196U
North Lincolnshire Council,http://data.ordnancesurvey.co.uk/id/7000000000025623,Other Expenditure & Income,Payments To Private Orgs,6002,01/09/2017,5372545,400.00,REVENUE,Hmcts,,PUB0002B
North Lincolnshire Council,http://data.ordnancesurvey.co.uk/id/7000000000025623,Other Expenditure & Income,Payments To Private Orgs,6002,20/09/2017,5382487,400.00,REVENUE,Hmcts,,PUB0002B
North Lincolnshire Council,http://data.ordnancesurvey.co.uk/id/7000000000025623,Fin&Inv I&E,Other Professional Fees,5829,19/09/2017,5371893,"1,950.00",REVENUE,Hmrs Fss Accounts Receivable,,VAL0021L
North Lincolnshire Council,http://data.ordnancesurvey.co.uk/id/7000000000025623,Childrens & Education,Client Related Costs,5534,19/09/2017,5381143,252.00,REVENUE,H Nuttall,,NUT0015T
North Lincolnshire Council,http://data.ordnancesurvey.co.uk/id/7000000000025623,Childrens & Education,Payments To Private Orgs,6002,01/09/2017,5372384,655.20,REVENUE,H Nuttall,,NUT0015T
North Lincolnshire Council,http://data.ordnancesurvey.co.uk/id/7000000000025623,Adult Social Care,Repair & Maintenance Costs,3000,21/09/2017,5382465,675.57,REVENUE,Holls Electrical Ltd,1421429,HOL0021L
North Lincolnshire Council,http://data.ordnancesurvey.co.uk/id/7000000000025623,Corporate And Democratic Core,It Hardware -Purchase,5050,21/09/2017,5378804,582.39,REVENUE,Holls Electrical Ltd,1421429,HOL0021L
North Lincolnshire Council,http://data.ordnancesurvey.co.uk/id/7000000000025623,Corporate And Democratic Core,Repair & Maintenance Costs,3000,08/09/2017,5374139,"6,604.85",REVENUE,Holls Electrical Ltd,1421429,HOL0021L
North Lincolnshire Council,http://data.ordnancesurvey.co.uk/id/7000000000025623,Corporate And Democratic Core,Repair & Maintenance Costs,3000,15/09/2017,5377956,"1,379.76",REVENUE,Holls Electrical Ltd,1421429,HOL0021L
North Lincolnshire Council,http://data.ordnancesurvey.co.uk/id/7000000000025623,Corporate And Democratic Core,Repair & Maintenance Costs,3000,21/09/2017,5378804,"1,283.74",REVENUE,Holls Electrical Ltd,1421429,HOL0021L
North Lincolnshire Council,http://data.ordnancesurvey.co.uk/id/7000000000025623,Culture & Related Services,Repair & Maintenance Costs,3000,21/09/2017,5378804,"1,317.83",REVENUE,Holls Electrical Ltd,1421429,HOL0021L
North Lincolnshire Council,http://data.ordnancesurvey.co.uk/id/7000000000025623,Fin&Inv I&E,Repair & Maintenance Costs,3000,21/09/2017,5378804,318.24,REVENUE,Holls Electrical Ltd,1421429,HOL0021L
North Lincolnshire Council,http://data.ordnancesurvey.co.uk/id/7000000000025623,Housing Services,Fees & Charges Income,9002,13/09/2017,5375852,-100.00,REVENUE,Holls Electrical Ltd,1421429,HOL0021L
North Lincolnshire Council,http://data.ordnancesurvey.co.uk/id/7000000000025623,Housing Services,Repair & Maintenance Costs,3000,21/09/2017,5378804,172.70,REVENUE,Holls Electrical Ltd,1421429,HOL0021L
North Lincolnshire Council,http://data.ordnancesurvey.co.uk/id/7000000000025623,Planning Services,Repair & Maintenance Costs,3000,21/09/2017,5378804,203.72,REVENUE,Holls Electrical Ltd,1421429,HOL0021L
North Lincolnshire Council,http://data.ordnancesurvey.co.uk/id/7000000000025623,Childrens & Education,Payments To Private Orgs,6002,21/09/2017,5379046,"-14,565.23",REVENUE,Hollybank,,HOL0116L
North Lincolnshire Council,http://data.ordnancesurvey.co.uk/id/7000000000025623,Childrens & Education,Payments To Private Orgs,6002,01/09/2017,5372366,"1,008.00",REVENUE,Home Comforts Childminding,,HOM0132M
North Lincolnshire Council,http://data.ordnancesurvey.co.uk/id/7000000000025623,Housing Services,Other Supplies & Services,5799,01/09/2017,5371615,"2,031.55",REVENUE,Homegroup Ltd,,HOM0097M
North Lincolnshire Council,http://data.ordnancesurvey.co.uk/id/7000000000025623,Childrens & Education,Materials,5004,09/10/2017,5381790,278.90,REVENUE,Hope Education,1135827,HOP0015P
North Lincolnshire Council,http://data.ordnancesurvey.co.uk/id/7000000000025623,Culture & Related Services,Exhibitions/Events,5709,10/09/2017,5383290,339.99,REVENUE,Hope Education,1135827,HOP0015P
North Lincolnshire Council,http://data.ordnancesurvey.co.uk/id/7000000000025623,Culture & Related Services,Provisions,5201,08/09/2017,5372490,531.09,REVENUE,Hopwells Limited,01404481,HOP0104P
North Lincolnshire Council,http://data.ordnancesurvey.co.uk/id/7000000000025623,Culture & Related Services,Provisions,5201,13/09/2017,5372488,675.63,REVENUE,Hopwells Limited,01404481,HOP0104P
North Lincolnshire Council,http://data.ordnancesurvey.co.uk/id/7000000000025623,Culture & Related Services,Provisions,5201,15/09/2017,5372588,773.70,REVENUE,Hopwells Limited,01404481,HOP0104P
North Lincolnshire Council,http://data.ordnancesurvey.co.uk/id/7000000000025623,Culture & Related Services,Provisions,5201,19/09/2017,5372623,499.82,REVENUE,Hopwells Limited,01404481,HOP0104P
North Lincolnshire Council,http://data.ordnancesurvey.co.uk/id/7000000000025623,Culture & Related Services,Provisions,5201,21/09/2017,5375544,641.71,REVENUE,Hopwells Limited,01404481,HOP0104P
North Lincolnshire Council,http://data.ordnancesurvey.co.uk/id/7000000000025623,Culture & Related Services,Provisions,5201,30/09/2017,5375543,802.42,REVENUE,Hopwells Limited,01404481,HOP0104P
North Lincolnshire Council,http://data.ordnancesurvey.co.uk/id/7000000000025623,Fin&Inv I&E,Provisions,5201,13/09/2017,5376847,256.62,REVENUE,Hopwells Limited,01404481,HOP0104P
North Lincolnshire Council,http://data.ordnancesurvey.co.uk/id/7000000000025623,Fin&Inv I&E,Provisions,5201,13/09/2017,5376854,262.63,REVENUE,Hopwells Limited,01404481,HOP0104P
North Lincolnshire Council,http://data.ordnancesurvey.co.uk/id/7000000000025623,Fin&Inv I&E,Provisions,5201,13/09/2017,5376862,323.23,REVENUE,Hopwells Limited,01404481,HOP0104P
North Lincolnshire Council,http://data.ordnancesurvey.co.uk/id/7000000000025623,Fin&Inv I&E,Provisions,5201,13/09/2017,5376867,317.39,REVENUE,Hopwells Limited,01404481,HOP0104P
North Lincolnshire Council,http://data.ordnancesurvey.co.uk/id/7000000000025623,Fin&Inv I&E,Provisions,5201,13/09/2017,5376870,414.21,REVENUE,Hopwells Limited,01404481,HOP0104P
North Lincolnshire Council,http://data.ordnancesurvey.co.uk/id/7000000000025623,Fin&Inv I&E,Provisions,5201,13/09/2017,5376872,293.32,REVENUE,Hopwells Limited,01404481,HOP0104P
North Lincolnshire Council,http://data.ordnancesurvey.co.uk/id/7000000000025623,Fin&Inv I&E,Provisions,5201,13/09/2017,5376875,259.37,REVENUE,Hopwells Limited,01404481,HOP0104P
North Lincolnshire Council,http://data.ordnancesurvey.co.uk/id/7000000000025623,Fin&Inv I&E,Provisions,5201,13/09/2017,5376879,859.07,REVENUE,Hopwells Limited,01404481,HOP0104P
North Lincolnshire Council,http://data.ordnancesurvey.co.uk/id/7000000000025623,Fin&Inv I&E,Provisions,5201,13/09/2017,5376885,277.50,REVENUE,Hopwells Limited,01404481,HOP0104P
North Lincolnshire Council,http://data.ordnancesurvey.co.uk/id/7000000000025623,Fin&Inv I&E,Provisions,5201,13/09/2017,5376886,294.80,REVENUE,Hopwells Limited,01404481,HOP0104P
North Lincolnshire Council,http://data.ordnancesurvey.co.uk/id/7000000000025623,Fin&Inv I&E,Provisions,5201,13/09/2017,5376898,411.97,REVENUE,Hopwells Limited,01404481,HOP0104P
North Lincolnshire Council,http://data.ordnancesurvey.co.uk/id/7000000000025623,Fin&Inv I&E,Provisions,5201,13/09/2017,5376917,304.52,REVENUE,Hopwells Limited,01404481,HOP0104P
North Lincolnshire Council,http://data.ordnancesurvey.co.uk/id/7000000000025623,Fin&Inv I&E,Provisions,5201,13/09/2017,5376920,517.28,REVENUE,Hopwells Limited,01404481,HOP0104P
North Lincolnshire Council,http://data.ordnancesurvey.co.uk/id/7000000000025623,Fin&Inv I&E,Provisions,5201,13/09/2017,5376923,290.72,REVENUE,Hopwells Limited,01404481,HOP0104P
North Lincolnshire Council,http://data.ordnancesurvey.co.uk/id/7000000000025623,Fin&Inv I&E,Provisions,5201,13/09/2017,5376944,509.81,REVENUE,Hopwells Limited,01404481,HOP0104P
North Lincolnshire Council,http://data.ordnancesurvey.co.uk/id/7000000000025623,Fin&Inv I&E,Provisions,5201,13/09/2017,5376954,366.66,REVENUE,Hopwells Limited,01404481,HOP0104P
North Lincolnshire Council,http://data.ordnancesurvey.co.uk/id/7000000000025623,Fin&Inv I&E,Provisions,5201,13/09/2017,5376961,340.94,REVENUE,Hopwells Limited,01404481,HOP0104P
North Lincolnshire Council,http://data.ordnancesurvey.co.uk/id/7000000000025623,Fin&Inv I&E,Provisions,5201,13/09/2017,5376968,263.40,REVENUE,Hopwells Limited,01404481,HOP0104P
North Lincolnshire Council,http://data.ordnancesurvey.co.uk/id/7000000000025623,Fin&Inv I&E,Provisions,5201,13/09/2017,5376969,474.82,REVENUE,Hopwells Limited,01404481,HOP0104P
North Lincolnshire Council,http://data.ordnancesurvey.co.uk/id/7000000000025623,Fin&Inv I&E,Provisions,5201,19/09/2017,5381185,263.26,REVENUE,Hopwells Limited,01404481,HOP0104P
North Lincolnshire Council,http://data.ordnancesurvey.co.uk/id/7000000000025623,Fin&Inv I&E,Provisions,5201,19/09/2017,5381195,254.01,REVENUE,Hopwells Limited,01404481,HOP0104P
North Lincolnshire Council,http://data.ordnancesurvey.co.uk/id/7000000000025623,Fin&Inv I&E,Provisions,5201,19/09/2017,5381196,300.92,REVENUE,Hopwells Limited,01404481,HOP0104P
North Lincolnshire Council,http://data.ordnancesurvey.co.uk/id/7000000000025623,Fin&Inv I&E,Provisions,5201,19/09/2017,5381213,388.52,REVENUE,Hopwells Limited,01404481,HOP0104P
North Lincolnshire Council,http://data.ordnancesurvey.co.uk/id/7000000000025623,Fin&Inv I&E,Provisions,5201,19/09/2017,5381214,691.60,REVENUE,Hopwells Limited,01404481,HOP0104P
North Lincolnshire Council,http://data.ordnancesurvey.co.uk/id/7000000000025623,Fin&Inv I&E,Provisions,5201,19/09/2017,5381224,254.01,REVENUE,Hopwells Limited,01404481,HOP0104P
North Lincolnshire Council,http://data.ordnancesurvey.co.uk/id/7000000000025623,Fin&Inv I&E,Provisions,5201,19/09/2017,5381225,507.44,REVENUE,Hopwells Limited,01404481,HOP0104P
North Lincolnshire Council,http://data.ordnancesurvey.co.uk/id/7000000000025623,Fin&Inv I&E,Provisions,5201,19/09/2017,5381228,371.90,REVENUE,Hopwells Limited,01404481,HOP0104P
North Lincolnshire Council,http://data.ordnancesurvey.co.uk/id/7000000000025623,Fin&Inv I&E,Provisions,5201,19/09/2017,5381234,260.53,REVENUE,Hopwells Limited,01404481,HOP0104P
North Lincolnshire Council,http://data.ordnancesurvey.co.uk/id/7000000000025623,Fin&Inv I&E,Provisions,5201,19/09/2017,5381238,351.55,REVENUE,Hopwells Limited,01404481,HOP0104P
North Lincolnshire Council,http://data.ordnancesurvey.co.uk/id/7000000000025623,Fin&Inv I&E,Provisions,5201,19/09/2017,5381242,944.75,REVENUE,Hopwells Limited,01404481,HOP0104P
North Lincolnshire Council,http://data.ordnancesurvey.co.uk/id/7000000000025623,Fin&Inv I&E,Provisions,5201,19/09/2017,5381283,313.69,REVENUE,Hopwells Limited,01404481,HOP0104P
North Lincolnshire Council,http://data.ordnancesurvey.co.uk/id/7000000000025623,Fin&Inv I&E,Provisions,5201,19/09/2017,5381296,413.34,REVENUE,Hopwells Limited,01404481,HOP0104P
North Lincolnshire Council,http://data.ordnancesurvey.co.uk/id/7000000000025623,Fin&Inv I&E,Provisions,5201,19/09/2017,5381300,371.10,REVENUE,Hopwells Limited,01404481,HOP0104P
North Lincolnshire Council,http://data.ordnancesurvey.co.uk/id/7000000000025623,Highways & Transport,Concessionary Fares,6010,01/09/2017,5371588,"39,700.00",REVENUE,Hornsby Travel Services Ltd,01490232,HOR0122R
North Lincolnshire Council,http://data.ordnancesurvey.co.uk/id/7000000000025623,Highways & Transport,Passenger Transport,6011,21/09/2017,5379745,"28,688.39",REVENUE,Hornsby Travel Services Ltd,01490232,HOR0122R
North Lincolnshire Council,http://data.ordnancesurvey.co.uk/id/7000000000025623,Highways & Transport,Passenger Transport,6011,21/09/2017,5379746,"5,996.00",REVENUE,Hornsby Travel Services Ltd,01490232,HOR0122R
North Lincolnshire Council,http://data.ordnancesurvey.co.uk/id/7000000000025623,Highways & Transport,Passenger Transport,6011,21/09/2017,5379747,"6,379.00",REVENUE,Hornsby Travel Services Ltd,01490232,HOR0122R
North Lincolnshire Council,http://data.ordnancesurvey.co.uk/id/7000000000025623,Highways & Transport,Passenger Transport,6011,21/09/2017,5379748,"6,195.00",REVENUE,Hornsby Travel Services Ltd,01490232,HOR0122R
North Lincolnshire Council,http://data.ordnancesurvey.co.uk/id/7000000000025623,Highways & Transport,Passenger Transport,6011,21/09/2017,5380779,"6,763.20",REVENUE,Hornsby Travel Services Ltd,01490232,HOR0122R
North Lincolnshire Council,http://data.ordnancesurvey.co.uk/id/7000000000025623,Planning Services,Other Supplies & Services,5799,21/09/2017,5382819,"3,080.00",REVENUE,Hornsby Travel Services Ltd,01490232,HOR0122R
North Lincolnshire Council,http://data.ordnancesurvey.co.uk/id/7000000000025623,Childrens & Education,Client Related Costs,5534,19/09/2017,5378570,"1,450.00",REVENUE,Horton Establishments Ltd,,HOR0164R
North Lincolnshire Council,http://data.ordnancesurvey.co.uk/id/7000000000025623,Adult Social Care,Equipment Purchase,5001,06/10/2017,5379784,325.50,REVENUE,Hospital Direct,3902966,HOS0003S
North Lincolnshire Council,http://data.ordnancesurvey.co.uk/id/7000000000025623,Adult Social Care,Payments To Private Orgs,6002,21/09/2017,5382985,"25,360.00",REVENUE,Housing & Support Solutions Ltd,,HOU0264U
North Lincolnshire Council,http://data.ordnancesurvey.co.uk/id/7000000000025623,Adult Social Care,Payments To Private Orgs,6002,21/09/2017,5383003,"6,375.04",REVENUE,Housing & Support Solutions Ltd,,ISF0014F
North Lincolnshire Council,http://data.ordnancesurvey.co.uk/id/7000000000025623,Adult Social Care,Payments To Private Orgs,6002,21/09/2017,5383003,"4,342.16",REVENUE,Housing & Support Solutions Ltd,,ISF0014F
North Lincolnshire Council,http://data.ordnancesurvey.co.uk/id/7000000000025623,Adult Social Care,Payments To Private Orgs,6002,06/09/2017,5373216,978.00,REVENUE,Hugo Golden-Betts,,BET0160T
North Lincolnshire Council,http://data.ordnancesurvey.co.uk/id/7000000000025623,Adult Social Care,Payments To Private Orgs,6002,06/09/2017,5373235,545.20,REVENUE,Hugo Golden-Betts,,BET0160T
North Lincolnshire Council,http://data.ordnancesurvey.co.uk/id/7000000000025623,Adult Social Care,Payments To Private Orgs,6002,06/09/2017,5373246,501.60,REVENUE,Hugo Golden-Betts,,BET0160T
North Lincolnshire Council,http://data.ordnancesurvey.co.uk/id/7000000000025623,Highways & Transport,Stock Purchases & Adjustments,5030,30/10/2017,5379385,230.55,REVENUE,Humber Merchants Ltd,1045179,HUM0003M
North Lincolnshire Council,http://data.ordnancesurvey.co.uk/id/7000000000025623,Corporate And Democratic Core,Repair & Maintenance Costs,3000,15/09/2017,5377958,295.94,REVENUE,Humberside Sunblinds Ltd,3810294,HUM0273M
North Lincolnshire Council,http://data.ordnancesurvey.co.uk/id/7000000000025623,Highways & Transport,Passenger Transport,6011,21/09/2017,5382481,"7,500.00",REVENUE,Humber & Wolds Rural Community Council,4606085,HUM0335M
North Lincolnshire Council,http://data.ordnancesurvey.co.uk/id/7000000000025623,Childrens & Education,Payments To Private Orgs,6002,19/09/2017,5380421,"1,540.00",REVENUE,Huntcliff School,,HUN0039N
North Lincolnshire Council,http://data.ordnancesurvey.co.uk/id/7000000000025623,Corporate And Democratic Core,Course Fees/Training,2002,19/09/2017,5378821,495.00,REVENUE,Iccm,,IBC0004C
North Lincolnshire Council,http://data.ordnancesurvey.co.uk/id/7000000000025623,Corporate And Democratic Core,Equipment Maint.& Repair,5003,15/09/2017,5370998,335.53,REVENUE,Id Spares And Service Ltd,3368326,IDS0012S
North Lincolnshire Council,http://data.ordnancesurvey.co.uk/id/7000000000025623,Childrens & Education,Payments To Private Orgs,6002,01/09/2017,5372338,"16,056.88",REVENUE,I Learn Education Ltd,,ABC0063C
North Lincolnshire Council,http://data.ordnancesurvey.co.uk/id/7000000000025623,Childrens & Education,Payments To Private Orgs,6002,01/09/2017,5372367,"24,194.12",REVENUE,I Learn Education Ltd,,ILE0004E
North Lincolnshire Council,http://data.ordnancesurvey.co.uk/id/7000000000025623,Childrens & Education,Payments To Private Orgs,6002,06/09/2017,5373988,272.00,REVENUE,I Learn Education Ltd,,ABC0063C
North Lincolnshire Council,http://data.ordnancesurvey.co.uk/id/7000000000025623,Childrens & Education,Payments To Private Orgs,6002,08/09/2017,5374826,836.00,REVENUE,I Learn Education Ltd,,ABC0063C
North Lincolnshire Council,http://data.ordnancesurvey.co.uk/id/7000000000025623,Corporate And Democratic Core,Gen Office Exp (Incl Postage),5603,05/10/2017,5376581,"4,415.50",REVENUE,Iml Labels & Systems Ltd,3396128,IML0001L
North Lincolnshire Council,http://data.ordnancesurvey.co.uk/id/7000000000025623,Fin&Inv I&E,Materials,5004,15/09/2017,5379194,"6,690.35",REVENUE,Imperial Commercials Ltd,653665,LEX0001X
North Lincolnshire Council,http://data.ordnancesurvey.co.uk/id/7000000000025623,Childrens & Education,Payments To Private Orgs,6002,15/09/2017,5378491,"14,087.33",REVENUE,Independent Childcare Group Of Schools Ltd,,CAM0185M
North Lincolnshire Council,http://data.ordnancesurvey.co.uk/id/7000000000025623,Childrens & Education,Payments To Private Orgs,6002,15/09/2017,5378497,"14,835.67",REVENUE,Independent Childcare Group Of Schools Ltd,,CAM0185M
North Lincolnshire Council,http://data.ordnancesurvey.co.uk/id/7000000000025623,Childrens & Education,Payments To Private Orgs,6002,15/09/2017,5378498,"12,722.40",REVENUE,Independent Childcare Group Of Schools Ltd,,CAM0185M
North Lincolnshire Council,http://data.ordnancesurvey.co.uk/id/7000000000025623,Culture & Related Services,It Hardware -Purchase,5050,21/09/2017,5375511,433.42,REVENUE,Insight Direct (Uk) Ltd,2579852,INS0054S
North Lincolnshire Council,http://data.ordnancesurvey.co.uk/id/7000000000025623,Highways & Transport,Stock Purchases & Adjustments,5030,06/09/2017,5368768,"1,781.76",REVENUE,Instarmac Group Plc,1324925,INS0024S
North Lincolnshire Council,http://data.ordnancesurvey.co.uk/id/7000000000025623,Highways & Transport,Stock Purchases & Adjustments,5030,30/09/2017,5375177,392.00,REVENUE,Instarmac Group Plc,1324925,INS0024S
North Lincolnshire Council,http://data.ordnancesurvey.co.uk/id/7000000000025623,Highways & Transport,Stock Purchases & Adjustments,5030,08/10/2017,5379705,"1,419.12",REVENUE,Instarmac Group Plc,1324925,INS0024S
North Lincolnshire Council,http://data.ordnancesurvey.co.uk/id/7000000000025623,Corporate And Democratic Core,Repair & Maintenance Costs,3000,13/09/2017,5377689,533.74,REVENUE,Instatherm Combustion Services,,INS0107S
North Lincolnshire Council,http://data.ordnancesurvey.co.uk/id/7000000000025623,Environmental & Regulatory Svs,It Software-Maintenance,5053,30/09/2017,5382658,"1,900.00",REVENUE,Integrated Skills (Uk) Ltd,2849999,INT0130T
North Lincolnshire Council,http://data.ordnancesurvey.co.uk/id/7000000000025623,Adult Social Care,Equipment Purchase,5001,20/10/2017,5379764,448.50,REVENUE,Invacare Ltd,5178693,INV0022V
North Lincolnshire Council,http://data.ordnancesurvey.co.uk/id/7000000000025623,Culture & Related Services,Leasing Charges - Controllable,5798,01/09/2017,5369931,693.61,REVENUE,Investec Asset Finance Plc,02179313,INV0004V
North Lincolnshire Council,http://data.ordnancesurvey.co.uk/id/7000000000025623,Culture & Related Services,Leasing Charges - Controllable,5798,01/09/2017,5369932,293.46,REVENUE,Investec Asset Finance Plc,02179313,INV0004V
North Lincolnshire Council,http://data.ordnancesurvey.co.uk/id/7000000000025623,Highways & Transport,Concessionary Fares,6010,01/09/2017,5371591,"5,100.00",REVENUE,Isle Coaches,,COA0039A
North Lincolnshire Council,http://data.ordnancesurvey.co.uk/id/7000000000025623,Highways & Transport,Passenger Transport,6011,21/09/2017,5379742,"2,445.36",REVENUE,Isle Coaches,,COA0039A
North Lincolnshire Council,http://data.ordnancesurvey.co.uk/id/7000000000025623,Fin&Inv I&E,"Clothing, Uniforms & Laundry",5301,01/10/2017,5377822,492.75,REVENUE,Jacksons Workwear Rental Ltd,193856,JAC0171C
North Lincolnshire Council,http://data.ordnancesurvey.co.uk/id/7000000000025623,Corporate And Democratic Core,Other Professional Fees,5829,08/09/2017,5375412,0,REVENUE,Jacobs,,JAC0011C
North Lincolnshire Council,http://data.ordnancesurvey.co.uk/id/7000000000025623,Corporate And Democratic Core,Other Professional Fees,5829,21/09/2017,5382503,0,REVENUE,Jacobs,,JAC0011C
North Lincolnshire Council,http://data.ordnancesurvey.co.uk/id/7000000000025623,Environmental & Regulatory Svs,Other Supplies & Services,5799,14/10/2017,5379729,"1,343.76",REVENUE,Jaydee Living Ltd,05895231,JAY0130Y
North Lincolnshire Council,http://data.ordnancesurvey.co.uk/id/7000000000025623,Fin&Inv I&E,Leasing Charges - Controllable,5798,01/09/2017,5372863,"2,791.94",REVENUE,Jcb Finance Ltd,972265,JCB0003B
North Lincolnshire Council,http://data.ordnancesurvey.co.uk/id/7000000000025623,Fin&Inv I&E,Leasing Charges - Controllable,5798,01/09/2017,5372864,251.25,REVENUE,Jcb Finance Ltd,972265,JCB0003B
North Lincolnshire Council,http://data.ordnancesurvey.co.uk/id/7000000000025623,Fin&Inv I&E,Leasing Charges - Controllable,5798,01/09/2017,5372865,"1,309.72",REVENUE,Jcb Finance Ltd,972265,JCB0003B
North Lincolnshire Council,http://data.ordnancesurvey.co.uk/id/7000000000025623,Fin&Inv I&E,Leasing Charges - Controllable,5798,01/09/2017,5372866,"1,221.86",REVENUE,Jcb Finance Ltd,972265,JCB0003B
North Lincolnshire Council,http://data.ordnancesurvey.co.uk/id/7000000000025623,Fin&Inv I&E,Leasing Charges - Controllable,5798,01/09/2017,5372867,227.50,REVENUE,Jcb Finance Ltd,972265,JCB0003B
North Lincolnshire Council,http://data.ordnancesurvey.co.uk/id/7000000000025623,Fin&Inv I&E,Leasing Charges - Controllable,5798,01/09/2017,5372868,599.25,REVENUE,Jcb Finance Ltd,972265,JCB0003B
North Lincolnshire Council,http://data.ordnancesurvey.co.uk/id/7000000000025623,Fin&Inv I&E,Leasing Charges - Controllable,5798,01/09/2017,5372869,"1,099.18",REVENUE,Jcb Finance Ltd,972265,JCB0003B
North Lincolnshire Council,http://data.ordnancesurvey.co.uk/id/7000000000025623,Fin&Inv I&E,Leasing Charges - Controllable,5798,01/09/2017,5372870,384.81,REVENUE,Jcb Finance Ltd,972265,JCB0003B
North Lincolnshire Council,http://data.ordnancesurvey.co.uk/id/7000000000025623,Adult Social Care,Payments To Private Orgs,6002,21/09/2017,5383014,"1,200.00",REVENUE,Jme Care Ltd,,ISF0035F
North Lincolnshire Council,http://data.ordnancesurvey.co.uk/id/7000000000025623,Adult Social Care,Payments To Private Orgs,6002,21/09/2017,5383014,"21,583.64",REVENUE,Jme Care Ltd,,ISF0035F
North Lincolnshire Council,http://data.ordnancesurvey.co.uk/id/7000000000025623,Highways & Transport,Stock Purchases & Adjustments,5030,15/09/2017,5372330,576.00,REVENUE,Jobling Purser Ltd,,JOB0007B
North Lincolnshire Council,http://data.ordnancesurvey.co.uk/id/7000000000025623,Culture & Related Services,Equipment Purchase,5001,19/09/2017,5378528,"3,594.00",REVENUE,John Espin Signs Ltd,05305298,ESP0003P
North Lincolnshire Council,http://data.ordnancesurvey.co.uk/id/7000000000025623,Culture & Related Services,Equipment Purchase,5001,19/09/2017,5378529,230.25,REVENUE,John Espin Signs Ltd,05305298,ESP0003P
North Lincolnshire Council,http://data.ordnancesurvey.co.uk/id/7000000000025623,Culture & Related Services,Other Supplies & Services,5799,19/09/2017,5374763,490.60,REVENUE,John Espin Signs Ltd,05305298,ESP0003P
North Lincolnshire Council,http://data.ordnancesurvey.co.uk/id/7000000000025623,Culture & Related Services,Other Supplies & Services,5799,01/10/2017,5375600,"1,096.88",REVENUE,John Espin Signs Ltd,05305298,ESP0003P
North Lincolnshire Council,http://data.ordnancesurvey.co.uk/id/7000000000025623,Highways & Transport,Materials,5004,06/09/2017,5371737,"1,591.20",REVENUE,John Espin Signs Ltd,05305298,ESP0003P
North Lincolnshire Council,http://data.ordnancesurvey.co.uk/id/7000000000025623,Fin&Inv I&E,Materials,5004,07/10/2017,5379193,299.10,REVENUE,Johnston Sweepers Ltd,199841,JOH0004H
North Lincolnshire Council,http://data.ordnancesurvey.co.uk/id/7000000000025623,Culture & Related Services,Repair & Maintenance Costs,3000,15/09/2017,5378145,801.58,REVENUE,John Watson T/A Ultrasonic Systems,,WAT0063T
North Lincolnshire Council,http://data.ordnancesurvey.co.uk/id/7000000000025623,Culture & Related Services,Repair & Maintenance Costs,3000,15/09/2017,5378146,798.45,REVENUE,John Watson T/A Ultrasonic Systems,,WAT0063T
North Lincolnshire Council,http://data.ordnancesurvey.co.uk/id/7000000000025623,Culture & Related Services,Other Supplies & Services,5799,09/10/2017,5379708,912.00,REVENUE,J R Blakey,,BLA0035A
North Lincolnshire Council,http://data.ordnancesurvey.co.uk/id/7000000000025623,Fin&Inv I&E,Provisions,5201,30/08/2017,5371824,267.15,REVENUE,J W Young (Butcher) Ltd,01348637,JWY0001Y
North Lincolnshire Council,http://data.ordnancesurvey.co.uk/id/7000000000025623,Fin&Inv I&E,Provisions,5201,06/09/2017,5374225,285.25,REVENUE,J W Young (Butcher) Ltd,01348637,JWY0001Y
North Lincolnshire Council,http://data.ordnancesurvey.co.uk/id/7000000000025623,Fin&Inv I&E,Provisions,5201,13/09/2017,5376997,265.33,REVENUE,J W Young (Butcher) Ltd,01348637,JWY0001Y
North Lincolnshire Council,http://data.ordnancesurvey.co.uk/id/7000000000025623,Fin&Inv I&E,Provisions,5201,13/09/2017,5377011,283.31,REVENUE,J W Young (Butcher) Ltd,01348637,JWY0001Y
North Lincolnshire Council,http://data.ordnancesurvey.co.uk/id/7000000000025623,Fin&Inv I&E,Provisions,5201,13/09/2017,5377050,264.99,REVENUE,J W Young (Butcher) Ltd,01348637,JWY0001Y
North Lincolnshire Council,http://data.ordnancesurvey.co.uk/id/7000000000025623,Fin&Inv I&E,Provisions,5201,19/09/2017,5381406,309.00,REVENUE,J W Young (Butcher) Ltd,01348637,JWY0001Y
North Lincolnshire Council,http://data.ordnancesurvey.co.uk/id/7000000000025623,Culture & Related Services,Fees & Charges Income,9002,15/09/2017,5375978,-185.20,REVENUE,Karen Raithby,,RAI0063I
North Lincolnshire Council,http://data.ordnancesurvey.co.uk/id/7000000000025623,Culture & Related Services,Stock Purchases & Adjustments,5030,15/09/2017,5375978,"1,026.00",REVENUE,Karen Raithby,,RAI0063I
North Lincolnshire Council,http://data.ordnancesurvey.co.uk/id/7000000000025623,Childrens & Education,Payments To Private Orgs,6002,15/09/2017,5378550,504.00,REVENUE,Karen Tidmarsh,,TID0036D
North Lincolnshire Council,http://data.ordnancesurvey.co.uk/id/7000000000025623,Childrens & Education,Client Transport Costs,6092,15/09/2017,5377622,299.80,REVENUE,Kaths Kabs,1967063,KAT0001T
North Lincolnshire Council,http://data.ordnancesurvey.co.uk/id/7000000000025623,Childrens & Education,Client Transport Costs,6092,15/09/2017,5377644,"2,550.00",REVENUE,Kaths Kabs,1967063,KAT0001T
North Lincolnshire Council,http://data.ordnancesurvey.co.uk/id/7000000000025623,Childrens & Education,Client Transport Costs,6092,15/09/2017,5377680,374.00,REVENUE,Kaths Kabs,1967063,KAT0001T
North Lincolnshire Council,http://data.ordnancesurvey.co.uk/id/7000000000025623,Childrens & Education,Client Transport Costs,6092,15/09/2017,5377706,"1,016.60",REVENUE,Kaths Kabs,1967063,KAT0001T
North Lincolnshire Council,http://data.ordnancesurvey.co.uk/id/7000000000025623,Childrens & Education,Client Transport Costs,6092,15/09/2017,5377854,900.00,REVENUE,Kaths Kabs,1967063,KAT0001T
North Lincolnshire Council,http://data.ordnancesurvey.co.uk/id/7000000000025623,Childrens & Education,Client Transport Costs,6092,15/09/2017,5377855,360.00,REVENUE,Kaths Kabs,1967063,KAT0001T
North Lincolnshire Council,http://data.ordnancesurvey.co.uk/id/7000000000025623,Childrens & Education,Client Transport Costs,6092,15/09/2017,5377857,600.00,REVENUE,Kaths Kabs,1967063,KAT0001T
North Lincolnshire Council,http://data.ordnancesurvey.co.uk/id/7000000000025623,Childrens & Education,Client Transport Costs,6092,15/09/2017,5377858,"1,016.60",REVENUE,Kaths Kabs,1967063,KAT0001T
North Lincolnshire Council,http://data.ordnancesurvey.co.uk/id/7000000000025623,Childrens & Education,Client Transport Costs,6092,15/09/2017,5377865,"1,800.00",REVENUE,Kaths Kabs,1967063,KAT0001T
North Lincolnshire Council,http://data.ordnancesurvey.co.uk/id/7000000000025623,Childrens & Education,Client Transport Costs,6092,15/09/2017,5377870,328.90,REVENUE,Kaths Kabs,1967063,KAT0001T
North Lincolnshire Council,http://data.ordnancesurvey.co.uk/id/7000000000025623,Childrens & Education,Client Transport Costs,6092,15/09/2017,5377872,778.60,REVENUE,Kaths Kabs,1967063,KAT0001T
North Lincolnshire Council,http://data.ordnancesurvey.co.uk/id/7000000000025623,Childrens & Education,Client Transport Costs,6092,15/09/2017,5377874,280.00,REVENUE,Kaths Kabs,1967063,KAT0001T
North Lincolnshire Council,http://data.ordnancesurvey.co.uk/id/7000000000025623,Culture & Related Services,Stock Purchases & Adjustments,5030,19/09/2017,5378162,324.66,REVENUE,Keycraft Ltd,SC466323,KEY0021Y
North Lincolnshire Council,http://data.ordnancesurvey.co.uk/id/7000000000025623,Culture & Related Services,Stock Purchases & Adjustments,5030,08/10/2017,5378789,446.24,REVENUE,Keycraft Ltd,SC466323,KEY0021Y
North Lincolnshire Council,http://data.ordnancesurvey.co.uk/id/7000000000025623,Highways & Transport,Stock Purchases & Adjustments,5030,15/09/2017,5375243,441.40,REVENUE,Keyline Builders Merchants,42425,KEY0035Y
North Lincolnshire Council,http://data.ordnancesurvey.co.uk/id/7000000000025623,Highways & Transport,Stock Purchases & Adjustments,5030,15/09/2017,5375244,260.16,REVENUE,Keyline Builders Merchants,42425,KEY0035Y
North Lincolnshire Council,http://data.ordnancesurvey.co.uk/id/7000000000025623,Childrens & Education,Payments To Private Orgs,6002,19/09/2017,5378945,"38,208.00",REVENUE,Keys 7ks Ltd,NI608728,7KS0001S
North Lincolnshire Council,http://data.ordnancesurvey.co.uk/id/7000000000025623,Childrens & Education,Payments To Private Orgs,6002,15/09/2017,5378541,"2,829.60",REVENUE,Kidz Club,,KID0044D
North Lincolnshire Council,http://data.ordnancesurvey.co.uk/id/7000000000025623,Childrens & Education,Payments To Private Orgs,6002,01/09/2017,5372369,"14,926.30",REVENUE,Kingsway Consulting Ltd,02808435,KIN0105N
North Lincolnshire Council,http://data.ordnancesurvey.co.uk/id/7000000000025623,Childrens & Education,Client Related Costs,5534,13/09/2017,5375068,"2,700.00",REVENUE,Know Media,,KNO0010O
North Lincolnshire Council,http://data.ordnancesurvey.co.uk/id/7000000000025623,Culture & Related Services,Other Supplies & Services,5799,30/08/2017,5370978,711.54,REVENUE,Kool Kingdom Ltd,,KOO0001O
North Lincolnshire Council,http://data.ordnancesurvey.co.uk/id/7000000000025623,Culture & Related Services,Other Supplies & Services,5799,30/08/2017,5370979,451.96,REVENUE,Kool Kingdom Ltd,,KOO0001O
North Lincolnshire Council,http://data.ordnancesurvey.co.uk/id/7000000000025623,Culture & Related Services,Other Supplies & Services,5799,13/09/2017,5375205,532.94,REVENUE,Kool Kingdom Ltd,,KOO0001O
North Lincolnshire Council,http://data.ordnancesurvey.co.uk/id/7000000000025623,Corporate And Democratic Core,Other Professional Fees,5829,21/09/2017,5382449,"29,386.88",REVENUE,K P M G,OC301540,KPM0002M
North Lincolnshire Council,http://data.ordnancesurvey.co.uk/id/7000000000025623,Planning Services,Legal Fees,5823,06/09/2017,5373213,"9,548.52",REVENUE,Kva Planning Consultancy,,KVA0130A
North Lincolnshire Council,http://data.ordnancesurvey.co.uk/id/7000000000025623,Environmental & Regulatory Svs,Other Supplies & Services,5799,15/09/2017,5372314,310.00,REVENUE,K W Wilson & Sons Ltd,6237791,WIL0178L
North Lincolnshire Council,http://data.ordnancesurvey.co.uk/id/7000000000025623,Highways & Transport,Other Supplies & Services,5799,13/09/2017,5368305,240.00,REVENUE,K W Wilson & Sons Ltd,6237791,WIL0178L
North Lincolnshire Council,http://data.ordnancesurvey.co.uk/id/7000000000025623,Highways & Transport,Other Supplies & Services,5799,15/09/2017,5371009,320.00,REVENUE,K W Wilson & Sons Ltd,6237791,WIL0178L
North Lincolnshire Council,http://data.ordnancesurvey.co.uk/id/7000000000025623,Highways & Transport,Rents,3201,19/09/2017,5372523,425.00,REVENUE,Lambert Smith Hampton Group Ltd,,LAM0004M
North Lincolnshire Council,http://data.ordnancesurvey.co.uk/id/7000000000025623,Environmental & Regulatory Svs,Payments To Private Orgs,6002,21/09/2017,5382662,850.00,REVENUE,Las Metals,,LAS0020S
North Lincolnshire Council,http://data.ordnancesurvey.co.uk/id/7000000000025623,Culture & Related Services,Other Supplies & Services,5799,08/09/2017,5372882,"1,833.33",REVENUE,Ld Golf Ltd,10458739,LDG0120G
North Lincolnshire Council,http://data.ordnancesurvey.co.uk/id/7000000000025623,Childrens & Education,Payments To Private Orgs,6002,01/09/2017,5372404,"1,310.40",REVENUE,Leanne Webster,,WEB0058B
North Lincolnshire Council,http://data.ordnancesurvey.co.uk/id/7000000000025623,Childrens & Education,Provisions,5201,13/09/2017,5374338,"2,063.33",REVENUE,Lebus Upholstery Ltd,5563831,LEB0001B
North Lincolnshire Council,http://data.ordnancesurvey.co.uk/id/7000000000025623,Culture & Related Services,Other Professional Fees,5829,06/10/2017,5375557,327.54,REVENUE,Les Mills Fitness Uk Ltd,07880229,MIL0298L
North Lincolnshire Council,http://data.ordnancesurvey.co.uk/id/7000000000025623,Adult Social Care,Other Premises Costs,3390,21/09/2017,5379381,253.49,REVENUE,Lewis Removals Ltd,05115077,LEW0003W
North Lincolnshire Council,http://data.ordnancesurvey.co.uk/id/7000000000025623,Corporate And Democratic Core,Repair & Maintenance Costs,3000,15/09/2017,5377942,195.10,REVENUE,Lewis Removals Ltd,05115077,LEW0003W
North Lincolnshire Council,http://data.ordnancesurvey.co.uk/id/7000000000025623,Culture & Related Services,Repair & Maintenance Costs,3000,15/09/2017,5377942,160.00,REVENUE,Lewis Removals Ltd,05115077,LEW0003W
North Lincolnshire Council,http://data.ordnancesurvey.co.uk/id/7000000000025623,Planning Services,Repair & Maintenance Costs,3000,15/09/2017,5377942,"5,334.14",REVENUE,Lewis Removals Ltd,05115077,LEW0003W
North Lincolnshire Council,http://data.ordnancesurvey.co.uk/id/7000000000025623,Corporate And Democratic Core,Leased Cars Rental,4301,13/08/2017,5383561,622.84,REVENUE,Lex Autolease Ltd,1090741,FIR0071R
North Lincolnshire Council,http://data.ordnancesurvey.co.uk/id/7000000000025623,Corporate And Democratic Core,Leased Cars Rental,4301,13/08/2017,5383562,"-1,171.63",REVENUE,Lex Autolease Ltd,1090741,FIR0071R
North Lincolnshire Council,http://data.ordnancesurvey.co.uk/id/7000000000025623,Corporate And Democratic Core,Gen Office Exp (Incl Postage),5603,15/09/2017,5373844,833.05,REVENUE,Lexon (G.B) Limited,9671486,LEX0012X
North Lincolnshire Council,http://data.ordnancesurvey.co.uk/id/7000000000025623,Corporate And Democratic Core,Gen Office Exp (Incl Postage),5603,21/09/2017,5382459,"1,510.56",REVENUE,Lexon (G.B) Limited,9671486,LEX0012X
North Lincolnshire Council,http://data.ordnancesurvey.co.uk/id/7000000000025623,Corporate And Democratic Core,Gen Office Exp (Incl Postage),5603,05/10/2017,5382462,256.55,REVENUE,Lexon (G.B) Limited,9671486,LEX0012X
North Lincolnshire Council,http://data.ordnancesurvey.co.uk/id/7000000000025623,Corporate And Democratic Core,Legal Fees,5823,15/09/2017,5372307,212.00,REVENUE,Lextox,,LEX0011X
North Lincolnshire Council,http://data.ordnancesurvey.co.uk/id/7000000000025623,Corporate And Democratic Core,Legal Fees,5823,21/09/2017,5372700,218.00,REVENUE,Lextox,,LEX0011X
North Lincolnshire Council,http://data.ordnancesurvey.co.uk/id/7000000000025623,Childrens & Education,Payments To Private Orgs,6002,15/07/2017,5383497,"16,114.29",REVENUE,Life Change Care Ltd,,LIF0163F
North Lincolnshire Council,http://data.ordnancesurvey.co.uk/id/7000000000025623,Childrens & Education,Payments To Private Orgs,6002,15/09/2017,5378514,"20,814.30",REVENUE,Life Change Care Ltd,,LIF0163F
North Lincolnshire Council,http://data.ordnancesurvey.co.uk/id/7000000000025623,Childrens & Education,Payments To Private Orgs,6002,01/09/2017,5372372,"9,227.40",REVENUE,Lincoln Gardens Pre School,,LIN0248N
North Lincolnshire Council,http://data.ordnancesurvey.co.uk/id/7000000000025623,Childrens & Education,Home To School Transport,4201,30/09/2017,5380772,570.00,REVENUE,Lincolnshire County Council,,LIN0114N
North Lincolnshire Council,http://data.ordnancesurvey.co.uk/id/7000000000025623,Childrens & Education,Payments To Other La'S,6003,21/09/2017,5379004,-300.00,REVENUE,Lincolnshire County Council,,LIN0003N
North Lincolnshire Council,http://data.ordnancesurvey.co.uk/id/7000000000025623,Highways & Transport,Passenger Transport,6011,21/09/2017,5382477,"10,352.14",REVENUE,Lincolnshire County Council,,LIN0003N
North Lincolnshire Council,http://data.ordnancesurvey.co.uk/id/7000000000025623,Culture & Related Services,Other Professional Fees,5829,13/09/2017,5375550,275.00,REVENUE,Lincolnshire Hospitals Band,,LIN0139N
North Lincolnshire Council,http://data.ordnancesurvey.co.uk/id/7000000000025623,Adult Social Care,Payments To Health Providers,6019,08/09/2017,5374919,396.00,REVENUE,Lincs Community Health Services Nhst,,LIN0384N
North Lincolnshire Council,http://data.ordnancesurvey.co.uk/id/7000000000025623,Environmental & Regulatory Svs,Payments To Voluntary Orgs,6001,21/09/2017,5372643,885.26,REVENUE,Lindsey Lodge Hospice,,LIN0261N
North Lincolnshire Council,http://data.ordnancesurvey.co.uk/id/7000000000025623,Childrens & Education,Payments To Private Orgs,6002,15/09/2017,5378532,806.40,REVENUE,Lisa Atkinson,,ATK0120K
North Lincolnshire Council,http://data.ordnancesurvey.co.uk/id/7000000000025623,Childrens & Education,Payments To Private Orgs,6002,01/09/2017,5372344,524.16,REVENUE,Lisa Backhouse,,BAC0163C
North Lincolnshire Council,http://data.ordnancesurvey.co.uk/id/7000000000025623,Childrens & Education,Payments To Voluntary Orgs,6001,01/09/2017,5372373,"15,832.74",REVENUE,Little Acorns Pre-School,,LIT0009T
North Lincolnshire Council,http://data.ordnancesurvey.co.uk/id/7000000000025623,Childrens & Education,Payments To Private Orgs,6002,01/09/2017,5372379,"9,044.28",REVENUE,Little Angels Pre-School,,LIT0045T
North Lincolnshire Council,http://data.ordnancesurvey.co.uk/id/7000000000025623,Childrens & Education,Payments To Private Orgs,6002,08/09/2017,5374827,300.00,REVENUE,Little Angels Pre-School,,LIT0045T
North Lincolnshire Council,http://data.ordnancesurvey.co.uk/id/7000000000025623,Childrens & Education,Payments To Private Orgs,6002,01/09/2017,5372371,"12,613.10",REVENUE,Little Cygnets Nursery,,LCN0002N
North Lincolnshire Council,http://data.ordnancesurvey.co.uk/id/7000000000025623,Childrens & Education,Payments To Private Orgs,6002,13/09/2017,5375898,"1,575.00",REVENUE,Little Goslings Day Nursery,,LIT0082T
North Lincolnshire Council,http://data.ordnancesurvey.co.uk/id/7000000000025623,Childrens & Education,Payments To Private Orgs,6002,15/09/2017,5378542,"10,493.62",REVENUE,Little Imps Playgroup,,LIT0035T
North Lincolnshire Council,http://data.ordnancesurvey.co.uk/id/7000000000025623,Childrens & Education,Payments To Private Orgs,6002,13/09/2017,5375887,508.20,REVENUE,Little Owls Nursery,,LIT0028T
North Lincolnshire Council,http://data.ordnancesurvey.co.uk/id/7000000000025623,Childrens & Education,Payments To Private Orgs,6002,01/09/2017,5372376,"14,595.34",REVENUE,Little Owls Pre-School,,LIT0041T
North Lincolnshire Council,http://data.ordnancesurvey.co.uk/id/7000000000025623,Childrens & Education,Payments To Private Orgs,6002,01/09/2017,5372377,"27,580.56",REVENUE,Little Owls Pre-School,,LIT0041T
North Lincolnshire Council,http://data.ordnancesurvey.co.uk/id/7000000000025623,Childrens & Education,Payments To Private Orgs,6002,01/09/2017,5372378,"13,535.76",REVENUE,Little Owls Pre-School,,LIT0041T
North Lincolnshire Council,http://data.ordnancesurvey.co.uk/id/7000000000025623,Childrens & Education,Payments To Voluntary Orgs,6001,01/09/2017,5372375,"20,517.84",REVENUE,Little Rascals Pre-School,,LIT0011T
North Lincolnshire Council,http://data.ordnancesurvey.co.uk/id/7000000000025623,Childrens & Education,Payments To Private Orgs,6002,01/09/2017,5372394,"20,467.44",REVENUE,Little Saplings,,SAP0030P
North Lincolnshire Council,http://data.ordnancesurvey.co.uk/id/7000000000025623,Childrens & Education,Payments To Private Orgs,6002,13/09/2017,5375897,"1,138.20",REVENUE,Little Saplings,,SAP0030P
North Lincolnshire Council,http://data.ordnancesurvey.co.uk/id/7000000000025623,Childrens & Education,Payments To Private Orgs,6002,01/09/2017,5372374,"23,631.72",REVENUE,Little Tots Nursery,,LIT0010T
North Lincolnshire Council,http://data.ordnancesurvey.co.uk/id/7000000000025623,Childrens & Education,Course Fees/Training,2002,19/09/2017,5378988,250.00,REVENUE,Lives,,LIV0006V
North Lincolnshire Council,http://data.ordnancesurvey.co.uk/id/7000000000025623,Childrens & Education,Course Fees/Training,2002,19/09/2017,5378989,500.00,REVENUE,Lives,,LIV0006V
North Lincolnshire Council,http://data.ordnancesurvey.co.uk/id/7000000000025623,Culture & Related Services,Other Supplies & Services,5799,15/09/2017,5371704,"1,570.00",REVENUE,Lives,,LIV0006V
North Lincolnshire Council,http://data.ordnancesurvey.co.uk/id/7000000000025623,Fin&Inv I&E,Equipment Purchase,5001,19/09/2017,5381412,"1,093.58",REVENUE,Livewell Vending Ltd,,LIV0165V
North Lincolnshire Council,http://data.ordnancesurvey.co.uk/id/7000000000025623,Adult Social Care,Equipment Maint.& Repair,5003,19/09/2017,5379754,743.00,REVENUE,Lmb Ltd,4637736,LMB0001B
North Lincolnshire Council,http://data.ordnancesurvey.co.uk/id/7000000000025623,Adult Social Care,Equipment Maint.& Repair,5003,19/09/2017,5379755,"1,395.00",REVENUE,Lmb Ltd,4637736,LMB0001B
North Lincolnshire Council,http://data.ordnancesurvey.co.uk/id/7000000000025623,Corporate And Democratic Core,Advertising & Publicity,5610,19/09/2017,5371775,279.68,REVENUE,Local World Ltd,08290481,LOC0021C
North Lincolnshire Council,http://data.ordnancesurvey.co.uk/id/7000000000025623,Housing Services,Other Supplies & Services,5799,01/09/2017,5371580,370.56,REVENUE,Longhurst & Havelock Homes Ltd,30779R,LON0046N
North Lincolnshire Council,http://data.ordnancesurvey.co.uk/id/7000000000025623,Planning Services,Payments To Voluntary Orgs,6001,19/09/2017,5379340,969.18,REVENUE,Luddington & Haldenby Parish Council,,LUD0007D
North Lincolnshire Council,http://data.ordnancesurvey.co.uk/id/7000000000025623,Adult Social Care,Equipment Purchase,5001,30/09/2017,5375170,274.08,REVENUE,Lyreco Uk Ltd,442696,LYR0001R
North Lincolnshire Council,http://data.ordnancesurvey.co.uk/id/7000000000025623,Adult Social Care,Gen Office Exp (Incl Postage),5603,06/09/2017,5371583,210.01,REVENUE,Lyreco Uk Ltd,442696,LYR0001R
North Lincolnshire Council,http://data.ordnancesurvey.co.uk/id/7000000000025623,Childrens & Education,Gen Office Exp (Incl Postage),5603,30/09/2017,5374087,262.50,REVENUE,Lyreco Uk Ltd,442696,LYR0001R
North Lincolnshire Council,http://data.ordnancesurvey.co.uk/id/7000000000025623,Childrens & Education,Gen Office Exp (Incl Postage),5603,30/09/2017,5378048,690.56,REVENUE,Lyreco Uk Ltd,442696,LYR0001R
North Lincolnshire Council,http://data.ordnancesurvey.co.uk/id/7000000000025623,Childrens & Education,Gen Office Exp (Incl Postage),5603,30/09/2017,5378052,261.92,REVENUE,Lyreco Uk Ltd,442696,LYR0001R
North Lincolnshire Council,http://data.ordnancesurvey.co.uk/id/7000000000025623,Childrens & Education,Gen Office Exp (Incl Postage),5603,30/10/2017,5379304,512.60,REVENUE,Lyreco Uk Ltd,442696,LYR0001R
North Lincolnshire Council,http://data.ordnancesurvey.co.uk/id/7000000000025623,Corporate And Democratic Core,Gen Office Exp (Incl Postage),5603,30/09/2017,5373849,349.00,REVENUE,Lyreco Uk Ltd,442696,LYR0001R
North Lincolnshire Council,http://data.ordnancesurvey.co.uk/id/7000000000025623,Corporate And Democratic Core,Gen Office Exp (Incl Postage),5603,30/09/2017,5373938,234.37,REVENUE,Lyreco Uk Ltd,442696,LYR0001R
North Lincolnshire Council,http://data.ordnancesurvey.co.uk/id/7000000000025623,Corporate And Democratic Core,Gen Office Exp (Incl Postage),5603,30/09/2017,5373941,321.04,REVENUE,Lyreco Uk Ltd,442696,LYR0001R
North Lincolnshire Council,http://data.ordnancesurvey.co.uk/id/7000000000025623,Corporate And Democratic Core,Gen Office Exp (Incl Postage),5603,30/09/2017,5378013,216.88,REVENUE,Lyreco Uk Ltd,442696,LYR0001R
North Lincolnshire Council,http://data.ordnancesurvey.co.uk/id/7000000000025623,Corporate And Democratic Core,Gen Office Exp (Incl Postage),5603,30/09/2017,5378014,408.44,REVENUE,Lyreco Uk Ltd,442696,LYR0001R
North Lincolnshire Council,http://data.ordnancesurvey.co.uk/id/7000000000025623,Culture & Related Services,Gen Office Exp (Incl Postage),5603,30/09/2017,5375547,258.41,REVENUE,Lyreco Uk Ltd,442696,LYR0001R
North Lincolnshire Council,http://data.ordnancesurvey.co.uk/id/7000000000025623,Environmental & Regulatory Svs,Gen Office Exp (Incl Postage),5603,30/09/2017,5373897,230.41,REVENUE,Lyreco Uk Ltd,442696,LYR0001R
North Lincolnshire Council,http://data.ordnancesurvey.co.uk/id/7000000000025623,Childrens & Education,Payments To Private Orgs,6002,01/09/2017,5372356,"1,663.20",REVENUE,Marie Fenwick,,FEN0095N
North Lincolnshire Council,http://data.ordnancesurvey.co.uk/id/7000000000025623,"Culture,Env,Reg & Planning Cap",Consultants,A087,01/09/2017,5372627,717.50,CAPITAL,Mark Simmonds Planning Services Ltd,,SIM0320M
North Lincolnshire Council,http://data.ordnancesurvey.co.uk/id/7000000000025623,Fin&Inv I&E,Other Supplies & Services,5799,21/09/2017,5381830,"1,000.00",REVENUE,Mark Simmonds Planning Services Ltd,,SIM0320M
North Lincolnshire Council,http://data.ordnancesurvey.co.uk/id/7000000000025623,Highways & Transport,Other Supplies & Services,5799,21/09/2017,5376631,300.00,REVENUE,Marti'S Aggregates,,MAR0641R
North Lincolnshire Council,http://data.ordnancesurvey.co.uk/id/7000000000025623,Highways & Transport,Other Supplies & Services,5799,21/09/2017,5376632,450.00,REVENUE,Marti'S Aggregates,,MAR0641R
North Lincolnshire Council,http://data.ordnancesurvey.co.uk/id/7000000000025623,Highways & Transport,Other Supplies & Services,5799,21/09/2017,5376633,290.00,REVENUE,Marti'S Aggregates,,MAR0641R
North Lincolnshire Council,http://data.ordnancesurvey.co.uk/id/7000000000025623,Highways & Transport,Other Supplies & Services,5799,21/09/2017,5376639,360.00,REVENUE,Marti'S Aggregates,,MAR0641R
North Lincolnshire Council,http://data.ordnancesurvey.co.uk/id/7000000000025623,Highways & Transport,Stock Purchases & Adjustments,5030,05/10/2017,5381000,-306.00,REVENUE,Marwood Electrical Company Ltd,,MAR0275R
North Lincolnshire Council,http://data.ordnancesurvey.co.uk/id/7000000000025623,Culture & Related Services,Stock Purchases & Adjustments,5030,06/09/2017,5369942,208.70,REVENUE,Mary Ann Rogers,,ROG0130G
North Lincolnshire Council,http://data.ordnancesurvey.co.uk/id/7000000000025623,Adult Social Care,Pay - Agency,0131,01/09/2017,5372541,"11,247.98",REVENUE,Matrix Scm Ltd,2227962,MAT0022T
North Lincolnshire Council,http://data.ordnancesurvey.co.uk/id/7000000000025623,Adult Social Care,Pay - Agency,0131,01/09/2017,5372541,"4,878.39",REVENUE,Matrix Scm Ltd,2227962,MAT0022T
North Lincolnshire Council,http://data.ordnancesurvey.co.uk/id/7000000000025623,Adult Social Care,Pay - Agency,0131,08/09/2017,5372537,"10,147.28",REVENUE,Matrix Scm Ltd,2227962,MAT0022T
North Lincolnshire Council,http://data.ordnancesurvey.co.uk/id/7000000000025623,Adult Social Care,Pay - Agency,0131,08/09/2017,5372537,"8,000.85",REVENUE,Matrix Scm Ltd,2227962,MAT0022T
North Lincolnshire Council,http://data.ordnancesurvey.co.uk/id/7000000000025623,Adult Social Care,Pay - Agency,0131,15/09/2017,5375190,"5,879.18",REVENUE,Matrix Scm Ltd,2227962,MAT0022T
North Lincolnshire Council,http://data.ordnancesurvey.co.uk/id/7000000000025623,Adult Social Care,Pay - Agency,0131,15/09/2017,5375190,"6,843.95",REVENUE,Matrix Scm Ltd,2227962,MAT0022T
North Lincolnshire Council,http://data.ordnancesurvey.co.uk/id/7000000000025623,Adult Social Care,Pay - Agency,0131,21/09/2017,5378892,"7,338.53",REVENUE,Matrix Scm Ltd,2227962,MAT0022T
North Lincolnshire Council,http://data.ordnancesurvey.co.uk/id/7000000000025623,Adult Social Care,Pay - Agency,0131,21/09/2017,5378892,"4,269.95",REVENUE,Matrix Scm Ltd,2227962,MAT0022T
North Lincolnshire Council,http://data.ordnancesurvey.co.uk/id/7000000000025623,Childrens & Education,Pay - Agency,0131,01/09/2017,5372541,"1,274.55",REVENUE,Matrix Scm Ltd,2227962,MAT0022T
North Lincolnshire Council,http://data.ordnancesurvey.co.uk/id/7000000000025623,Childrens & Education,Pay - Agency,0131,01/09/2017,5372541,"8,046.70",REVENUE,Matrix Scm Ltd,2227962,MAT0022T
North Lincolnshire Council,http://data.ordnancesurvey.co.uk/id/7000000000025623,Childrens & Education,Pay - Agency,0131,08/09/2017,5372537,"1,401.97",REVENUE,Matrix Scm Ltd,2227962,MAT0022T
North Lincolnshire Council,http://data.ordnancesurvey.co.uk/id/7000000000025623,Childrens & Education,Pay - Agency,0131,08/09/2017,5372537,"6,191.45",REVENUE,Matrix Scm Ltd,2227962,MAT0022T
North Lincolnshire Council,http://data.ordnancesurvey.co.uk/id/7000000000025623,Childrens & Education,Pay - Agency,0131,15/09/2017,5375190,564.04,REVENUE,Matrix Scm Ltd,2227962,MAT0022T
North Lincolnshire Council,http://data.ordnancesurvey.co.uk/id/7000000000025623,Childrens & Education,Pay - Agency,0131,15/09/2017,5375190,"3,321.18",REVENUE,Matrix Scm Ltd,2227962,MAT0022T
North Lincolnshire Council,http://data.ordnancesurvey.co.uk/id/7000000000025623,Childrens & Education,Pay - Agency,0131,21/09/2017,5378892,962.74,REVENUE,Matrix Scm Ltd,2227962,MAT0022T
North Lincolnshire Council,http://data.ordnancesurvey.co.uk/id/7000000000025623,Childrens & Education,Pay - Agency,0131,21/09/2017,5378892,"7,261.87",REVENUE,Matrix Scm Ltd,2227962,MAT0022T
North Lincolnshire Council,http://data.ordnancesurvey.co.uk/id/7000000000025623,Corporate And Democratic Core,Pay - Agency,0131,01/09/2017,5372541,630.79,REVENUE,Matrix Scm Ltd,2227962,MAT0022T
North Lincolnshire Council,http://data.ordnancesurvey.co.uk/id/7000000000025623,Corporate And Democratic Core,Pay - Agency,0131,08/09/2017,5372537,"1,224.91",REVENUE,Matrix Scm Ltd,2227962,MAT0022T
North Lincolnshire Council,http://data.ordnancesurvey.co.uk/id/7000000000025623,Corporate And Democratic Core,Pay - Agency,0131,15/09/2017,5375190,"1,611.41",REVENUE,Matrix Scm Ltd,2227962,MAT0022T
North Lincolnshire Council,http://data.ordnancesurvey.co.uk/id/7000000000025623,Environmental & Regulatory Svs,Pay - Agency,0131,01/09/2017,5372541,"1,708.14",REVENUE,Matrix Scm Ltd,2227962,MAT0022T
North Lincolnshire Council,http://data.ordnancesurvey.co.uk/id/7000000000025623,Environmental & Regulatory Svs,Pay - Agency,0131,15/09/2017,5375190,"4,504.10",REVENUE,Matrix Scm Ltd,2227962,MAT0022T
North Lincolnshire Council,http://data.ordnancesurvey.co.uk/id/7000000000025623,Fin&Inv I&E,Pay - Agency,0131,01/09/2017,5372541,282.02,REVENUE,Matrix Scm Ltd,2227962,MAT0022T
North Lincolnshire Council,http://data.ordnancesurvey.co.uk/id/7000000000025623,Public Health,Pay - Agency,0131,01/09/2017,5372541,619.03,REVENUE,Matrix Scm Ltd,2227962,MAT0022T
North Lincolnshire Council,http://data.ordnancesurvey.co.uk/id/7000000000025623,Public Health,Pay - Agency,0131,08/09/2017,5372537,"3,751.15",REVENUE,Matrix Scm Ltd,2227962,MAT0022T
North Lincolnshire Council,http://data.ordnancesurvey.co.uk/id/7000000000025623,Public Health,Pay - Agency,0131,15/09/2017,5375190,80.10,REVENUE,Matrix Scm Ltd,2227962,MAT0022T
North Lincolnshire Council,http://data.ordnancesurvey.co.uk/id/7000000000025623,Childrens & Education,Payments To Private Orgs,6002,15/09/2017,5378762,"1,371.21",REVENUE,Mayflower Specialist School Academic Trust,09610951,MAY0180Y
North Lincolnshire Council,http://data.ordnancesurvey.co.uk/id/7000000000025623,Corporate And Democratic Core,Repair & Maintenance Costs,3000,15/09/2017,5377939,"3,770.00",REVENUE,Mcdermott Decorating,,MCD0046D
North Lincolnshire Council,http://data.ordnancesurvey.co.uk/id/7000000000025623,Culture & Related Services,Repair & Maintenance Costs,3000,01/09/2017,5371830,"1,380.00",REVENUE,Mcdermott Decorating,,MCD0046D
North Lincolnshire Council,http://data.ordnancesurvey.co.uk/id/7000000000025623,Culture & Related Services,Repair & Maintenance Costs,3000,01/09/2017,5371831,"1,200.00",REVENUE,Mcdermott Decorating,,MCD0046D
North Lincolnshire Council,http://data.ordnancesurvey.co.uk/id/7000000000025623,Childrens & Education,Payments To Private Orgs,6002,01/09/2017,5372382,"19,860.12",REVENUE,Mels Totstop Day Nursery,,MEL0044L
North Lincolnshire Council,http://data.ordnancesurvey.co.uk/id/7000000000025623,Childrens & Education,Payments To Private Orgs,6002,19/09/2017,5381138,313.50,REVENUE,Mels Totstop Day Nursery,,MEL0044L
North Lincolnshire Council,http://data.ordnancesurvey.co.uk/id/7000000000025623,Adult Social Care,Payments To Private Orgs,6002,21/09/2017,5383018,"2,936.00",REVENUE,Mencap,,MEN0244N
North Lincolnshire Council,http://data.ordnancesurvey.co.uk/id/7000000000025623,Adult Social Care,Payments To Private Orgs,6002,21/09/2017,5374431,"16,275.00",REVENUE,Mental Health First Aid England,,MHF0001F
North Lincolnshire Council,http://data.ordnancesurvey.co.uk/id/7000000000025623,Childrens & Education,Materials,5004,18/10/2017,5382702,354.00,REVENUE,Mental Health First Aid England,,MHF0001F
North Lincolnshire Council,http://data.ordnancesurvey.co.uk/id/7000000000025623,Highways & Transport,Repair & Maintenance Costs,3000,01/09/2017,5371607,410.08,REVENUE,Metric Group Ltd,,MET0006T
North Lincolnshire Council,http://data.ordnancesurvey.co.uk/id/7000000000025623,Environmental & Regulatory Svs,Other Professional Fees,5829,01/09/2017,5370929,"1,670.55",REVENUE,Microform Imaging Ltd,,MIC0043C
North Lincolnshire Council,http://data.ordnancesurvey.co.uk/id/7000000000025623,Culture & Related Services,"Clothing, Uniforms & Laundry",5301,19/09/2017,5372650,876.70,REVENUE,Micronclean Ltd,,FEN0041N
North Lincolnshire Council,http://data.ordnancesurvey.co.uk/id/7000000000025623,Environmental & Regulatory Svs,Payments To Private Orgs,6002,30/09/2017,5379043,"4,998.92",REVENUE,Mid Uk Recycling,3484587,MID0018D
North Lincolnshire Council,http://data.ordnancesurvey.co.uk/id/7000000000025623,Corporate And Democratic Core,Legal Fees,5823,15/09/2017,5378018,"5,945.40",REVENUE,Miss Charlotte Hadfield,,HAD0165D
North Lincolnshire Council,http://data.ordnancesurvey.co.uk/id/7000000000025623,Corporate And Democratic Core,Legal Fees,5823,21/09/2017,5378733,408.00,REVENUE,Miss J C Baggs,,BAG0096G
North Lincolnshire Council,http://data.ordnancesurvey.co.uk/id/7000000000025623,Corporate And Democratic Core,Legal Fees,5823,15/09/2017,5378735,"2,700.00",REVENUE,Miss J F Jenkins,,JEN0222N
North Lincolnshire Council,http://data.ordnancesurvey.co.uk/id/7000000000025623,Corporate And Democratic Core,Legal Fees,5823,15/09/2017,5378738,"1,464.00",REVENUE,Miss J F Jenkins,,JEN0222N
North Lincolnshire Council,http://data.ordnancesurvey.co.uk/id/7000000000025623,Corporate And Democratic Core,Legal Fees,5823,04/10/2017,5380958,"1,332.00",REVENUE,Miss S L Fearon,,FEA0005A
North Lincolnshire Council,http://data.ordnancesurvey.co.uk/id/7000000000025623,Corporate And Democratic Core,Legal Fees,5823,04/10/2017,5380968,"1,278.00",REVENUE,Miss S L Fearon,,FEA0005A
North Lincolnshire Council,http://data.ordnancesurvey.co.uk/id/7000000000025623,Environmental & Regulatory Svs,Equipment Purchase,5001,13/09/2017,5372683,"1,510.00",REVENUE,Mist-Air Environmental,,MIS0021S
North Lincolnshire Council,http://data.ordnancesurvey.co.uk/id/7000000000025623,Environmental & Regulatory Svs,Other Premises Costs,3390,08/09/2017,5370970,211.00,REVENUE,Mist-Air Environmental,,MIS0021S
North Lincolnshire Council,http://data.ordnancesurvey.co.uk/id/7000000000025623,Fin&Inv I&E,Materials,5004,13/09/2017,5377828,380.00,REVENUE,M L Protective Coatings Ltd,01773189,MLP0002P
North Lincolnshire Council,http://data.ordnancesurvey.co.uk/id/7000000000025623,Fin&Inv I&E,Materials,5004,13/09/2017,5377831,"2,400.00",REVENUE,M L Protective Coatings Ltd,01773189,MLP0002P
North Lincolnshire Council,http://data.ordnancesurvey.co.uk/id/7000000000025623,Fin&Inv I&E,Materials,5004,30/09/2017,5377830,220.00,REVENUE,M L Protective Coatings Ltd,01773189,MLP0002P
North Lincolnshire Council,http://data.ordnancesurvey.co.uk/id/7000000000025623,Highways & Transport,Other Supplies & Services,5799,30/09/2017,5374311,"4,500.00",REVENUE,Modatso Limited,09121089,MOD0010D
North Lincolnshire Council,http://data.ordnancesurvey.co.uk/id/7000000000025623,Childrens & Education,Equipment Purchase,5001,08/09/2017,5373862,420.00,REVENUE,Modern Blinds,,MOD0016D
North Lincolnshire Council,http://data.ordnancesurvey.co.uk/id/7000000000025623,Adult Social Care,Other Professional Fees,5829,06/09/2017,5373206,376.00,REVENUE,Mohamed Allam,,ALL0151L
North Lincolnshire Council,http://data.ordnancesurvey.co.uk/id/7000000000025623,Adult Social Care,Other Professional Fees,5829,16/09/2017,5382622,560.00,REVENUE,Mohamed Allam,,ALL0151L
North Lincolnshire Council,http://data.ordnancesurvey.co.uk/id/7000000000025623,Environmental & Regulatory Svs,Payments To Private Orgs,6002,13/09/2017,5370947,"5,911.00",REVENUE,Monks Contractors Ltd,,MON0160N
North Lincolnshire Council,http://data.ordnancesurvey.co.uk/id/7000000000025623,Environmental & Regulatory Svs,Payments To Private Orgs,6002,13/09/2017,5370972,"5,268.50",REVENUE,Monks Contractors Ltd,,MON0160N
North Lincolnshire Council,http://data.ordnancesurvey.co.uk/id/7000000000025623,Environmental & Regulatory Svs,Payments To Private Orgs,6002,19/09/2017,5379041,"5,911.00",REVENUE,Monks Contractors Ltd,,MON0160N
North Lincolnshire Council,http://data.ordnancesurvey.co.uk/id/7000000000025623,Environmental & Regulatory Svs,Payments To Private Orgs,6002,01/10/2017,5382675,"2,698.50",REVENUE,Monks Contractors Ltd,,MON0160N
North Lincolnshire Council,http://data.ordnancesurvey.co.uk/id/7000000000025623,Environmental & Regulatory Svs,Payments To Private Orgs,6002,08/10/2017,5382672,"4,626.00",REVENUE,Monks Contractors Ltd,,MON0160N
North Lincolnshire Council,http://data.ordnancesurvey.co.uk/id/7000000000025623,Environmental & Regulatory Svs,Payments To Private Orgs,6002,08/10/2017,5382674,"2,441.50",REVENUE,Monks Contractors Ltd,,MON0160N
North Lincolnshire Council,http://data.ordnancesurvey.co.uk/id/7000000000025623,Childrens & Education,Client Related Costs,5534,08/09/2017,5374832,300.00,REVENUE,Moorwell Miracles Ltd,,MOO0120O
North Lincolnshire Council,http://data.ordnancesurvey.co.uk/id/7000000000025623,Childrens & Education,Payments To Private Orgs,6002,01/09/2017,5372383,"35,705.88",REVENUE,Moorwell Miracles Ltd,,MOO0120O
North Lincolnshire Council,http://data.ordnancesurvey.co.uk/id/7000000000025623,Childrens & Education,Payments To Private Orgs,6002,06/09/2017,5373995,500.00,REVENUE,Moorwell Miracles Ltd,,MOO0120O
North Lincolnshire Council,http://data.ordnancesurvey.co.uk/id/7000000000025623,"Culture,Env,Reg & Planning Cap",Other Costs,A085,13/09/2017,5375078,"12,315.88",CAPITAL,Mott Macdonald Limited,1243967,MOT0034T
North Lincolnshire Council,http://data.ordnancesurvey.co.uk/id/7000000000025623,"Culture,Env,Reg & Planning Cap",Other Costs,A085,13/09/2017,5375081,"20,678.67",CAPITAL,Mott Macdonald Limited,1243967,MOT0034T
North Lincolnshire Council,http://data.ordnancesurvey.co.uk/id/7000000000025623,"Culture,Env,Reg & Planning Cap",Other Costs,A085,13/09/2017,5375975,"122,553.00",CAPITAL,Mott Macdonald Limited,1243967,MOT0034T
North Lincolnshire Council,http://data.ordnancesurvey.co.uk/id/7000000000025623,Highways & Transport,Other Supplies & Services,5799,15/09/2017,5365103,"1,040.00",REVENUE,Mr B Clark,,CLA0030A
North Lincolnshire Council,http://data.ordnancesurvey.co.uk/id/7000000000025623,Highways & Transport,Other Supplies & Services,5799,15/09/2017,5369676,725.00,REVENUE,Mr B Clark,,CLA0030A
North Lincolnshire Council,http://data.ordnancesurvey.co.uk/id/7000000000025623,Highways & Transport,Other Supplies & Services,5799,19/09/2017,5369673,416.00,REVENUE,Mr B Clark,,CLA0030A
North Lincolnshire Council,http://data.ordnancesurvey.co.uk/id/7000000000025623,Highways & Transport,Other Supplies & Services,5799,21/09/2017,5375523,650.00,REVENUE,Mr B Clark,,CLA0030A
North Lincolnshire Council,http://data.ordnancesurvey.co.uk/id/7000000000025623,Highways & Transport,Other Supplies & Services,5799,03/10/2017,5374165,936.00,REVENUE,Mr B Clark,,CLA0030A
North Lincolnshire Council,http://data.ordnancesurvey.co.uk/id/7000000000025623,Highways & Transport,Other Supplies & Services,5799,10/10/2017,5377883,"1,144.00",REVENUE,Mr B Clark,,CLA0030A
North Lincolnshire Council,http://data.ordnancesurvey.co.uk/id/7000000000025623,Corporate And Democratic Core,Legal Fees,5823,21/09/2017,5379723,"1,008.00",REVENUE,Mr Gavin Button,,BUT0174T
North Lincolnshire Council,http://data.ordnancesurvey.co.uk/id/7000000000025623,Corporate And Democratic Core,Legal Fees,5823,21/09/2017,5379728,504.00,REVENUE,Mr Gavin Button,,BUT0174T
North Lincolnshire Council,http://data.ordnancesurvey.co.uk/id/7000000000025623,Corporate And Democratic Core,Legal Fees,5823,21/09/2017,5380975,504.00,REVENUE,Mr Gavin Button,,BUT0174T
North Lincolnshire Council,http://data.ordnancesurvey.co.uk/id/7000000000025623,Corporate And Democratic Core,Legal Fees,5823,21/09/2017,5380983,588.00,REVENUE,Mr Gavin Button,,BUT0174T
North Lincolnshire Council,http://data.ordnancesurvey.co.uk/id/7000000000025623,Highways & Transport,Course Fees/Training,2002,21/09/2017,5381120,480.00,REVENUE,Mr Gennaca Sembiante,,SEM0098M
North Lincolnshire Council,http://data.ordnancesurvey.co.uk/id/7000000000025623,Planning Services,Legal Fees,5823,15/09/2017,5378019,960.00,REVENUE,Mr John Hunter,,HUN0054N
North Lincolnshire Council,http://data.ordnancesurvey.co.uk/id/7000000000025623,Corporate And Democratic Core,Legal Fees,5823,15/09/2017,5378753,295.00,REVENUE,Mr Michael Masson,,MAS0268S
North Lincolnshire Council,http://data.ordnancesurvey.co.uk/id/7000000000025623,Childrens & Education,Payments To Private Orgs,6002,01/09/2017,5372365,"2,483.04",REVENUE,Mrs Alexandra Heighington,,HEI0036I
North Lincolnshire Council,http://data.ordnancesurvey.co.uk/id/7000000000025623,Childrens & Education,Payments To Private Orgs,6002,13/09/2017,5375890,"1,575.00",REVENUE,Mrs Alexandra Heighington,,HEI0036I
North Lincolnshire Council,http://data.ordnancesurvey.co.uk/id/7000000000025623,Corporate And Democratic Core,Legal Fees,5823,31/08/2017,5371766,-948.00,REVENUE,Mrs B Halsall,,HAL0072L
North Lincolnshire Council,http://data.ordnancesurvey.co.uk/id/7000000000025623,Corporate And Democratic Core,Legal Fees,5823,31/08/2017,5372666,-588.00,REVENUE,Mrs B Halsall,,HAL0072L
North Lincolnshire Council,http://data.ordnancesurvey.co.uk/id/7000000000025623,Corporate And Democratic Core,Legal Fees,5823,31/08/2017,5372672,948.00,REVENUE,Mrs B Halsall,,HAL0072L
North Lincolnshire Council,http://data.ordnancesurvey.co.uk/id/7000000000025623,Childrens & Education,Payments To Private Orgs,6002,15/09/2017,5378549,577.08,REVENUE,Mrs C Allison,,STR0090R
North Lincolnshire Council,http://data.ordnancesurvey.co.uk/id/7000000000025623,Corporate And Democratic Core,Legal Fees,5823,21/09/2017,5378745,"1,327.50",REVENUE,Mrs Francesca Steels,,STE0118E
North Lincolnshire Council,http://data.ordnancesurvey.co.uk/id/7000000000025623,Corporate And Democratic Core,Legal Fees,5823,21/09/2017,5379730,340.00,REVENUE,Mrs Francesca Steels,,STE0118E
North Lincolnshire Council,http://data.ordnancesurvey.co.uk/id/7000000000025623,Corporate And Democratic Core,Legal Fees,5823,21/09/2017,5379731,657.50,REVENUE,Mrs Francesca Steels,,STE0118E
North Lincolnshire Council,http://data.ordnancesurvey.co.uk/id/7000000000025623,Corporate And Democratic Core,Legal Fees,5823,21/09/2017,5379733,340.00,REVENUE,Mrs Francesca Steels,,STE0118E
North Lincolnshire Council,http://data.ordnancesurvey.co.uk/id/7000000000025623,Corporate And Democratic Core,Legal Fees,5823,31/08/2017,5371768,948.00,REVENUE,Mrs Gaynor Hall,,HAL0074L
North Lincolnshire Council,http://data.ordnancesurvey.co.uk/id/7000000000025623,Corporate And Democratic Core,Legal Fees,5823,31/08/2017,5372670,-948.00,REVENUE,Mrs Gaynor Hall,,HAL0074L
North Lincolnshire Council,http://data.ordnancesurvey.co.uk/id/7000000000025623,Corporate And Democratic Core,Legal Fees,5823,01/09/2017,5372668,588.00,REVENUE,Mrs Gaynor Hall,,HAL0074L
North Lincolnshire Council,http://data.ordnancesurvey.co.uk/id/7000000000025623,Corporate And Democratic Core,Legal Fees,5823,21/09/2017,5378736,"4,896.00",REVENUE,Mrs Gaynor Hall,,HAL0074L
North Lincolnshire Council,http://data.ordnancesurvey.co.uk/id/7000000000025623,Corporate And Democratic Core,Legal Fees,5823,21/09/2017,5379706,"1,098.00",REVENUE,Mrs Gaynor Hall,,HAL0074L
North Lincolnshire Council,http://data.ordnancesurvey.co.uk/id/7000000000025623,Childrens & Education,Payments To Private Orgs,6002,01/09/2017,5372392,"1,478.40",REVENUE,Mrs G E Robinson,,ROB0063B
North Lincolnshire Council,http://data.ordnancesurvey.co.uk/id/7000000000025623,Childrens & Education,Payments To Private Orgs,6002,01/09/2017,5372354,873.60,REVENUE,Mrs J E Easton,,EAS0196S
